{"text_format":"2","workbook":"xlsx","n_sheets":6,"sheets":["Total","5차 통합테스트","4차 통합테스트","3차 통합테스트","2차 통합테스트","1차 통합테스트"],"not_rendered":{"charts":0,"images":0,"macros":0,"external_links":0,"defined_names":0,"comments":0,"pivot_tables":0},"unopened":[],"bounds":{"document_bytes":16777216,"sheet_cells":100000,"run_cost":"one","rows_first":2000,"rows_last":500,"rows_between":2000,"halvings":0,"cell_chars":16384,"cell_head_chars":4096},"cells_cut":0,"cells_raw":0,"read":"whole","date_system":"1900"}

{"sheet":"Total","index":0,"n_rows":9,"n_cols":26,"rows_kept":9,"cut":false,"hidden":false,"merged":[]}
[]
[null,"통합 테스트 진행 및 조치 현황"]
[]
[null,"구분","테스트 항목","성공","실패","보류","개선",null,null,"실패조치","조치율",null,"실패보류","보류조치율",null,"개선조치","조치율",null,"개선보류","보류조치율",null,"보류조치","조치율",null,"보류보류","보류조치율"]
[null,"1차 통합 테스트",{"$f":"COUNTA('1차 통합테스트'!C3:C363)","v":361},{"$f":"COUNTIF('1차 통합테스트'!$G$3:$G$539032,\"성공\")","v":296},{"$f":"COUNTIF('1차 통합테스트'!$G$3:$G$363,\"실패\")","v":47},{"$f":"COUNTIF('1차 통합테스트'!$G$3:$G$363,\"보류\")","v":18},{"$f":"COUNTIF('1차 통합테스트'!$G$4:$G$180,\"개선\")","v":0},null,null,{"$f":"COUNTIFS('1차 통합테스트'!$G3:$G363,\"실패\",'1차 통합테스트'!$M3:$M363,\"완료\")","v":46},{"$f":"J5/E5","v":0.97872340425531912},null,{"$f":"COUNTIFS('1차 통합테스트'!$G3:$G363,\"실패\",'1차 통합테스트'!$M3:$M363,\"보류\")","v":1},{"$f":"M5/E5","v":2.1276595744680851E-2},null,{"$f":"COUNTIFS('1차 통합테스트'!$G3:$G363,\"개선\",'1차 통합테스트'!$M3:$M363,\"완료\")","v":0},0,null,{"$f":"COUNTIFS('1차 통합테스트'!$G3:$G363,\"개선\",'1차 통합테스트'!$M3:$M363,\"보류\")","v":0},0,null,{"$f":"COUNTIFS('1차 통합테스트'!$G3:$G363,\"보류\",'1차 통합테스트'!$M3:$M363,\"완료\")","v":18},{"$f":"V5/F5","v":1},null,{"$f":"COUNTIFS('1차 통합테스트'!$G3:$G363,\"보류\",'1차 통합테스트'!$M3:$M363,\"보류\")","v":0},{"$f":"Y5/F5","v":0}]
[null,"2차 통합 테스트",{"$f":"COUNTA('2차 통합테스트'!C3:C697)","v":693},{"$f":"COUNTIF('2차 통합테스트'!$G$3:$G$697,\"성공\")","v":555},{"$f":"COUNTIF('2차 통합테스트'!$G$3:$G$697,\"실패\")","v":94},{"$f":"COUNTIF('2차 통합테스트'!$G$3:$G$697,\"보류\")","v":24},{"$f":"COUNTIF('2차 통합테스트'!$G$4:$G$208,\"개선\")","v":0},null,null,{"$f":"COUNTIFS('2차 통합테스트'!$G3:$G697,\"실패\",'2차 통합테스트'!$M3:$M697,\"완료\")","v":93},0.98936170212765961,null,{"$f":"COUNTIFS('2차 통합테스트'!$G3:$G697,\"실패\",'2차 통합테스트'!$M3:$M697,\"보류\")","v":0},0,null,{"$f":"COUNTIFS('2차 통합테스트'!$G3:$G697,\"개선\",'2차 통합테스트'!$M3:$M697,\"완료\")","v":1},0,null,{"$f":"COUNTIFS('2차 통합테스트'!$G3:$G697,\"개선\",'2차 통합테스트'!$M3:$M697,\"보류\")","v":0},0,null,{"$f":"COUNTIFS('2차 통합테스트'!$G3:$G697,\"보류\",'2차 통합테스트'!$M3:$M697,\"완료\")","v":24},1,null,{"$f":"COUNTIFS('2차 통합테스트'!$G3:$G697,\"보류\",'2차 통합테스트'!$M3:$M697,\"보류\")","v":0},0]
[null,"3차 통합 테스트",{"$f":"COUNTA('3차 통합테스트'!C3:C269)","v":263},{"$f":"COUNTIF('3차 통합테스트'!$G$3:$G$269,\"성공\")","v":122},{"$f":"COUNTIF('3차 통합테스트'!$G$3:$G$269,\"실패\")","v":116},{"$f":"COUNTIF('3차 통합테스트'!$G$3:$G$269,\"보류\")","v":27},{"$f":"COUNTIF('3차 통합테스트'!$G$3:$G$269,\"개선\")","v":2},null,null,{"$f":"COUNTIFS('3차 통합테스트'!$G3:$G269,\"실패\",'3차 통합테스트'!$M3:$M269,\"완료\")","v":93},0.80172413793103448,null,{"$f":"COUNTIFS('3차 통합테스트'!$G3:$G269,\"실패\",'3차 통합테스트'!$M3:$M269,\"보류\")","v":22},0.18965517241379309,null,{"$f":"COUNTIFS('3차 통합테스트'!$G3:$G269,\"개선\",'3차 통합테스트'!$M3:$M269,\"완료\")","v":1},{"$f":"P7/G7","v":0.5},null,{"$f":"COUNTIFS('3차 통합테스트'!$G3:$G269,\"개선\",'3차 통합테스트'!$M3:$M269,\"보류\")","v":0},{"$f":"S7/G7","v":0},null,{"$f":"COUNTIFS('3차 통합테스트'!$G3:$G269,\"보류\",'3차 통합테스트'!$M3:$M269,\"완료\")","v":7},0.25925925925925924,null,{"$f":"COUNTIFS('3차 통합테스트'!$G3:$G269,\"보류\",'3차 통합테스트'!$M3:$M269,\"보류\")","v":2},7.407407407407407E-2]
[null,"4차 통합 테스트",{"$f":"COUNTA('4차 통합테스트'!C4:C210)","v":172},{"$f":"COUNTIF('4차 통합테스트'!$G$4:$G$210,\"성공\")","v":142},{"$f":"COUNTIF('4차 통합테스트'!$G$4:$G$210,\"실패\")","v":14},{"$f":"COUNTIF('4차 통합테스트'!$G$4:$G$210,\"보류\")","v":3},{"$f":"COUNTIF('4차 통합테스트'!$G$4:$G$210,\"개선\")","v":33},null,null,{"$f":"COUNTIFS('4차 통합테스트'!$G4:$G210,\"실패\",'4차 통합테스트'!$K4:$K210,\"완료\")","v":12},{"$f":"J8/E8","v":0.8571428571428571},null,{"$f":"COUNTIFS('4차 통합테스트'!$G4:$G210,\"실패\",'4차 통합테스트'!$K4:$K210,\"보류\")","v":0},{"$f":"M8/E8","v":0},null,{"$f":"COUNTIFS('4차 통합테스트'!$G4:$G210,\"개선\",'4차 통합테스트'!$K4:$K210,\"완료\")","v":10},{"$f":"P8/G8","v":0.30303030303030304},null,{"$f":"COUNTIFS('4차 통합테스트'!$G4:$G210,\"개선\",'4차 통합테스트'!$K4:$K210,\"보류\")","v":0},{"$f":"S8/G8","v":0},null,{"$f":"COUNTIFS('4차 통합테스트'!$G4:$G210,\"보류\",'4차 통합테스트'!$K4:$K210,\"완료\")","v":0},{"$f":"V8/F8","v":0},null,{"$f":"COUNTIFS('4차 통합테스트'!$G4:$G210,\"보류\",'4차 통합테스트'!$K4:$K210,\"보류\")","v":0},{"$f":"Y8/F8","v":0}]
[null,"5차 통합 테스트",{"$f":"COUNTA('5차 통합테스트'!C4:C99)","v":77},{"$f":"COUNTIF('5차 통합테스트'!$G$4:$G$99,\"성공\")","v":70},{"$f":"COUNTIF('5차 통합테스트'!$G$4:$G$99,\"실패\")","v":2},{"$f":"COUNTIF('5차 통합테스트'!$G$4:$G$99,\"보류\")","v":0},{"$f":"COUNTIF('5차 통합테스트'!$G$4:$G$99,\"개선\")","v":16},null,null,{"$f":"COUNTIFS('5차 통합테스트'!$G4:$G99,\"실패\",'5차 통합테스트'!$K4:$K99,\"완료\")","v":0},{"$f":"J9/E9","v":0},null,{"$f":"COUNTIFS('5차 통합테스트'!$G4:$G99,\"실패\",'5차 통합테스트'!$K4:$K99,\"보류\")","v":0},{"$f":"M9/E9","v":0},null,{"$f":"COUNTIFS('5차 통합테스트'!$G4:$G99,\"개선\",'5차 통합테스트'!$K4:$K99,\"완료\")","v":6},{"$f":"P9/G9","v":0.375},null,{"$f":"COUNTIFS('5차 통합테스트'!$G4:$G99,\"개선\",'5차 통합테스트'!$K4:$K99,\"보류\")","v":0},{"$f":"S9/G9","v":0},null,{"$f":"COUNTIFS('5차 통합테스트'!$G4:$G99,\"보류\",'5차 통합테스트'!$K4:$K99,\"완료\")","v":0},0,null,{"$f":"COUNTIFS('5차 통합테스트'!$G4:$G99,\"보류\",'5차 통합테스트'!$K4:$K99,\"보류\")","v":0},0]

{"sheet":"5차 통합테스트","index":1,"n_rows":98,"n_cols":15,"rows_kept":98,"cut":false,"hidden":false,"merged":[[2,0,2,14],[0,9,1,9],[0,10,1,10],[0,11,0,12],[0,13,0,14],[0,0,1,0],[0,1,1,1],[0,2,1,2],[0,3,0,5],[0,7,1,7],[0,8,1,8],[7,5,8,5],[14,2,16,2],[14,3,16,3],[14,4,16,4],[14,5,16,5],[3,0,16,0],[3,1,16,1],[7,2,8,2],[7,3,8,3],[7,4,8,4],[17,0,21,0],[17,1,21,1],[22,0,28,0],[22,1,28,1],[29,0,33,0],[29,1,33,1],[52,0,55,0],[57,4,60,4],[36,0,36,14],[37,0,51,0],[37,1,51,1],[54,3,55,3],[54,4,55,4],[54,5,55,5],[54,2,55,2],[52,1,55,1],[57,5,60,5],[68,0,77,0],[68,1,77,1],[72,2,74,2],[72,3,74,3],[72,4,74,4],[72,5,74,5],[57,3,60,3],[56,0,67,0],[56,1,67,1],[57,2,60,2],[87,0,94,0],[87,1,94,1],[95,0,97,0],[95,1,97,1],[79,0,79,14],[80,0,86,0],[80,1,86,1],[82,2,84,2],[82,3,84,3],[82,4,84,4],[82,5,84,5]]}
["TEST ID","테스트 케이스","시나리오","테스트 참여 및 수행일시",null,null,"테스트 결과","결함사항","개선사항","수용\n여부","처리\n상태","처리 결과",null,"처리 확인"]
[null,null,null,"참여자","수행일자","수행시간","성공",{"$nulls":4},"처리자","처리일자","확인자","확인일자"]
["전시 및 프로모션 관리"]
["FT_06_007","기획전 관리","1. 기획전 콘텐츠 확인","MD, 기획운영팀, 패션개발팀","2021-07-27","오전 10시~","성공"]
[null,null,"    1.1 회원/마케팅 > 기획전관리 이동하여 목록에서 88번 항목 선택","MD, 기획운영팀, 패션개발팀","2021-07-27","오전 10시~","성공"]
[null,null,"2. 각 요소 안내","MD, 기획운영팀, 패션개발팀","2021-07-27","오전 10시~","성공"]
[null,null,"    2.1 기본 항목들에 대한 안내","MD, 기획운영팀, 패션개발팀","2021-07-27","오전 10시~","성공"]
[null,null,"    2.2 템플릿이동하여 각 요소 안내\n          - HTML(상단), 리뷰조회, 쿠폰조회, 이미지첨부, 유의사항, HTML(하단), 상품등록","MD, 기획운영팀, 패션개발팀","2021-07-27","오전 10시~","개선",null,"템플릿 내 체크박스 설정이 초기화됨\n기본 설정 항목 내 체크박스 설정이 초기화됨\n >> 체크박스 초기회 기능 개선 필요",null,"완료","조민혜","07월 27일"]
[{"$nulls":6},"개선",null,"(공통) 상품 추가 팝업에서 \n> 상품상태가 승인완료가 기본이 되도록\n> 상품 타입은 일반상품이 기본이 되도록","Y","완료","조민혜","07월 29일"]
[null,null,"    2.3 상단 HTML 비노출 처리 후, Front 확인","MD, 기획운영팀, 패션개발팀","2021-07-27","오전 10시~","성공"]
[null,null,"3. 제휴 채널을 통한 진입 확인","MD, 기획운영팀, 패션개발팀","2021-07-27","오전 10시~","성공"]
[null,null,"    3.1 제휴채널 설정","MD, 기획운영팀, 패션개발팀","2021-07-27","오전 10시~","성공"]
[null,null,"    3.2 제휴채널을 통한 진입 불가 확인","MD, 기획운영팀, 패션개발팀","2021-07-27","오전 10시~","성공"]
[null,null,"4. 간단 등록 시연","MD, 기획운영팀, 패션개발팀","2021-07-27","오전 10시~","성공"]
[null,null,"    4.1 구분좌(코너) 등록 ","MD, 기획운영팀, 패션개발팀","2021-07-27","오전 10시~","성공"]
[{"$nulls":6},"개선",null,"구분자 폰트 확대","Y"]
[{"$nulls":6},"개선",null,"구분자 내 상품 순서 변경 기능 추가 요청"]
["FT_06_008","이벤트 관리","1. 기획전 콘텐츠 확인","MD, 기획운영팀, 패션개발팀","2021-07-27","오전 10시~","성공"]
[null,null,"    1.1 회원/마케팅 > 기획전관리 이동하여 목록에서 98번 항목 선택","MD, 기획운영팀, 패션개발팀","2021-07-27","오전 10시~","성공"]
[null,null,"2. 각 요소 안내","MD, 기획운영팀, 패션개발팀","2021-07-27","오전 10시~","성공"]
[null,null,"3. 사용 고객 등급 웰컴회원 해제","MD, 기획운영팀, 패션개발팀","2021-07-27","오전 10시~","성공"]
[null,null,"4. 웰컴회원으로 진입 불가 확인","MD, 기획운영팀, 패션개발팀","2021-07-27","오전 10시~","성공"]
["FT_06_009","설문조사 관리","1. 기획전 콘텐츠 확인","MD, 기획운영팀, 패션개발팀","2021-07-27","오전 10시~","성공",null,"단위 테스트로 갈음"]
[null,null,"    1.1 회원/마케팅 > 기획전관리 이동하여 목록에서 99번 항목 선택","MD, 기획운영팀, 패션개발팀","2021-07-27","오전 10시~","성공",null,"단위 테스트로 갈음"]
[null,null,"2. POLL 관리에서 신규 설문 생성\n    > 중복 참여 불가","MD, 기획운영팀, 패션개발팀","2021-07-27","오전 10시~","성공",null,"단위 테스트로 갈음"]
[null,null,"3. 설문조사 이벤트 생성하는 방법 안내","MD, 기획운영팀, 패션개발팀","2021-07-27","오전 10시~","성공",null,"단위 테스트로 갈음"]
[null,null,"4. Front에서 참여 진행","MD, 기획운영팀, 패션개발팀","2021-07-27","오전 10시~","성공",null,"단위 테스트로 갈음"]
[null,null,"5. 기존 생성했던 설문조사의 중복불가를 중복참여 가능으로 설정 후, Front에서 재참여 ","MD, 기획운영팀, 패션개발팀","2021-07-27","오전 10시~","성공",null,"단위 테스트로 갈음"]
[null,null,"6. 설문 참여 완료 후, 설문 참여자 데이터 확인","MD, 기획운영팀, 패션개발팀","2021-07-27","오전 10시~","성공",null,"단위 테스트로 갈음"]
["FT_06_010","출석체크 관리","1. 기획전 콘텐츠 확인","MD, 기획운영팀, 패션개발팀","2021-07-27","오전 10시~","성공",null,"단위 테스트로 갈음"]
[null,null,"    1.1 회원/마케팅 > 기획전관리 이동하여 목록에서 100번 항목 선택","MD, 기획운영팀, 패션개발팀","2021-07-27","오전 10시~","성공",null,"단위 테스트로 갈음"]
[null,null,"2. 기획전 관리 메뉴에서 출석체크 이벤트 생성","MD, 기획운영팀, 패션개발팀","2021-07-27","오전 10시~","성공",null,"단위 테스트로 갈음"]
[null,null,"3. 각 일자별 혜택 설정\n    - 1일자 : 100포인트, 3000원 할인 쿠폰제공","MD, 기획운영팀, 패션개발팀","2021-07-27","오전 10시~","성공",null,"단위 테스트로 갈음"]
[null,null,"4. 출석체크 이벤트 진입하여 출석체크 진행하고 혜택 확인","MD, 기획운영팀, 패션개발팀","2021-07-27","오전 10시~","성공",null,"단위 테스트로 갈음"]
[]
[]
["출고 및 클레임"]
["FT_04_001","주문 완료  > 배송 완료","1. 앞 주문한 케이스들 모두 출고 지시","기획운영팀, 패션개발팀, 개발담당자, 서보성 이사","2021-07-26","오후 2시~","성공"]
[null,null,"2. 송장 내, 사은품 정상적으로 찍히는지 확인","기획운영팀, 패션개발팀, 개발담당자, 서보성 이사","2021-07-26","오후 2시~","성공"]
[null,null,"3. 세트상품 정상적으로 찍히는지 확인","기획운영팀, 패션개발팀, 개발담당자, 서보성 이사","2021-07-26","오후 2시~","성공"]
[null,null,"4. 딜 상품 정상적으로 찍히는지 확인","기획운영팀, 패션개발팀, 개발담당자, 서보성 이사","2021-07-26","오후 2시~","성공"]
[null,null,"5. 송장번호, 송장 데이터 확인","기획운영팀, 패션개발팀, 개발담당자, 서보성 이사","2021-07-26","오후 2시~","성공"]
[null,null,"6. 일부 상품 확정전 결품 처리 --> 결품 문자 및 주문취소 처리 확인","기획운영팀, 패션개발팀, 개발담당자, 서보성 이사","2021-07-26","오후 2시~","성공"]
[null,null,"7. 출고확정 처리","기획운영팀, 패션개발팀, 개발담당자, 서보성 이사","2021-07-26","오후 2시~","성공"]
[]
[null,null,"입점사","기획운영팀, 패션개발팀, 개발담당자, 서보성 이사","2021-07-26","오후 2시~","성공"]
[null,null,"1. 주문서 다운로드 -> 상품 상태 변경확인","기획운영팀, 패션개발팀, 개발담당자, 서보성 이사","2021-07-26","오후 2시~","성공"]
[null,null,"2. 송장 등록","기획운영팀, 패션개발팀, 개발담당자, 서보성 이사","2021-07-26","오후 2시~","성공"]
[null,null,"3. 결품 1개 상품 처리 --> 결품문자 및 주문취소처리 확인","기획운영팀, 패션개발팀, 개발담당자, 서보성 이사","2021-07-26","오후 2시~","개선",null,"오류 얼럿 문구 수정 필요\n=> SUCCESS, ERROR로 표기되고 있음","Y",null,"김지철"]
[null,null,"4. 출고확정 처리","기획운영팀, 패션개발팀, 개발담당자, 서보성 이사","2021-07-26","오후 2시~","성공"]
[]
[null,null,"처리 후 Front에 각 상태 확인","기획운영팀, 패션개발팀, 개발담당자, 서보성 이사","2021-07-26","오후 2시~","개선",null,"품절취소 인 경우, 품절취소로 표기 필요","Y",null,"김지철"]
["FT_04_002","세트 상품 출고\n- WMS 일부 재고 없음","1. 앞 주문한 케이스 중, 세트 상품의 구성상품 중 하나를 0개로 설정","기획운영팀, 패션개발팀, 개발담당자, 서보성 이사","2021-07-26","오후 2시~","성공"]
[null,null,"2. 출고처 지정 배치 실행","기획운영팀, 패션개발팀, 개발담당자, 서보성 이사","2021-07-26","오후 2시~","성공"]
[null,null,"3. 품절로 인한 주문 취소 상태로 변경 확인","기획운영팀, 패션개발팀, 개발담당자, 서보성 이사","2021-07-26","오후 2시~","성공"]
[{"$nulls":6},"개선",null,"품절로 인한 결품인 경우 프론트 내 '품절 취소' 으로 노출 되도록 변경"]
["FT_04_003","배송 완료 > 교환","1. # 주문 건을 교환 요청","기획운영팀, 패션개발팀, 개발담당자, 서보성 이사","2021-07-26","오후 2시~","성공"]
[null,null,"2. 각 상품별로\n    > 미 접수 교환발송 1개\n    > 정상 교환 신청 1개\n    > 입점사 상품 1개 (프론트, BOS에서 처리)\n    > 미착 교환 상품 1개\n    > 과착 교환 상품 1개","기획운영팀, 패션개발팀, 개발담당자, 서보성 이사","2021-07-26","오후 2시~","개선",null,"CJ측으로 데이터 건수 보내는 기준 확인 필요 (오픈DB에 데이터 INSERT 시 건수 제한이 있는지?)","Y",null,"서보성"]
[{"$nulls":6},"개선",null,"회수예외처리에서 완료 버튼 선택 시, 얼럿 문구 수정(문구추후 전달 예정)\n=> SUCCESS, ERROR 로 나옴 => 문구 변경","Y",null,"김지철"]
[{"$nulls":6},"개선",null,"BOS\n직접배송 인 경우, 송장번호 외 택배사 내용 추가 필요 (프론트)","Y",null,"김지철"]
[{"$nulls":6},"개선",null,"교환 건에 대해서는 예약판매상품이라도 출고요청이 되어야 함","Y","완료","문달호","7월 27일"]
[null,null,"3. 접수 내용 진행","기획운영팀, 패션개발팀, 개발담당자, 서보성 이사","2021-07-26","오후 2시~","성공",null,"교환 완료 후, 상품 주문목록에 노출되는 건에 대해 재 확인 필요\n >> 협의 후, 진행","Y"]
[null,null,"4. 자사상품 인터페이스 실행 후 WMS 회수목록 확인> 입고대기여부확인","기획운영팀, 패션개발팀, 개발담당자, 서보성 이사","2021-07-26","오후 2시~","성공"]
[null,null,"5. 자사상품 WMS 회수예외 관리 확인","기획운영팀, 패션개발팀, 개발담당자, 서보성 이사","2021-07-26","오후 2시~","성공"]
[null,null,"6. SCM 로그인","기획운영팀, 패션개발팀, 개발담당자, 서보성 이사","2021-07-26","오후 2시~","성공"]
[null,null,"7. 입점상품 SCM 클레임 확인 -> 입고확인 및 회수컨펌","기획운영팀, 패션개발팀, 개발담당자, 서보성 이사","2021-07-26","오후 2시~","성공"]
[null,null,"8. 자사상품 클레임 송장 등록, 교환 출고 진행","기획운영팀, 패션개발팀, 개발담당자, 서보성 이사","2021-07-26","오후 2시~","성공"]
[null,null,"9. 교환 완료 확인","기획운영팀, 패션개발팀, 개발담당자, 서보성 이사","2021-07-26","오후 2시~","실패","리뷰 작성 시, 리뷰는 여러 번 작성할 수 있으나 포인트는 상품코드 기준으로 1회 지급\n > 월 1일부터 말일까지 최대지급 상품 수는 10개로 제한"]
["FT_04_004","배송 완료 > 반품","1. # 주문 건을 반품 요청","기획운영팀, 패션개발팀, 개발담당자, 서보성 이사","2021-07-26","오후 2시~","성공"]
[null,null,"2. 각 상품별로\n    > 미 접수 반품발송 1개\n    > 정상 반품 신청 1개\n    > 입점사 상품 1개\n    > 미착 반품 상품 1개\n    > 과착 반품 상품 1개","기획운영팀, 패션개발팀, 개발담당자, 서보성 이사","2021-07-26","오후 2시~","성공"]
[null,null,"3. 접수 내용 진행","기획운영팀, 패션개발팀, 개발담당자, 서보성 이사","2021-07-26","오후 2시~","성공"]
[null,null,"4. 자사상품 인터페이스 실행 후 WMS 회수목록 확인> 입고대기여부확인","기획운영팀, 패션개발팀, 개발담당자, 서보성 이사","2021-07-26","오후 2시~","성공"]
[null,null,"5. 자사상품 WMS 회수예외 관리 확인","기획운영팀, 패션개발팀, 개발담당자, 서보성 이사","2021-07-26","오후 2시~","실패","BOS\n주문변경번호 제공되지 않는 현상 수정 필요",null,null,null,"문달호"]
[{"$nulls":6},"개선",null,"기 신청한 목록에 대해 재 수정이 되는 현상에 대해 프로세스 확인 필요","Y",null,"문달호"]
[{"$nulls":6},"개선",null,"WMS 회수예외관리 화면에 주문변경번호 누락, <반품신청> 버튼 재노출","Y",null,"문달호"]
[null,null,"6. SCM 로그인","기획운영팀, 패션개발팀, 개발담당자, 서보성 이사","2021-07-26","오후 2시~","성공"]
[null,null,"7. 입점상품 SCM 클레임 확인 -> 입고확인 및 회수컨펌","기획운영팀, 패션개발팀, 개발담당자, 서보성 이사","2021-07-26","오후 2시~","성공",null,"프로세스 재협의 필요"]
[null,null,"8. BOS에서 환불컨펌 처리","기획운영팀, 패션개발팀, 개발담당자, 서보성 이사","2021-07-26","오후 2시~","성공"]
[]
["제휴몰 - 샵링커(상품 및 재고 연동)"]
["FT_05_003","샵링커-주문수집\n(주문 테스트 시, 진행)","1. \"BOS > 영업망관리 > 샵링커 > 샵링커주문수집관리\" 화면에서 주문일 입력 후 <주문수집> 버튼 클릭 ","CS, 기획운영팀, 패션개발팀","2021-07-27","오후 3시~","성공"]
[null,null,"    1.2. 해당 날짜에 대한 주문수집 진행된다. -> <조회> 버튼 클릭 해 결과를 확인한다. (성공, 실패 데이터 확인)","CS, 기획운영팀, 패션개발팀","2021-07-27","오후 3시~","성공"]
[null,null,"    1.3. 주문수집 결과가 성공인 데이터에 대해서는 <주문번호> 클릭 시 주문상세 팝업이 노출되며, 여기서 데이터를 확인한다. (사은품 세팅도 확인) 또는 \"BOS > 주문/배송 > 주문목록\" 화면에서 몰구분을 \"제휴몰\"로 선택 후 조회해서 확인한다.","CS, 기획운영팀, 패션개발팀","2021-07-27","오후 3시~","개선",null,"화면-가용재고 실패 관련 툴팁표시 ","Y","완료","조민혜","7월 27일"]
[{"$nulls":6},"개선",null,"미매핑건 쇼핑몰주문번호 항목 빈칸 확인","Y","완료","조민혜","7월 27일"]
[{"$nulls":6},"개선",null,"주문수집 완료 후, 제휴몰에 업로드 가능한 상태로 초기화할 수 있는 기능 추가","Y","완료","조민혜","7월 29일"]
[null,null,"    1.4. [부분결품 품절] 주문수집 중 한 명이 주문한 3건 중 2건의 실패사유가 \"재고부족\"으로 인한 주문건일 경우 -> 1건만 주문등록이 된다. 재고부족으로 실패한 2건에 대해 \"부분결품 품절\" 알림톡이 발송된다. (알림톡 발송 결과 확인 불가 - 운영 수집건이므로 -> 제휴몰주문업로드를 가지고 테스트 진행)","CS, 기획운영팀, 패션개발팀","2021-07-27","오후 3시~","성공"]
[null,null,"    1.5. [미할당 전체품절] 주문수집 중 한 명이 주문한 3건 중 3건 모두 실패사유가 \"재고부족\"으로 인한 주문실패건일 경우. -> 주문등록이 되지 않는다. 재고부족으로 실패한 3건에 대해 \"미할당 전체품절\" 알림톡이 발송된다. (알림톡 발송 결과 확인 불가 - 운영 수집건이므로 -> 제휴몰주문업로드를 가지고 테스트 진행)","CS, 기획운영팀, 패션개발팀","2021-07-27","오후 3시~","성공"]
["FT_05_004","제휴몰주문업로드\n(주문 테스트 시, 진행)","1. \"BOS > 영업망관리 > 제휴몰주문업로드\" 화면에서 주문엑셀파일을 업로드 (사전 준비)","CS, 기획운영팀, 패션개발팀","2021-07-27","오후 3시~","성공"]
[null,null,"    1.1. 주문업로드 데이터 중 매핑정보(제휴몰ID, 자사상품코드, 옵션코드)가 올바르지 않은 경우 리스트에 빨간색으로 표기된다.","CS, 기획운영팀, 패션개발팀","2021-07-27","오후 3시~","성공"]
[null,null,"2. <주문등록> 버튼을 클릭해 주문을 생성","CS, 기획운영팀, 패션개발팀","2021-07-27","오후 3시~","성공"]
[null,null,"   2.1 주문등록이 완료되면 결과 팝업이 노출 (성공 00건, 실패 00건)","CS, 기획운영팀, 패션개발팀","2021-07-27","오후 3시~","성공"]
[null,null,"    2.2. [부분결품 품절] 주문수집 중 한 명이 주문한 3건 중 2건의 실패사유가 \"재고부족\"으로 인한 주문건일 경우 -> 1건만 주문등록이 된다. 재고부족으로 실패한 2건에 대해 \"부분결품 품절\" 알림톡이 발송된다. (알림톡 발송 결과 확인)","CS, 기획운영팀, 패션개발팀","2021-07-27","오후 3시~","성공"]
[null,null,"    2.3. [미할당 전체품절] 주문수집 중 한 명이 주문한 3건 중 3건 모두 실패사유가 \"재고부족\"으로 인한 주문실패건일 경우. -> 주문등록이 되지 않는다. 재고부족으로 실패한 3건에 대해 \"미할당 전체품절\" 알림톡이 발송된다. (알림톡 발송 결과 확인)","CS, 기획운영팀, 패션개발팀","2021-07-27","오후 3시~","성공"]
[null,null,"3 <결과확인> 버튼을 클릭해 결과를 조회해 성공/실패 내역을 확인한다.","CS, 기획운영팀, 패션개발팀","2021-07-27","오후 3시~","성공"]
[null,null,"   3.1. 주문수집 결과가 성공인 데이터에 대해서는 <주문번호> 클릭 시 주문상세 팝업이 노출되며, 여기서 데이터를 확인한다. (사은품 세팅도 확인) 또는 \"BOS > 주문/배송 > 주문목록\" 화면에서 몰구분을 \"제휴몰\"로 선택 후 조회해서 확인한다.","CS, 기획운영팀, 패션개발팀","2021-07-27","오후 3시~","성공"]
["FT_05_005","샵링커-송장전송\n(출고 테스트 시, 진행)","1. \"BOS > 영업망관리 > 샵링커 > 송장전송관리\" 화면에서 <송장전송> 버튼 클릭 (사전 준비)","CS, 기획운영팀, 패션개발팀","2021-07-27","오후 3시~","성공"]
[null,null,"    1.1 그 시점의 제휴몰주문 건중 배송중이면서 송장전송이 안 된 데이터가 발송된다. ","CS, 기획운영팀, 패션개발팀","2021-07-27","오후 3시~","성공"]
[null,null,"    1.2. 실패건 전송이력 데이터로 확인 (주문수집 데이터는 운영 데이터이며, 개발 계정의 주문데이터가 없기 때문임. 전송실패 로그로만 확인 가능)","CS, 기획운영팀, 패션개발팀","2021-07-27","오후 3시~","성공"]

{"sheet":"4차 통합테스트","index":2,"n_rows":209,"n_cols":15,"rows_kept":209,"cut":false,"hidden":false,"merged":[[91,5,92,5],[64,5,65,5],[64,4,65,4],[64,3,65,3],[64,2,65,2],[0,13,0,14],[2,0,2,14],[80,0,80,14],[25,2,27,2],[28,2,32,2],[63,0,68,0],[63,1,68,1],[11,5,14,5],[11,4,14,4],[11,3,14,3],[25,5,27,5],[25,4,27,4],[25,3,27,3],[47,3,48,3],[47,4,48,4],[47,5,48,5],[69,1,77,1],[69,0,77,0],[3,0,35,0],[0,3,0,5],[0,10,1,10],[11,2,14,2],[3,1,35,1],[36,1,44,1],[45,0,53,0],[45,1,53,1],[54,0,62,0],[54,1,62,1],[36,0,44,0],[28,3,32,3],[28,4,32,4],[28,5,32,5],[0,11,0,12],[0,8,1,8],[0,9,1,9],[0,1,1,1],[0,0,1,0],[0,2,1,2],[0,7,1,7],[47,2,48,2],[192,0,198,0],[192,1,198,1],[81,0,98,0],[81,1,98,1],[95,2,96,2],[101,0,101,14],[102,0,103,0],[102,1,103,1],[104,0,107,0],[91,2,92,2],[95,3,96,3],[95,4,96,4],[95,5,96,5],[169,0,181,0],[169,1,181,1],[182,0,186,0],[182,1,186,1],[187,0,191,0],[187,1,191,1],[135,0,140,0],[135,1,140,1],[125,0,128,0],[91,3,92,3],[91,4,92,4],[125,1,128,1],[104,1,107,1],[110,0,110,14],[111,0,114,0],[111,1,114,1],[115,0,124,0],[115,1,124,1],[137,2,140,2],[137,3,140,3],[137,4,140,4],[137,5,140,5],[206,0,208,0],[206,1,208,1],[199,0,203,0],[199,1,203,1],[205,0,205,14],[132,5,134,5],[132,4,134,4],[132,3,134,3],[132,2,134,2],[129,1,134,1],[129,0,134,0],[141,0,152,0],[141,1,152,1],[148,2,149,2],[148,3,149,3],[148,4,149,4],[148,5,149,5],[155,0,155,14],[156,0,168,0],[156,1,168,1],[167,2,168,2],[167,3,168,3],[167,4,168,4],[167,5,168,5]]}
["TEST ID","테스트 케이스","시나리오","테스트 참여 및 수행일시",null,null,"테스트 결과","결함사항","개선사항","수용\n여부","처리\n상태","처리 결과",null,"처리 확인"]
[null,null,null,"참여자","수행일자","수행시간","성공",{"$nulls":4},"처리자","처리일자","확인자","확인일자"]
["상품입고/등록/출고"]
["FT_01_001","자사 상품 입고 > 배송 완료","1. WMS/AS_IS 미등록 품번에 대해 스캔 입고","기획운영팀, 패션개발팀","2021-07-21","오후 2시~","성공"]
[null,null,"2. WMS입고상품수신 배치 (cron.goods.wms.incomelot.receive) 실행","기획운영팀, 패션개발팀","2021-07-21","오후 2시~","성공"]
[null,null,"3. \"BOS > WMS입고상품관리\"에서 SKU별 데이터 확인","기획운영팀, 패션개발팀","2021-07-21","오후 2시~","성공"]
[null,null,"4. \"BOS > WMS입고단품목록\"에서 미등록된 상품 확인","기획운영팀, 패션개발팀","2021-07-21","오후 2시~","성공"]
[null,null,"    4.1. 모델번호가 있는 상품은 상품으로 등록 가능 (EOF11AJM33)","기획운영팀, 패션개발팀","2021-07-21","오후 2시~","성공"]
[null,null,"    4.2. 모델번호가 없는 상품은 사은품으로 등록 가능 -> <사은품> 등록 버튼 클릭해 사은품을 등록","기획운영팀, 패션개발팀","2021-07-21","오후 2시~","성공"]
[null,null,"5. SCM에 촬영업체로 로그인 (ID/PW : eskimfilm / 1q2w3e4r5t)","기획운영팀, 패션개발팀","2021-07-21","오후 2시~","성공"]
[null,null,"    5.1. \"SCM > 상품 > 상품관리 > 자사단품등록\"에서 해당 정보 입력하고 <저장> 버튼 클릭","기획운영팀, 패션개발팀","2021-07-21","오후 2시~","성공"]
[null,null,"    5.2. \"SCM > 상품 > 상품관리 > 상품목록\"에서 위에 등록한 상품 조회 후 상품코드 클릭해서 \"상품상세\" 팝업 화면의 \"옵션/재고\" 정보 탭에서 <등록> 버튼 클릭해 이미지 업로드","기획운영팀, 패션개발팀","2021-07-21","오후 2시~","개선",null,"기본 대표와 마우스 오버를 기본적으로 1, 2 번으로 고정할 수 있도록 개선 요청\n=> 파일명 규칙대로 들어오지 않을 경우 (예를 들어 2번이 소재컷일 경우) 문제될 수 있음. 따라서 명확한 정의가 필요함\n >> 요구사항으로 진행 결정 / 잘못된 이미지 업로드는 담당자의 책임","Y"]
[{"$nulls":6},"개선",null,"주문 시, 재고를 바라보는 데이터가 BOS 판매가능재고가 아닌 WMS 실 재고를 바라볼 수 있도록 (예를 들어 유아동의 경우 대량 구매건이 있어서 이슈가 생길 수 있음)\n=> WMS재고(SKU단위 65,000건 기준) 배치가 10분 내에 수행되며, 주문이 되면 출고대기건을 집계하고 있어 실제 고객이 구매할 수 있는 재고수에 출고대기건을 차감해 적용해 처리하고 있음. 따라서 실시간 처리 시 성능상 문제도 있어 배치재고로 처리하는 것으로 고객과 합의함(7/23일)","N"]
[{"$nulls":6},"개선",null,"상품 사이즈옵션 순서가 WMS에서 들어온 순서가 뒤죽바죽이여도 오름차순으로 자동으로 노출될 수 있도록한 as-is 쿼리 사용해 달라(영문으로 된 사이즈 순서는 확인 필요)\n=> 사이즈 노출 순서 기준에 대해 알려주세요","Y"]
[{"$nulls":6},"개선",null,"상세정보 내 정보유지 기능 옆에 안내 문구 제공 필요 / 저장 시, 팝업 안내 문구 수정 필요\n\n>> 상품상세정보 탭의 정보를 수정하는 경우는 정보유지 체크박스를 체크해제 하신후 저장버튼을 눌러주세요\n(정보유지에 체크가 되어 있으면 변경사항이 반영되지 않습니다)\n나머지 다른 탭은 저장버튼 클릭시 변경한 사항이 이상없이 반영됩니다. 계속하시겠습니까 ?","Y",null,"조민혜"]
[null,null,"6. \"BOS > 상품 > 상품관리 > 상품목록\"에서 위에 등록한 상품 조회 후 상품코드 클릭해서 \"상품상세\" 팝업 화면에서 옵션 1개 추가금(1,000원) 부여 및 \"승인완료\"로 상태 변경","기획운영팀, 패션개발팀","2021-07-21","오후 2시~","성공"]
[null,null,"7. 위에 등록한 상품으로 프론트의 상품상세 페이지로 이동해 옵션 1개의 추가금 데이터 확인","기획운영팀, 패션개발팀","2021-07-21","오후 2시~","성공",null,"네이버 주문형 주문 시, 네이버 배송지 주소못불러옴 >> 로그인한 계정의 네이버 주소 값으로서 이상 없음"]
[null,null,"8. 상품 추가금 옵션 1개, 단일옵션 1개 장바구니에 담아 구매","기획운영팀, 패션개발팀","2021-07-21","오후 2시~","성공",null,"네이버 주문형 주문 시, 네이버 배송지 주소못불러옴 >> 로그인한 계정의 네이버 주소 값으로서 이상 없음"]
[null,null,"9. WMS로 출고지정및요청 배치 실행 후 프론트/BOS의 상태 확인 (상품준비중)","기획운영팀, 패션개발팀, 서보성 이사","2021-07-21","오후 2시~","성공"]
[null,null,"10. WMS에서 출고지시 배치 실행 > 피킹지시(송장채번됨) -> 송장출력 (서보성 이사 지원 필요)","기획운영팀, 패션개발팀, 서보성 이사","2021-07-21","오후 2시~","성공"]
[null,null,"11. WMS로부터 송장번호수신 배치 실행 -> FRONT/BOS 상태 확인 (배송준비중)","기획운영팀, 패션개발팀, 서보성 이사","2021-07-21","오후 2시~","성공"]
[null,null,"12. WMS에서 출고확정 처리 -> CJ대한통운으로 배송지시송신 배치 실행 -> 스윗트래커 확인","기획운영팀, 패션개발팀, 서보성 이사","2021-07-21","오후 2시~","성공"]
[null,null,"13. BOS에서 출고결과수신 배치 실행 후 FRONT/BOS 상태 확인 (배송중)","기획운영팀, 패션개발팀, 서보성 이사","2021-07-21","오후 2시~","성공"]
[null,null,"    13.1. 마이페이지의 해당 주문건에 대해 상태 확인 (<배송추적> 버튼 노출. 단, 내부망WMS의 송장번호를 운영WMS의 송장번호로 동일하게 사용중이며 따라서, 테스트 시의 운영WMS이 송장번호는 이미 배송완료로 된 상태이어서 노출 안 될 수도 있음)","기획운영팀, 패션개발팀, 서보성 이사","2021-07-21","오후 2시~","성공"]
[null,null,"14. 배송중인 주문건에 대해 스윗트래커에 배송추적요청 배치 실행 (결과가 최대 2시간 안에 도착하며 그때 FRONT/BOS 상태 확인)","기획운영팀, 패션개발팀, 서보성 이사","2021-07-21","오후 2시~","성공"]
[null,null,"    14.1. 마이페이지의 해당 주문건에 대해 상태 확인 (리뷰 버튼 노출 확인)","기획운영팀, 패션개발팀, 서보성 이사","2021-07-21","오후 2시~","개선",null,"키, 몸무게 필수여부 확인 필요 > 선택값으로 변경","Y",null,"조민혜"]
[{"$nulls":6},"개선",null,"BOS 목록에서 영상인지, 이미지 인지 확인할 수 있는 기능 필요 > 영상, 승인 컬럼 추가 필요\n=> 목록의 \"상품평유형\" 값을 \"일반, 포토, 영상, 포토/영상\"으로 변경\n승인 칼럼은 \"확인어부\" 칼럼임","Y","완료","김덕규","2021-07-24","조현민","7월 28일"]
[{"$nulls":6},"개선",null,"상품상세와 마이페이지의 리뷰 수량은 \"전입집계합 + 당일건수합\"으로 처리 필요","Y",null,"조민혜"]
[null,null,"    14.2. 스윗트래커로부터 배송완료 콜백이 호출된 후 상태 확인 (배송완료)","기획운영팀, 패션개발팀","2021-07-21","오후 2시~","실패","BOS\n출고처지정일시 정보 노출되지 않음",null,null,"완료","전석훈","2021-07-22"]
[{"$nulls":6},"실패","Front\n배송완료 시, 하단에 구매확정 안내 정보가 비정상으로 노출",null,null,"완료","문달호","2021-07-21","조현민","7월 26일"]
[{"$nulls":6},"실패","Front\n마이페이지 내 주문내역에서 A상품 구매확정 후, 위치가 변화되는 현상","정렬기준은 \"주문상태코드\" 기준임. 정렬기준을 다시 정리해 주세요.\n >> 주문접수, 상품준비중, 배송중, 배송완료 순으로 노출되면 됨","Y"]
[{"$nulls":6},"개선",null,"배송완료 시, 배송조회 버튼 비노출되고 있는데 안사라지게 할 것인지 확인 필요\n >> 마크업 변경 수준건으로 개선 불가\n >> 다른 대안 고민 필요\n >>협의 필요","N"]
[{"$nulls":6},"개선",null,"주문목록 진입 시, 기본 일주일로 기간 정하고 다른 기간 검색 버튼은 미선택 상태로 전환","Y"]
[null,null,"15. \"FRONT > 마이페이지\"에서 구매확정 처리","기획운영팀, 패션개발팀","2021-07-21","오후 2시~","성공"]
[null,null,"    15.1. \"FRONT > 마이페이지 > 주문확인/배송조회\"에서 해당 주문건의 상태 확인 (구매확정)","기획운영팀, 패션개발팀, 서보성 이사","2021-07-21","오후 2시~","성공"]
[null,null,"    15.2. 구매포인트 적립된 걸 확인 (\"FRONT > 마이페이지 > STYLE포인트\" 화면에서 확인)","기획운영팀, 패션개발팀, 서보성 이사","2021-07-21","오후 2시~","성공"]
["FT_01_002","업체 상품 등록 및 확인","1. SCM에 입점업체로 로그인 (ID/PW : eskimSupply / 1q2w3e4r5t)","기획운영팀, 패션개발팀, 입점MD","2021-07-21","오전 10 ~12시","성공"]
[null,null,"2. \"SCM > 상품 > 상품관리 > 상품대량등록\"에서 업체명 옆의 배송비 정책, 출고처 설정","기획운영팀, 패션개발팀, 입점MD","2021-07-21","오전 10 ~12시","성공"]
[null,null,"3. 엑셀양식 다운로드 및 엑셀양식에 정보 입력 (사전 준비)","기획운영팀, 패션개발팀, 입점MD","2021-07-21","오전 10 ~12시","성공"]
[null,null,"4. <대량입점상품등록> 버튼 클릭해 엑셀파일 업로드하여 입점상품 등록","기획운영팀, 패션개발팀, 입점MD","2021-07-21","오전 10 ~12시","성공"]
[null,null,"5. 리스트에서 등록 결과 확인 (상품등록여부가 Y인 것만 정상 등록된 것임)","기획운영팀, 패션개발팀, 입점MD","2021-07-21","오전 10 ~12시","성공"]
[null,null,"6. 입점 상품 이미지 파일명 규칙에 맞게 파일명 변경 후    <이미지대량등록> 버튼 클릭해 이미지 업로드\n    [파일명 규칙]\n    상품메인컷 : 상품코드_01.jpg(앞),상품코드_02.jpg(뒤)\n    상품모델컷 : 상품코드_C1.jpg ~ 상품코드_C5.jpg\n    상품상세컷 : 상품코드_D1.jpg ~ 상품코드_D20.jpg\n    상품소재컷 : 상품코드_F1.jpg\n    상품라벨컷 : 상품코드_L1.jpg, (상품코드_L2.jpg)","기획운영팀, 패션개발팀, 입점MD","2021-07-21","오전 10 ~12시","성공"]
[null,null,"    6.1. 상품 등록이 정상적으로 되면 \"정보부족\" 상태가 된다. (7번 항목에서 확인)","기획운영팀, 패션개발팀, 입점MD","2021-07-21","오전 10 ~12시","성공"]
[null,null,"7. \"BOS > 상품 > 상품관리 > 상품목록\"에서 위에 등록한 상품 조회 후 상품코드 클릭해서 \"상품상세\" 팝업 화면에서 \"승인완료\"로 상태 변경 후 저장","기획운영팀, 패션개발팀, 입점MD","2021-07-21","오전 10 ~12시","성공"]
[null,null,"8. 위에 등록한 상품으로 프론트의 상품상세 페이지로 이동해 확인","기획운영팀, 패션개발팀, 입점MD","2021-07-21","오전 10 ~12시","성공"]
["FT_01_003","딜 상품 생성 및 확인","1. \"BOS > 상품 > 상품관리 > 상품목록\"에서 <딜상품등록> 선택하여 구성 진행","MD, 기획운영팀, 패션개발팀","2021-07-21","오전 10 ~12시","개선",null,"상태일괄적용 \n> 버튼 삭제 후, 그냥 열려 있는 상태로","Y","완료","김은실","7월 27일"]
[null,null,"2. 대표 상품명, 성별, 제조년월일, 년도/시즌, 원산지 설정","MD, 기획운영팀, 패션개발팀","2021-07-21","오전 10 ~12시","성공"]
[null,null,"3. <구성상품추가>를 선택하여 딜 구성상품추가 설정 (일반상품만 추가 가능하며 최대 200개까지 등록 가능)","MD, 기획운영팀, 패션개발팀","2021-07-21","오전 10 ~12시","성공"]
[{"$nulls":6},"개선",null,"딜상품 내 구성상품 순서 수정 \n> 엑셀로 변경\n> 양식 내,컬럼 추가 필요\n >> 협의 필요","Y"]
[null,null,"4. 기준으로 설정할 상품에 기준여부(품목/전시카테고리) 선택, 대표가격으로 설정할 상품에 대표여부 선택 후 저장","MD, 기획운영팀, 패션개발팀","2021-07-21","오전 10 ~12시","개선",null,"제조년월일, 원산지 필수 항목 \n > 제조년월일 오늘날짜로 나오게 변경\n > 원산지는 대한민국이 기본으로 변경\n>> 제조년월과 원산지는 화면에서 미노출하고 서버에서 처리","Y",null,"조민혜"]
[null,null,"5. 상품목록에서 등록일자를 <오늘>로 설정 후 조회하여 등록상품 확인","MD, 기획운영팀, 패션개발팀","2021-07-21","오전 10 ~12시","성공"]
[null,null,"6. 상품명을 클릭해 \"상품 상세\"팝업 화면의  \"옵션/재고정보\"탭에서 <등록> 버튼을 클릭하여 이미지 업로드","MD, 기획운영팀, 패션개발팀","2021-07-21","오전 10 ~12시","성공"]
[null,null,"7. \"기본정보\"탭의 상품상태를 \"승인완료\"로 상태 변경 후 저장","MD, 기획운영팀, 패션개발팀","2021-07-21","오전 10 ~12시","성공"]
[null,null,"8. 등록한 상품을 프론트의 상품상세 페이지로 이동해 구성 내용 노출되는지 확인","MD, 기획운영팀, 패션개발팀","2021-07-21","오전 10 ~12시","성공"]
["FT_01_004","세트상품 생성 및 확인","1. \"BOS > 상품 > 상품관리 > 상품목록\"에서 <세트상품등록> 선택하여 구성 진행","MD, 기획운영팀, 패션개발팀","2021-07-21","오전 10 ~12시","성공"]
[null,null,"2. 대표 상품명, 성별, 제조년월일, 년도/시즌, 원산지 설정","MD, 기획운영팀, 패션개발팀","2021-07-21","오전 10 ~12시","성공"]
[null,null,"3. <구성상품추가>를 선택하여 세트 구성상품추가 설정\n    - 자사 내 동일 업체 내 일반상품으로 구성 가능","MD, 기획운영팀, 패션개발팀","2021-07-21","오전 10 ~12시","성공"]
[null,null,"4. 구성상품별 세트구성수량 및 세트구성상품판매가 설정","MD, 기획운영팀, 패션개발팀","2021-07-21","오전 10 ~12시","개선",null,"제조년월일, 원산지 필수 항목 \n > 제조년월일 오늘날짜로 나오게 변경\n > 원산지는 대한민국이 기본으로 변경\n>> 제조년월과 원산지는 화면에서 미노출하고 서버에서 처리","Y",null,"조민혜"]
[null,null,"5. 기준으로 설정할 상품에 기준여부 선택 후, 저장","MD, 기획운영팀, 패션개발팀","2021-07-21","오전 10 ~12시","성공"]
[null,null,"6. 상품목록에서 등록일자를 <오늘>로 설정 후 조회하여 등록상품 확인","MD, 기획운영팀, 패션개발팀","2021-07-21","오전 10 ~12시","성공"]
[null,null,"7. 상품명을 클릭해 \"상품 상세\"팝업 화면의  \"옵션/재고정보\"탭에서 <등록> 버튼을 클릭하여 이미지 업로드","MD, 기획운영팀, 패션개발팀","2021-07-21","오전 10 ~12시","성공"]
[null,null,"8. \"기본정보\"탭의 상품상태를 \"승인완료\"로 상태 변경 후 저장","MD, 기획운영팀, 패션개발팀","2021-07-21","오전 10 ~12시","성공"]
[null,null,"9. 등록한 상품을 프론트의 상품상세 페이지로 이동해 구성 내용 노출되는지 확인","MD, 기획운영팀, 패션개발팀","2021-07-21","오전 10 ~12시","성공"]
["FT_01_005","예약판매 상품 등록 및 확인","1. \"BOS > 상품 > 상품관리 > 상품예약판매관리\" 에서 <예약판매등록> 선택","MD, 기획운영팀, 패션개발팀","2021-07-21","오전 10 ~12시","성공"]
[null,null,"2. 출고예정일 7월 31일로 설정 후 <상품조회>를 쿨릭하여 상품설정후 자장","MD, 기획운영팀, 패션개발팀","2021-07-21","오전 10 ~12시","개선",null,"세트상품의 할인율 표시 개선으로 노출 필요","Y","완료","김은실","7월 27일"]
[{"$nulls":6},"개선",null,"세트상품 상품기술 하단 내 각 상품명 노출될 수 있도록 개선 필요","Y",null,"조민혜"]
[null,null,"3. 예약판매로 등록한 상품의 프론트 상품상세 페이지로 이동하여 예약 날짜 확인","MD, 기획운영팀, 패션개발팀","2021-07-21","오전 10 ~12시","성공"]
[null,null,"4. 주문을 하고 출고처지정 배치를 실행","기획운영팀, 패션개발팀","2021-07-21","오전 10 ~12시","개선",null,"(예약일을 더 딜레이 시키고 싶어할 때, 출고예정일 이전에) 수정 기능을 넣어달라\n > 아직 도래하지 않은 출고예정일만 변경 가능","Y",null,"조민혜"]
[null,null,"5. \"BOS > 주문/배송 > 주문관리 > 주문목록\"  화면에서 해당 주문번호로 조회해 \"출고처\" 정보가 없는 것을 확인","기획운영팀, 패션개발팀","2021-07-21","오전 10 ~12시","성공"]
["FT_01_006","사은품 등록 및 확인","1. WMS에 입고된 상품인지 확인","MD, 기획운영팀, 패션개발팀","2021-07-22","오후 3시~","성공"]
[null,null,"2. 해당 상품 선택하여 사은픔 등록 선택","MD, 기획운영팀, 패션개발팀","2021-07-22","오후 3시~","성공"]
[null,null,"3. 사은품 관리로 메뉴로 이동하여 사은품 등록된 상품인지 확인","MD, 기획운영팀, 패션개발팀","2021-07-22","오후 3시~","성공"]
[null,null,"4. (이미지가 업는 경우) 사은품 상세에서 이미지 등록\n     또는 SCM에서 사은품 관리에서 이미지 등록","MD, 기획운영팀, 패션개발팀","2021-07-22","오후 3시~","성공"]
[null,null,"5. 사은품 프로모션 관리에서 프로모션 등록","MD, 기획운영팀, 패션개발팀","2021-07-22","오후 3시~","성공"]
[null,null,"6. 프로모션명, 행사기간, 적용몰 구분 설정","MD, 기획운영팀, 패션개발팀","2021-07-22","오후 3시~","성공"]
[null,null,"7. 대상 상품 설정\n    - 브랜드(버커루, ab.f.z), 상품 설정","MD, 기획운영팀, 패션개발팀","2021-07-22","오후 3시~","성공"]
[null,null,"8. 적용 사은품 정보\n    - 지급방법 : 선택 사은품 (적용몰을 제휴몰을 선택 시 불가. 자사몰만 적용됨)\n    - 사은품 조건 1 : 금액 50000원\n       >> 지급사은품 2개 선택 , 한개 사은품 포인트 1000원 설정, 한정수량 10으로 \n            각 설정(항목 더블클릭)\n\n    - 사은품 조건 2 : 금액 70000원\n       >> 지급사은품 1개 선택 ,포인트 미입력, 한정수량 10으로 각 설정(항목 더블클릭)","MD, 기획운영팀, 패션개발팀","2021-07-22","오후 3시~","실패","등록 시, 오류 발생 (금액 콤마(,) 때문)",null,null,"완료","이태영","2021-07-22","조현민","07월 26일"]
[null,null,"9. 설정 완료 후, Front에서 해당 상품 주문진행하여 주문서에서 정상 노출되는지 확인","MD, 기획운영팀, 패션개발팀","2021-07-22","오후 3시~","성공"]
[]
[]
["회원 관련"]
["FT_02_001","일반회원 가입 > 간편회원가입 > 탈퇴","1. \"Front > 회원가입\" 화면에서 일반회원 가입","기획운영팀, 패션개발팀","2021-07-21","오후 4시~","성공"]
[null,null,"    1.1. 가입완료이 되면 자동 로그인 되며 메인으로 이동한다. (가입축하쿠폰이 발급되며 알림톡이 발송. 알림톡 확인)","기획운영팀, 패션개발팀","2021-07-21","오후 4시~","성공"]
[null,null,"    1.2. \"FRONT > 마이페이지 > 쿠폰\" 화면에서 쿠폰(신규가입감사) 노출 확인 또는 \"BOS > 활동회원목록\"에서 해당 계정 검색해서 쿠폰 1개 발급된 거 확인 (회원상세 > 쿠폰내역 탭)","기획운영팀, 패션개발팀","2021-07-21","오후 4시~","성공"]
[null,null,"2. 로그아웃 후 위 일반회원으로 가입된 회원이 네이버 아이디로 간편 가입 (FRONT에 기가입된 CI와 동일한 CI를 가진 네이버 계정으로 간편가입 시작)","기획운영팀, 패션개발팀","2021-07-21","오후 4시~","성공"]
[null,null,"    2.1. 프론트의 \"GNB > 회원가입\" 링크 클릭 -> 회원가입 화면에서 <네이버> 아이콘 이미지 클릭","기획운영팀, 패션개발팀","2021-07-21","오후 4시~","성공"]
[null,null,"    2.2. 가입완료 후 자동 로그인 되며 메인으로 이동된다. 기가입자의 연동여부는 TB_CUSTOMER_SNS 테이블의 데이터를 확인한다.\n\nSELECT * \nFROM TB_CUSTOMER_SNS\nWHERE CUST_NO IN (\n\tSELECT CUST_NO \n\tFROM TB_CUSTOMER\n\tWHERE CUST_ID = 'duckkyu71'\n)","기획운영팀, 패션개발팀","2021-07-21","오후 4시~","성공"]
[null,null,"3. 로그아웃 후 해당 네이버 로그인을 해서 계정로그인 여부 확인","기획운영팀, 패션개발팀","2021-07-21","오후 4시~","성공"]
[null,null,"    3.1. 상품 클릭하고 \"Front > 상품상세\" 이동하여 상품문의 1개 남김","기획운영팀, 패션개발팀","2021-07-21","오후 4시~","성공"]
[null,null,"    3.2. \"Front > 고객센터\" 이동하여 1:1문의 1개 남김","기획운영팀, 패션개발팀","2021-07-21","오후 4시~","성공"]
[null,null,"    3.3. \"BOS > 회원/마케팅 > 회원관리 > 활동회원목록 > 해당계정검색 > 회원상세\" 화면의 포인트내역 탭에서 5,000 포인트 부여","기획운영팀, 패션개발팀","2021-07-21","오후 4시~","성공"]
[null,null,"    3.4. BOS > 회원/마케팅 > 상담관리 > 1:1문의 이동, 작성글에 답변 저장 --> 알림톡 수신 확인","기획운영팀, 패션개발팀","2021-07-21","오후 4시~","개선",null,"답변 템플릿 자동으로 노출되도록 수정 필요","Y","완료","김덕규","2021-07-22","조현민","7월 26일"]
[{"$nulls":6},"개선",null,"등록된 이미지 팝업 사이즈 크게 조절 필요","Y","완료","김덕규","2021-07-24"]
[null,null,"    3.5. BOS > 회원/마케팅 > 상담관리 > 상품문의관리 이동, 작성글에 답변 저장 -->알림톡 수신 확인","기획운영팀, 패션개발팀","2021-07-21","오후 4시~","개선",null,"답변 템플릿 자동으로 노출되도록 수정 필요","Y","완료","김덕규","2021-07-22","조현민","7월 26일"]
[null,null,"4. \"Front > 마이페이지\" 이동. 쿠폰/포인트/1:1문의/상품문의 답변 정상 노출 확인","기획운영팀, 패션개발팀","2021-07-21","오후 4시~","성공"]
[null,null,"5. \"Front > 마이페이지 > 회원탈퇴\" 화면으로 이동. 주문/취소/반품/교환 건이 없는 경우 탈퇴 처리","기획운영팀, 패션개발팀","2021-07-21","오후 4시~","실패","탈퇴 시 GNB \"로그아웃\"으로 남아있는 현상",null,null,"완료","신주승","2021-07-21","조현민","7월 27일"]
[{"$nulls":6},"개선",null,"등록 배송지 20개로 제한","Y",null,"신주승"]
[null,null,"    5.1 \"BOS > 회원마/케팅 > 회원관리 > 탈퇴회원목록\" 화면에서 탈퇴한 아이디로 조회해 노출되는지 확인","기획운영팀, 패션개발팀","2021-07-21","오후 4시~","개선"]
[null,null,"6. \"Front > 회원가입\" 화면에서 재가입 시 가입 불가 상태 확인","기획운영팀, 패션개발팀","2021-07-21","오후 4시~","개선",null,"<로그인>, <아이디찾기> 버튼 비노출","Y","완료","신주승","2021-07-21","조현민","7월 27일"]
[]
[]
["제휴몰 - 샵링커(상품 및 재고 연동)"]
["FT_05_001","샵링커-상품연동","1. 샵링커에 전송할 상품코드 엑셀업로드 (사전에 파일 준비)\n\n* T205KC100P : 가격 데이터 확인 (59,900원 / 49,000원). TBJ만 가격연계함 (\"BOS > 영업망관리 > 기준관리 > 제휴몰가격연계관리\"에서 확인)\n* N214UU808P : 신규폼 + 안전인증(X) + 사이즈정보(X)\n* EOF11AJM33 : 신규폼 + 안전인증(O) + 사이즈정보(O)","MD, 기획운영팀, 패션개발팀","2021-07-22","오전 11시 반~","성공"]
[null,null,"2. 샵링커 관리자화면에서 등록상품 확인 (\n   샵링커 관리자 주소 : https://www.shoplinker.co.kr (id/pw : istyle1 / istyle1!)\n   - 가격연계여부에 따른 금액설정 확인 : T205KC100P 상품의 가격 데이터 확인 (59,900원 / 49,000원)\n   - 상품상세신규폼 확인\n     * N214UU808P의 \"상품명\" 클릭해 상품상세기술서 확인 (사이즈정보가 없어서 기본사이즈디폴트이미지가 노출됨)\n     * EOF11AJM33의 \"상품명\" 클릭해 상품상세기술서 확인 (사이즈정보는 \"FRONT > 상품상세\" 화면에서 \"사이즈정보\" 클릭하면 노출되는 팝업에서 확인)","MD, 기획운영팀, 패션개발팀","2021-07-22","오전 11시 반~","성공"]
["FT_05_002","샵링커-재고연동","1. \"샵링커관리자 > 상품관리 > 상품조호회/수정\"에서 검색항목을 \"고객사상품코드\"로 선택하고 재고 연동할 상품(상품코드 : N214UU808P)을 검색 후 샵링커상품코드를 클릭해 재고를 확인","MD, 기획운영팀, 패션개발팀","2021-07-22","오전 11시 반~","성공"]
[null,null,"2. \"BOS > 상품 > 상품관리 > 상품목록\" 화면에서 N214UU808P 상품코드 입력 후 조회 -> 상품코드 클릭해서 \"상품상세\" 화면의 \"옵션/재고\" 탭에서 하나의 옵션의 안전재고를 10으로 변경","MD, 기획운영팀, 패션개발팀","2021-07-22","오전 11시 반~","성공"]
[null,null,"3. \"BOS > 운영관리 > 시스템관리 > 배치관리\" 화면에서 \"샵링커재고변경15시\" 배치를 실행. 샵링커로 변경된 재고만 전송됨","MD, 기획운영팀, 패션개발팀","2021-07-22","오전 11시 반~","성공"]
[null,null,"4. \"샵링커관리자 > 상품관리 > 상품조호회/수정\"에서 검색항목을 \"고객사상품코드\"로 선택하고 재고 연동할 상품(상품코드 : N214UU808P)을 검색 후 샵링커상품코드를 클릭해 재고를 확인","MD, 기획운영팀, 패션개발팀","2021-07-22","오전 11시 반~","성공"]
[]
[]
["전시 및 프로모션 관리"]
["FT_06_001","메인 전시 관리","1. 메인 설정 확인","MD, 기획운영팀, 패션개발팀","2021-07-22","오후 3시~","성공"]
[null,null,"    1.1 전시 > (대분류)몰메인 ","MD, 기획운영팀, 패션개발팀","2021-07-22","오후 3시~","성공"]
[null,null,"2. 각 요소 안내","MD, 기획운영팀, 패션개발팀","2021-07-22","오후 3시~","성공"]
[null,null,"    2.1 TOP배너, GNB브랜드, 카테고리, 롤링배너, 신상품, 기획전콘텐츠, 베스트타이틀, 하프(1/2)배너, 핫딜, 롤링배너, MD추천, 추천상품,TV타이틀","MD, 기획운영팀, 패션개발팀","2021-07-22","오후 3시~","성공"]
["FT_06_002","브랜드 전시 관리","1. TBJ 브랜드 메인 설정 확인","MD, 기획운영팀, 패션개발팀","2021-07-22","오후 3시~","성공"]
[null,null,"    1.1 전시 > 메인전시관리 > 대분류(브랜드메인 선택)","MD, 기획운영팀, 패션개발팀","2021-07-22","오후 3시~","성공"]
[null,null,"    1.2 브랜드조회에서 'TBJ' 조회","MD, 기획운영팀, 패션개발팀","2021-07-22","오후 3시~","성공"]
[null,null,"2. 각 요소 안내","MD, 기획운영팀, 패션개발팀","2021-07-22","오후 3시~","성공"]
[null,null,"    2.1 GNB, 추천상품, 메인롤링배너, 브랜드소개, 이벤트및기타배너, 신상품, 베스트, MD추천, 룩북, 기획전콘텐츠, TV타이틀, 상품","MD, 기획운영팀, 패션개발팀","2021-07-22","오후 3시~","실패","GNB 추천상품에서 등록 시, 넘버링 오류(1, 2 순으로 노출되어야 함)",null,null,"완료","최수빈","7월 27일"]
[null,null,"    2.2 소개 및 상품쪽 수정 후, Front 확인","MD, 기획운영팀, 패션개발팀","2021-07-22","오후 3시~","성공"]
[null,null,"3. 브랜드 컬러 변경","MD, 기획운영팀, 패션개발팀","2021-07-22","오후 3시~","성공"]
[null,null,"    3.1 하단 '브랜드그룹' 선택하여 팝업에서 'TBJ' 검색","MD, 기획운영팀, 패션개발팀","2021-07-22","오후 3시~","성공"]
[null,null,"    3.2 결과에서 TBJ 확인 및 선택 후, RGB 코드를 7C7C7C 로 입력","MD, 기획운영팀, 패션개발팀","2021-07-22","오후 3시~","성공"]
[null,null,"    3.3 Front에서 변경된 컬러 확인","MD, 기획운영팀, 패션개발팀","2021-07-22","오후 3시~","성공"]
["FT_06_003","카테고리 전시 관리","1. 여성 카테고리 메인 설정 확인","MD, 기획운영팀, 패션개발팀","2021-07-22","오후 3시~","성공"]
[null,null,"    1.1 전시 > (대분류)카테고리메인 > (중분류)여성","MD, 기획운영팀, 패션개발팀","2021-07-22","오후 3시~","성공"]
[null,null,"2. 각 요소 안내","MD, 기획운영팀, 패션개발팀","2021-07-22","오후 3시~","성공"]
[null,null,"    2.1 GNB 기획전배너, 메인배너, 카테고리영역, 신상품,베스트","MD, 기획운영팀, 패션개발팀","2021-07-22","오후 3시~","개선",null,"등록할 배너의 이미지 사이즈 표기 필요","Y"]
["FT_06_004","아울렛 전시 관리","1. 아울렛 메인 설정 확인","MD, 기획운영팀, 패션개발팀","2021-07-22","오후 3시~","성공"]
[null,null,"    1.1 전시 > (대분류)아울렛메인","MD, 기획운영팀, 패션개발팀","2021-07-22","오후 3시~","성공"]
[null,null,"2. 각 요소 안내","MD, 기획운영팀, 패션개발팀","2021-07-22","오후 3시~","성공"]
[null,null,"    2.1 GNB 기획전배너, 메인롤링배너, MD추천, 카테고리영역, 베스트","MD, 기획운영팀, 패션개발팀","2021-07-22","오후 3시~","개선",null,"메인 롤링 배너 텍스트 컬러 설정은 모바일에 한해서만 된다는 문구 추가 필요\n >> 모바일에만 적용\n으로 문구 노출","Y","완료","최수빈","7월 27일"]
[{"$nulls":6},"개선",null,"관리자 화면 내 수동관리, 반수동관리 인지 표시 필요","Y"]
[{"$nulls":6},"실패","베스트 모듈 위치 변경 시, 데이터 미노출되는 현상",null,null,"완료","최수빈","7월 29일"]
["FT_06_005","핫딜 관리","1. 핫딜 설정 확인","MD, 기획운영팀, 패션개발팀","2021-07-22","오후 3시~","성공"]
[null,null,"    1.1 회원/마케팅 > 핫딜관리 이동하여 목록에서 1번 항목 선택","MD, 기획운영팀, 패션개발팀","2021-07-22","오후 3시~","성공"]
[null,null,"2. 상품 순서 및 가격 수정 후, Front 반영 확인","MD, 기획운영팀, 패션개발팀","2021-07-22","오후 3시~","실패","진행기간 검색 조건 확인 필요 => 진행시작일시 기준으로 조회",null,null,"완료","김소원","2021-07-24","MD\n기획운영팀","7월 27일"]
[{"$nulls":6},"실패","소셜상품 가격 적용 배치가 적용이 되지 않음\n=> 시간배치로 처리함",null,null,"완료","김소원","2021-07-24","MD\n기획운영팀","7월 27일"]
[{"$nulls":6},"개선",null,"상품 순서 변경 기능 추가","Y","완료","김소원","2021-07-24","MD\n기획운영팀","7월 27일"]
[{"$nulls":6},"개선",null,"적용중 상태에서도 순서 변경 가능하도록 수정","Y"]
["FT_06_006","쿠폰 생성","1. 즉시할인 쿠폰 생성","MD, 기획운영팀, 패션개발팀","2021-07-22","오후 3시~","성공"]
[null,null,"    1.1. 상품즉시할인가생성 배치 실행","MD, 기획운영팀, 패션개발팀","2021-07-22","오후 3시~","성공"]
[null,null,"    1.2. \"상품검색-부분색인 배치\" 실행","MD, 기획운영팀, 패션개발팀","2021-07-22","오후 3시~","성공"]
[null,null,"2. 장바구니 쿠폰 생성 / 상품 쿠폰 생성\n   -> 공급처/브랜드 지정 / 제외상품 지정 / 제휴채널 > 자사/네이버 두가지 지정 / 입점 상품브랜드 필 포함, 비용배분율 지정 필수","MD, 기획운영팀, 패션개발팀","2021-07-22","오후 3시~","성공"]
[null,null,"    2.1. 상품쿠폰 생성 후 \"상품혜택생성\" 배치 실행","MD, 기획운영팀, 패션개발팀","2021-07-22","오후 3시~","성공"]
[null,null,"3. 검색엔진에 수집 및 인덱싱 요청 (매시 25분으로 설정되어 있음)","MD, 기획운영팀, 패션개발팀","2021-07-22","오후 3시~","성공"]
[null,null,"4. 배송비 쿠폰 생성","MD, 기획운영팀, 패션개발팀","2021-07-22","오후 3시~","성공"]
[null,null,"5. 특수 쿠폰 생성\n--> 장바구니 쿠폰으로 선택 한 후, 신규회원여부 Y로 변경하고 다운로드가능여부 Y로 하여 기간 지정하여 상품상세에서 쿠폰다운로드 노출 확인","MD, 기획운영팀, 패션개발팀","2021-07-22","오후 3시~","실패","선착순 쿠폰 기능 수정 필요",null,null,"완료","최수빈","2021-07-24","한수인","7월 27일"]
[{"$nulls":6},"개선",null,"다운로드 가능여부 기능 옆에 관련 문구노출 예정\n >> Y : 상품상세노출 가능 / N : 기획전 및 이벤트 노출\n로 문구 표기 필요","Y","완료","김은실","2021-07-23","조현민","7월 27일"]
[null,null,"--> 장바구니 쿠폰으로 선택 한 후, 결제수단 제어 하는 쿠폰 생성 하여 쿠폰 다운로드 확인","MD, 기획운영팀, 패션개발팀","2021-07-22","오후 3시~","성공"]
[null,null,"--> 장바구니 쿠폰으로 선택 한 후, 시리얼 선택하여 시리얼 키워드 등록 -> 장바구니에서 등록","MD, 기획운영팀, 패션개발팀","2021-07-22","오후 3시~","성공"]
[null,null,"--> 상품/주문서 중 선택 후 사용 등급값 설정 --> 해당 등급만 다운로드 확인","MD, 기획운영팀, 패션개발팀","2021-07-22","오후 3시~","실패","신규회원 제한 걸어놓은 쿠폰으로 다운로드 시도 시, 제공되는 얼럿 오류\n >> 얼럿 제공하는 문구 포함 수정",null,null,"완료","최수빈","2021-07-22","한수인","7월 27일"]
[]
[]
["주문"]
["FT_03_001","신규 네이버 가입 회원 > 주문\n결제 수단 : 신용카드","1. 기존 CI가 없는 고객으로 네이버 가입","기획운영팀, 패션개발팀","2021-07-23","오전 10시~","성공"]
[null,null,"    1.1. \"FRONT > 회원가입\" 화면에서 <네이버> 아이콘 이미지 클릭해 가입","기획운영팀, 패션개발팀","2021-07-23","오전 10시~","성공"]
[null,null,"    1.2. 네이버의 동의여부 확인 후 가입 완료 확인 (네이버 로그인 후 \"내정보 > 보안설정 > 네아로/네이버인증서\" 목록에서 Istyle24가 있는 경우 <철회하기> 버튼 클릭해야만 노출됨)","기획운영팀, 패션개발팀","2021-07-23","오전 10시~","성공"]
[null,null,"    1.3. 가입완료 후 자동 로그인 되며 메인으로 이동한다.","기획운영팀, 패션개발팀","2021-07-22","오전 10시~","성공"]
[null,null,"2. \"BOS > 회원/마케팅 > 회원관리 > 활동회원목록\" 화면에서 \"간편가입유형\" 검색조건을 \"네이버\"로 선택해 가입한 회원정보 확인","기획운영팀, 패션개발팀","2021-07-23","오전 10시~","성공"]
[null,null,"3. BOS > 활동회원목록 > 해당 계정 검색 > 포인트 5000P/장바구니쿠폰 1개, 배송비쿠폰1개, 상품쿠폰 1개 지급(쿠폰 정해진거 따놓고, 해당 쿠폰번호로 지급)","기획운영팀, 패션개발팀","2021-07-23","오전 10시~","성공"]
[null,null,"4. 하나의 주문번호 내에서, 다음과 같이 복합주문 발생\n >>>상품 N/N/N(딜에서 1종류, 즉시할인걸린상품 1개, 배송비 쿠폰 걸린상품 1개, 다다익선 걸린상품 2개, 세트상품 1개, 추가금걸린 상품 1개, 입점 상품 정하여 3개 ) 상품 코드(규정된 상품코드 담기), 사은품 걸린상품 (조건에맞게), 선포인트상품 1개","기획운영팀, 패션개발팀","2021-07-23","오전 10시~","성공"]
[null,null,"5. 장바구니로 이동 하여 \"시리얼쿠폰코드 : 시리얼\" 입력","기획운영팀, 패션개발팀","2021-07-23","오전 10시~","성공"]
[null,null,"6. 주문서 이동하여 최대할인 선택, 사은품 선택","기획운영팀, 패션개발팀","2021-07-23","오전 10시~","성공"]
[null,null,"7. 결제수단 : 신용카드 로 결제 -> 결제 시 PG 쿠폰 사용 (PG쿠폰 테스트 시 샵ID를 변경해야 함. 따라서 최종 테스트 시 샵ID 변경 후 테스트 진행하는 것이 좋음)","기획운영팀, 패션개발팀","2021-07-23","오전 10시~","성공"]
[null,null,"8. 결제 후 Front > 마이페이지의 주문내역 확인","기획운영팀, 패션개발팀","2021-07-23","오전 10시~","개선",null,"(공통)\nPG 모듈 호출 중, 로딩 화면 추가 필요","Y",null,"전석훈"]
[null,null,"9. BOS에서 내역 확인","기획운영팀, 패션개발팀","2021-07-23","오전 10시~","개선",null,"입점상품의 경우, 업체명이 노출되어야 함\n업체별 어떤 배송비 정책을 가지고 있는지 정보가 노출될 필요 있음"]
[{"$nulls":6},"개선",null,"주문목록에서 동일주문건에 대한 범위 확인이 불가능하여 주문단위 번호로 노출할 수 있도록 개선\n > CS 파트에서 원하는 방향으로 개선 예정","Y"]
["FT_03_002","신규 예스24 가입 회원 > 주문\n결제 수단 : 실시간 계좌이체","1. 기존 CI가 없는 고객으로 예스24 계정으로 가입","기획운영팀, 패션개발팀","2021-07-23","오전 10시~","성공"]
[null,null,"2. Front > 회원가입 > 예스24 가입","기획운영팀, 패션개발팀","2021-07-23","오전 10시~","성공"]
[null,null,"3. 예스24 로그인 팝업 > 로그인","기획운영팀, 패션개발팀","2021-07-23","오전 10시~","성공"]
[null,null,"4. 동의 여부 확인 후 가입 완료 확인","기획운영팀, 패션개발팀","2021-07-23","오전 10시~","성공"]
[null,null,"4. Front > 마이페이지 이동 > 임의값 아이디 생성 및 이름값 예스24 프로필값과 동일한지 확인","기획운영팀, 패션개발팀","2021-07-23","오전 10시~","성공"]
[null,null,"5. BOS > 회원마케팅 > 활동회원목록 -> 가입한 회원정보 확인","기획운영팀, 패션개발팀","2021-07-23","오전 10시~","성공"]
[null,null,"6. BOS > 활동회원목록 > 해당 계정 검색 > 포인트 5000P/장바구니쿠폰 1개, 배송비쿠폰1개, 상품쿠폰 1개 지급(쿠폰 정해진거 따놓고, 해당 쿠폰번호로 지급)","기획운영팀, 패션개발팀","2021-07-23","오전 10시~","성공"]
[null,null,"7. 하나의 주문번호 내에서, 다음과 같이 복합주문 발생\n >>>상품 N/N/N(딜에서 1종류, 즉시할인걸린상품 1개, 배송비 쿠폰 걸린상품 1개, 다다익선 걸린상품 2개, 세트상품 1개, 추가금걸린 상품 1개, 입점 상품 정하여 3개 ) 상품 코드(규정된 상품코드 담기), 사은품 걸린상품 (조건에맞게), 선포인트상품 1개, 해외구매대행+병행수입+주문제작 상품 1개","기획운영팀, 패션개발팀","2021-07-23","오전 10시~","성공"]
[null,null,"8. 장바구니로 이동 하여 \"시리얼쿠폰코드 : 시리얼\" 입력","기획운영팀, 패션개발팀","2021-07-23","오전 10시~","성공"]
[null,null,"9. 주문서 이동하여 최대할인 선택, 사은품 선택","기획운영팀, 패션개발팀","2021-07-23","오전 10시~","성공"]
[null,null,"10. 결제수단 : 실시간 계좌이체 로 결제 -> 결제 시 pg 쿠폰사용","기획운영팀, 패션개발팀","2021-07-23","오전 10시~","성공"]
[null,null,"11. 결제 후 Front > 마이페이지의 주문내역 확인","기획운영팀, 패션개발팀","2021-07-23","오전 10시~","성공"]
[null,null,"12. BOS에서 내역 확인","기획운영팀, 패션개발팀","2021-07-23","오전 10시~","성공"]
["FT_03_003","비회원 > 주문\n결제 수단 : 카카오 페이","1. 여러 상품을 쇼핑백에 저장 후, 비회원 주문으로 주문\n >>>상품 N/N/N(딜에서 1종류, 즉시할인걸린상품 1개, 배송비 쿠폰 걸린상품 1개, 다다익선 걸린상품 2개, 세트상품 1개, 추가금걸린 상품 1개, 입점 상품 정하여 3개 ) 상품 코드(규정된 상품코드 담기), 사은품 걸린상품 (조건에맞게), 선포인트상품 1개","기획운영팀, 패션개발팀","2021-07-23","오전 10시~","성공"]
[null,null,"2. 주문자 정보 및 본인인증 진행","기획운영팀, 패션개발팀","2021-07-23","오전 10시~","성공"]
[null,null,"3. 결제수단 : 카카오페이 로 결제 -> 결제 시, 카카오 페이 App 으로 결제","기획운영팀, 패션개발팀","2021-07-23","오전 10시~","성공"]
[null,null,"4. 결제 후, 비회원 주문 조회로 주문 내용 확인","기획운영팀, 패션개발팀","2021-07-23","오전 10시~","성공"]
[null,null,"5. BOS에서 내역 확인","기획운영팀, 패션개발팀","2021-07-23","오전 10시~","성공"]
["FT_03_004","일반 회원 > 주문\n결제 수단 : 휴대폰 결제","1. 일반회원으로 로그인","기획운영팀, 패션개발팀","2021-07-23","오전 10시~","성공"]
[null,null,"2. 하나의 주문번호 내에서, 다음과 같이 복합주문 발생\n >>>상품 N/N/N(딜에서 1종류, 즉시할인걸린상품 1개, 배송비 쿠폰 걸린상품 1개, 다다익선 걸린상품 2개, 세트상품 1개, 추가금걸린 상품 1개, 입점 상품 정하여 3개 ) 상품 코드(규정된 상품코드 담기), 사은품 걸린상품 (조건에맞게), 선포인트상품 1개","기획운영팀, 패션개발팀","2021-07-23","오전 10시~","실패","쿠폰 모두받기 오류 발생",null,null,"완료","김은실","2021-07-23","조현민","7월 23일"]
[null,null,"3. 결제수단 : 휴대폰 결체 로 결제","기획운영팀, 패션개발팀","2021-07-23","오전 10시~","성공"]
[null,null,"4. 결제 후 Front > 마이페이지의 주문내역 확인","기획운영팀, 패션개발팀","2021-07-23","오전 10시~","성공"]
[null,null,"5. BOS에서 내역 확인","기획운영팀, 패션개발팀","2021-07-23","오전 10시~","개선",null,"주소변경 시, 노출되는 주소에 대한 정보 확인 필요","Y"]
["FT_03_005","일반 회원 > 주문\n결제 수단 : 무통장 입금","1. 일반회원으로 로그인","기획운영팀, 패션개발팀","2021-07-23","오전 10시~","성공"]
[null,null,"2. 하나의 주문번호 내에서, 다음과 같이 복합주문 발생\n >>>상품 N/N/N(딜에서 1종류, 즉시할인걸린상품 1개, 배송비 쿠폰 걸린상품 1개, 다다익선 걸린상품 2개, 세트상품 1개, 추가금걸린 상품 1개, 입점 상품 정하여 3개 ) 상품 코드(규정된 상품코드 담기), 사은품 걸린상품 (조건에맞게), 선포인트상품 1개","기획운영팀, 패션개발팀","2021-07-23","오전 10시~","성공"]
[null,null,"3. 결제수단 : 무통장 입금으로 결제(미 입금)","기획운영팀, 패션개발팀","2021-07-23","오전 10시~","성공"]
[null,null,"4. 결제 후 Front > 마이페이지의 주문내역 확인 : 주문접수로 표기 확인","기획운영팀, 패션개발팀","2021-07-23","오전 10시~","성공"]
[null,null,"5. 입금 처리","기획운영팀, 패션개발팀","2021-07-23","오전 10시~","성공"]
[null,null,"6. 결제 후 Front > 마이페이지의 주문내역 확인 : 결제완료로 표기 확인","기획운영팀, 패션개발팀","2021-07-23","오전 10시~","성공"]
[null,null,"7. BOS에서 내역 확인","기획운영팀, 패션개발팀","2021-07-23","오전 10시~","성공"]
["FT_03_006","일반 회원 > 주문\n결제 수단 : 페이코","1. 일반회원으로 로그인","기획운영팀, 패션개발팀","2021-07-23","오전 10시~","성공"]
[null,null,"2. 하나의 주문번호 내에서, 다음과 같이 복합주문 발생\n >>>상품 N/N/N(딜에서 1종류, 즉시할인걸린상품 1개, 배송비 쿠폰 걸린상품 1개, 다다익선 걸린상품 2개, 세트상품 1개, 추가금걸린 상품 1개, 입점 상품 정하여 3개 ) 상품 코드(규정된 상품코드 담기), 사은품 걸린상품 (조건에맞게), 선포인트상품 1개","기획운영팀, 패션개발팀","2021-07-23","오전 10시~","성공"]
[null,null,"3. 결제수단 : 페이코 로 결제 -> 결제 시, 페이코 App 으로 결제","기획운영팀, 패션개발팀","2021-07-23","오전 10시~","보류","페이코 진행 불가\n=> 신용카드 등록 불가 확인 요청중",null,null,null,"이태영"]
[null,null,"4. 결제 후 Front > 마이페이지의 주문내역 확인","기획운영팀, 패션개발팀","2021-07-23","오전 10시~","보류","페이코 진행 불가\n=> 신용카드 등록 불가 확인 요청중",null,null,null,"이태영"]
[null,null,"5. BOS에서 내역 확인","기획운영팀, 패션개발팀","2021-07-23","오전 10시~","보류","페이코 진행 불가\n=> 신용카드 등록 불가 확인 요청중",null,null,null,"이태영"]
[]
["출고 및 클레임"]
["FT_04_005","주문 취소","1. Front에서 부분 취소","기획운영팀, 패션개발팀","2021-07-23","오후 3시~","실패","품절에 의한 주문취소인 경우, '품절취소'로 노출",null,null,null,"김지철"]
[null,null,"2. BOS에서 부분 취소","기획운영팀, 패션개발팀","2021-07-23","오후 3시~","개선",null,"PG점프 가능 개선\n=> 휴대폰결제 관련해 월이 경과한 경우 고객에게 입금해 주는 방식으로 처리할 경우 \"입금액\" 입력할 수 있게","Y"]
[null,null,"3. 상품준비중인 상품, 취소 후에 BOS에서 데이터 확인","기획운영팀, 패션개발팀","2021-07-23","오후 3시~","실패","BOS 주문상세 내역에서 다다익선 데이터 잘못 노출됨\n=> 데이터상으로는 문제 없으며, 다다익선2(금액) 부분이 수량 값과 동일하게 노출되고 있는 현상임",null,null,"완료","전석훈","7월 23일"]

{"sheet":"3차 통합테스트","index":3,"n_rows":269,"n_cols":17,"rows_kept":269,"cut":false,"hidden":false,"merged":[[54,1,75,1],[54,0,75,0],[0,6,1,6],[0,9,1,9],[0,10,1,10],[0,0,1,0],[0,1,1,1],[0,2,1,2],[0,3,1,3],[0,4,1,4],[0,5,1,5],[0,15,0,16],[2,1,28,1],[2,0,28,0],[29,1,53,1],[29,0,53,0],[0,11,1,11],[0,12,1,12],[0,13,0,14],[76,1,89,1],[76,0,89,0],[90,1,112,1],[90,0,112,0],[113,1,127,1],[113,0,127,0],[128,1,135,1],[128,0,135,0],[136,0,153,0],[137,1,153,1],[154,1,171,1],[154,0,171,0],[172,1,193,1],[172,0,193,0],[194,1,202,1],[194,0,202,0],[203,1,213,1],[203,0,213,0],[251,1,263,1],[251,0,263,0],[264,1,268,1],[264,0,268,0],[214,1,220,1],[214,0,220,0],[221,1,245,1],[221,0,245,0],[246,1,250,1],[246,0,250,0]]}
["TEST ID","케이스","시스템","세부순서","시나리오","테스터","테스트 결과","결함유형","결함 상태","결함 상세","처리내용","개선내용","확인 상태","처리 결과",null,"처리 확인"]
[{"$nulls":13},"처리자","처리일자","확인자","확인일자"]
["TEST_06_006","딜 상품 세팅 및 주문","BOS",1,"상단 대메뉴에서 상품 선택",null,"성공"]
[null,null,"BOS",2,"상품관리 > 상품목록 선택",null,"성공"]
[null,null,"BOS",3,"딜상품구성 선택",null,"성공"]
[null,null,"BOS",4,"딜상품명, 성별, 제조년월일, 년도시즌, 원산지 설정",null,"성공"]
[null,null,"BOS",5,"구성상품추가 버튼 선택",null,"성공"]
[null,null,"BOS",6,"구성할 상품의 업체 또는 브랜드, 상품코드로 상품 조회","정지혜","실패","프로그램","하","1. 페이지 리스트 조회 개수 변경 시 동작하지 않음\n 2. 연도/시즌값 조회시 조회안됨\n 3. 딜 상품도 셀렉트시 선택됨, 딜은 제외되어 나와야하는게 아닌지요?\n 4. 목록이 200개 까지 제한인데 200개 이상으로 데이터가 들어가게 되어있음","1.수정\n2.마이그작업\n3.저장시체크=>상품설정시로 변경\n",null,"완료","김은실",6.18,"4차 테스트","7월 21일"]
[null,null,"BOS",7,"결과 목록에서 상품 선택 및 적용 버튼 선택 후 팝업 닫기 버튼 선택","정유리\n 정지혜","실패","프로그램","하","(정유리)\n 처음에상품선택후적용버튼누른후\n 아무메시지도뜨지않아에러인가싶어\n 팝업창닫기누르니적용되어있었음\n 처음엔느린현상인줄알았으나메시지가없어서\n 적용이되고도몰랐떤상태였음\n\n(정지혜)\n적용에 대한 안내가 없음(아무동작이 없어 에러처럼 인지됨)","상품조회팝업에서 젹용버튼 클릭시  창종료처리",null,"완료","김은실",6.18,"4차 테스트","7월 21일"]
[null,null,"BOS",8,"목록에서 메인으로 노출될 상품 기준여부 항목 선택하여 'Yes' 및 대표여부(가격) 'Yes' 설정 후 저장버튼 선택","정유리\n 정지혜","실패","프로그램","하","(정유리)\n YES와NO선택이더블클릭하여\n 해당선택셀렉트가나오는것인지\n 바로인지할수없었음\n \n (정지혜)\n 입점상품 추가하여 구성 시 에러발생\n No message found under code '구성상품 중 기준 상품의 브랜드를 확인해 주세요.' for locale 'ko_KR'.","그리드  특성,\n정상 가동 확인(브랜드 마이그 재작업으로 정상 처리됨)",null,"완료","김은실",6.18,"4차 테스트","7월 21일"]
[null,null,"BOS",9,"상품타입(딜상품), 발생일(오늘) 설정 후 조회",null,"성공"]
[null,null,"BOS",10,"등록했던 딜상품명 선택",null,"성공"]
[null,null,"BOS",11,"각 항목 설정","정지혜","개선","데이터","하","(정K)딜에서 대표 값에 서 안나와야 할 값들 아직 노출되고 있음(포인트, 최소/최대주문/선물여부/반품/교환/신규/배송비 등)"]
[null,null,"BOS",12,"옵션/재고정보 탭 이동하여 이미지 등록 버튼 선택",null,"성공"]
[null,null,"BOS",13,"설정할 대표 이미지 등록 후, 업로드 버튼 선택",null,"성공"]
[null,null,"BOS",14,"상품상세정보 탭 이동하여 내용 등록",null,"성공"]
[null,null,"BOS",15,"상품상태 승인완료로 선택",null,"성공"]
[null,null,"BOS",16,"저장 버튼 선택",null,"성공"]
[null,null,"쇼핑몰",17,"상품(#) 확인","정지혜\n윤지영","실패","데이터","하","2. 상단 탭리뷰데이터 합산 카운트 안잡힘\n 3. 상단 탭 문의 데이터 합산 카운터 안잡힘\n 4. 리뷰 데이터 안나옴(카운트 있는데이터도 안나옵니다)\n 5. 문의데이터 안나옴(카운트 있는 데이터도 안나옵니다()\n 6. 문의데이터 탭 없을때 밑에 데이터 없습니다. 내용 표시안됨\n 7. 문의 있는데이터도 답변완료 항목 노출 시, 답변데이터가 Null로 노출됨(goodsCd=STYD00000040)\n \n (윤지영)\n 상품확인 안됨","2,3 상품 집계배치  실행\n4.상품평관련 주문관련 마이그 미적용\n5.정상노출\n6.수정중\n7.상품문의 마이그처리 완료",null,"완료","김은실","07.28"]
[null,null,"쇼핑몰",18,"하단 딜 상품 목록에서 하나 상세보기 선택",null,"성공"]
[null,null,"쇼핑몰",19,"상단 목록 선택",null,"성공"]
[null,null,"쇼핑몰",20,"다른 상품 선택","정지혜","실패","프로그램","하","1. 모바일 옵션레이어 안닫힘(X자 눌렀을때 레이어 안닫힘, 옵션데이터가 제거되는현상)\n 2. 모바일크롬버전에서 옵션 항목 살짝 짤리는현상 나타남(상단문구 살짝짤림)\n 3. 공급자 적합성 / KC 관련 데이터 안나옴 확인필요\n 4. 상품 구분 데이터 안나옴\n 5. 모바일에 쿠폰받기 버튼이 나오는데, 쿠폰 받으려고 보면 아무것도 안나옴(빈레이어노출)","1.정상처리\n2.정상노출\n3.인증정보 마그중-마이그된 인전정보 데이터  적합성관련 정지혜과장 요청한 상태\n4.마이그정보 없음\n5.정상노출",null,"완료","김은실","07.28"]
[null,null,"쇼핑몰",21,"(로그인 상태)\n  바로 구매 또는 쇼핑백 구매로 구매 진행","정지혜","실패","프로그램","하","1. 비로그인 상태에서 바로구매 버튼 클릭 후, 로그인 시 로그인 이후 구매로 이동하지 않고 상품상세에서 그대로 다시 멈춤, 선택했던 옵션 전체 클리어됨\n \n 2. 모바일 > 쇼핑백 에서 이미지 CSs 확인\n 3. 모바일 > 주문서에서 이미지 CSS 확인","1. 수정완료\n2. 퍼블확인 [퍼블완료]\n3. 퍼블확인 [퍼블완료]\n\n",null,"완료",6.18,"전석훈"]
[null,null,"쇼핑몰",22,"주문 항목 설정 후, 결제","정지혜","실패","화면","하","1. 주문서 선택 항목 벌어짐 현상(모바일)\n 2. 결제완료 헤더 짤림 현상","수정완료",null,"완료",6.17,"전석훈"]
[null,null,"BOS",23,"상단 '주문/배송' 메뉴 선택",null,"성공"]
[null,null,"BOS",24,"좌측 주문관리>주문목록 메뉴 선택",null,"성공"]
[null,null,"BOS",25,"몰구분(자사몰) 설정, 주문자명 입력, 조회일자(최근 한주) 설정 후, '조회' 버튼 선택","정유리\n 정지혜\n김은주","보류","프로그램","하","(정유리)\n 자사몰설정,주문자명,최근한주설정시는\n 조회결과가나오지않음\n 주문번호직접입력시는조회됨\n \n (정지혜)\n 1. 주문자명으로 조회안됨\n 2. 주문일자로 조회시 조회안됨\n 3. 주문취소 Front에서 정상적으로 안내가 나오지 않아, 처리가 되지 않았으나 bos에서는 결제후 주문취소로 집계되있음(19713832 - 취소시 아무 안내도 없고 아무것도 없음. 이거 맞나요??)\n 4. 상태코드로 조회시 조회안됨(변경요청 처리상태 --< 결제후 주문취소 조회하려면 어떻게 조회해야하는건가요??)\n \n (김은주)\n 1. 검색시 로딩 표시가 계속 보이며 로딩이 길어짐\n 2. 주문번호, 주문자 노출안됨","1. 주문자명은 AS-IS 데이타를  정*리 이렇게 보내주고 있음 운영데이타 확인결과 정유리 로 되어 있어서 운영데이타 이관후 문제없을것으로예상됨\n2. 정상동작확인\n3. 개발예정\n4. 변경요청처리상태 결제후주문취소 상태값 조회조건에 노출됨\n\n",null,"완료",6.17,"전석훈"]
[null,null,"BOS",26,"주문번호 선택","김은주","보류","프로그램","하","(김은주)\n 주문번호 노출안됨/선택 불가 ( 엑셀 다운시 확인됨 )","상세설명부탁드립니다.",null,"완료",6.17,"전석훈"]
[null,null,"BOS",27,"주문 정보 검증","김은주","보류","프로그램","하","(김은주)\n 정보 확인불가","상세설명부탁드립니다.",null,"완료",6.17,"전석훈"]
["TEST_06_007","세트 상품 세팅 및 주문","BOS",1,"상단 대메뉴에서 상품 선택",null,"성공"]
[null,null,"BOS",2,"상품관리 > 상품목록 선택",null,"성공"]
[null,null,"BOS",3,"세트상품구성 선택",null,"성공"]
[null,null,"BOS",4,"세트상품명, 성별, 제조년월일, 년도시즌, 원산지 설정",null,"성공"]
[null,null,"BOS",5,"구성상품추가 버튼 선택","정지혜","실패","프로그램","하","1. 세트를 만드는 시점에 판매 중지이면 생성 자체가 안됨\n 2. 상품 선택시에 아무 반응이없음(*상품 추가 alert 팝업 닫힘 등)","1.상품상태가 삭제가 아닌상품은 추가되게 수정\n2.상품추가팝업 닫힘 처리",null,"완료","김은실",6.18,"4차 테스트","7월 21일"]
[null,null,"BOS",6,"구성할 상품의 업체 또는 브랜드, 상품코드로 상품 조회",null,"성공"]
[null,null,"BOS",7,"결과 목록에서 상품 선택 및 적용 버튼 선택 후 팝업 닫기 버튼 선택","김은주\n윤지영\n","실패","프로그램","하","(김은주)\n 팝업창 확인 안됨\n \n (윤지영)\n 적용버튼 안눌림","상품추가팝업 닫힘 처리",null,"완료","김은실",6.18,"4차 테스트","7월 21일"]
[null,null,"BOS",8,"목록에서 메인으로 노출될 상품 기준여부 항목 선택하여 'Yes'로 설정","김선혜","실패","데이터","하","상품목록 안보임"]
[null,null,"BOS",9,"각 \n  세트 구성수량(더블클릭 > 입력상태로 전환) 설정 및 세트구성상품판매가(더블클릭 > 입력상태로 전환) 가격 설정","김선혜\n 정지혜","실패","프로그램","하","세트 구성상품 수량이 변경 될때,\n 판매가에 대한 곱하기 등은 없어 혼란의 여지가 잇음","수정완료",null,"완료","김은실",6.18,"4차 테스트","7월 21일"]
[null,null,"BOS",10,"하단 '저장' 버튼 선택",null,"성공"]
[null,null,"BOS",11,"상품타입(세트상품), 발생일(오늘) 설정 후 조회",null,"성공"]
[null,null,"BOS",12,"등록했던 세트 상품명 선택",null,"성공"]
[null,null,"BOS",13,"각 항목 설정",null,"성공"]
[null,null,"BOS",14,"옵션/재고정보 탭 이동하여 이미지 등록 버튼 선택",null,"성공"]
[null,null,"BOS",15,"설정할 대표 이미지 등록 후, 업로드 버튼 선택",null,"성공"]
[null,null,"BOS",16,"상품상세정보 탭 이동하여 내용 등록",null,"성공"]
[null,null,"BOS",17,"저장 버튼 선택",null,"성공"]
[null,null,"쇼핑몰",18,"상품(#) 확인","이재연\n 이현우\n 정지혜","실패","데이터","하","(이재연)\n 세트 상품 상세 페이지 미노출(STYS00000045)\n \n (정지혜)\n 1. 기존 상품의 상품 상세정보가 노출되지 않음\n 2. 어떤 상품의 고시정보인지 안내가 안나와있음\n 3.반품교환정보 안나옴\n 4.배송업체 영역 스크롤생김","1.기획서확인요\n2.퍼블확인요\n  [퍼블확인] \n   딜 상세의 고시정보는 \n   상품 개별 상세 안에 \n   표기되어있음.\n\n3.마이그 관련 수정 -정상노출\n4.정상노출",null,"완료","김은실",6.18,"4차 테스트","7월 21일"]
[null,null,"쇼핑몰",19,"(로그인 상태)\n  바로 구매 또는 쇼핑백 구매로 구매 진행","정지혜","실패","프로그램","하","(정지혜)\n 1. 쇼핑백에서 상품 딤드 처리 한 부분 잘못나옴 확인바람\n 2. 모바일 > 주문서에서 세트 상품 로딩시, 로딩 할때는 2개 기준 5000 P 였다가 레이어를 열고 다시 확인하면 2040P 적립 예정으로 변경됨(포인트 적립금액오류발생)\n 3. 모바일 > 주문서 쿠폰 적용팝업에서 총 -XXXX원 이라고 알림이 나옴, 총 XXXX원 할인인데요..\n 4. 모바일 > 쿠폰팝업에서 쪽에 노출되는 상품 컷 비율 맞지 않음\n 5. 모바일 > 결제수단 선택 없을 때 결제수단 아코디언 열려있어야 하나, 안열려있음","1. 퍼블확인 [퍼블완료]\n2. 포인트정보 수정완료\n3. 확인중\n4. 퍼블확인 [퍼블완료]\n5. 수정완료\n\n",null,"완료",6.17,"전석훈"]
[null,null,"쇼핑몰",20,"주문 항목 설정 후, 결제","정지혜","실패","데이터","하","(정지혜)\n 최종 포인트액 맞지 않음\n --> 모바일 포인트율 5% 설정했으나, pc 포인트율과 동일하게 결제되는현상","수정완료",null,"완료",6.17,"전석훈"]
[null,null,"BOS",21,"상단 '주문/배송' 메뉴 선택","김은주","성공",null,null,"(김은주)\n 세트상품 주문서 확인불가","상세설명부탁드립니다.",null,"완료",6.17,"전석훈"]
[null,null,"BOS",22,"좌측 주문관리>주문목록 메뉴 선택",null,"성공"]
[null,null,"BOS",23,"몰구분(자사몰) 설정, 주문자명 입력, 조회일자(최근 한주) 설정 후, '조회' 버튼 선택",null,"성공"]
[null,null,"BOS",24,"주문번호 선택",null,"성공"]
[null,null,"BOS",25,"주문 정보 검증","정지혜","실패","데이터","하","(정지혜)\n 포인트액 계산 다시확인\n Order No. 19713843\n \n (정지혜)\n 세트 상품의 구성 정보 데이터가 오류\n -> 실제 상품명/상품 옵션 정보가 들어가야 하나, 상품 옵션1/2정보만 나와있어 어떤 정보 출고되는지 확인불가","1. 포인트금액 수정완료\n2. 세트구성상품의 의 팝업제공 관리자 주문상세",null,"완료",6.17,"전석훈"]
["TEST_06_008","사은품 상품 세팅 및 주문","BOS",1,"상단 메뉴에서 회원/마케팅 선택",null,"성공"]
[null,null,"BOS",2,"마케팅_사은품 프로모션 선택",null,"성공"]
[null,null,"BOS",3,"프로모션 등록 버튼 선택",null,"성공"]
[null,null,"BOS",4,"프로모션명, 기간, 구분(자사몰) 등 기본정보 설정","정지혜","실패","프로그램","하","(정지혜)\n 1. 적용몰구분 필수인데 벨리데이션 체크안함\n 2. 기간값 시작일이 더 큰데도 적용됨",null,null,"완료","이태영","07.28"]
[null,null,"BOS",5,"적용대상 상품등록에서 상품추가 선택\n  \n  * 다른 대상(브랜드)으로 해도 무방","정지혜","실패","프로그램","하","(정지혜)\n 브랜드 추가안됨( S0009 NBA )",null,null,"완료","이태영","07.28"]
[null,null,"BOS",6,"특정 상품(#) 조회",null,"성공"]
[null,null,"BOS",7,"상품 선택 및 적용 버튼 선택",null,"성공"]
[null,null,"BOS",8,"하단 적용사은품 정보에서\n  사은품 선택 버튼 선택",null,"성공"]
[null,null,"BOS",9,"(검색조건에 맞춰) 조회 버튼 선택",null,"성공"]
[null,null,"BOS",10,"사은품 선택 및 확인 버튼 선택",null,"성공"]
[null,null,"BOS",11,"CASE \n  지급방법 : 선택 사은품\n  사은품 조건 1 : 금액 50000원\n  >> 지급사은품 2개 선택 , 한개 사은품 포인트 1000원 설정, 한정수량 10으로 각 설정(항목 더블클릭)\n  \n  사은품 조건 2 : 금액 70000원\n  >> 지급사은품 1개 선택 ,포인트 미입력, 한정수량 10으로 각 설정(항목 더블클릭)",null,"성공"]
[null,null,"BOS",12,"저장 버튼 선택","정지혜","실패","프로그램","하","저장되었으나 목록에 나오지 않음",null,null,"완료","이태영","07.28"]
[null,null,"BOS",13,"등록했던 프로모션 선택","정지혜","실패","프로그램","하","(정유리)\n 프로모션저장후는상태가대기라\n 조회가바로되지는않음\n 기간X조건등록후조회시에만노출됨\n \n (정지혜)\n 1. 기간 오늘로 조건 주고 조회시 조회안됨\n (진행상태만조회되는버그)\n \n (윤지영)\n 프로모션 조회 안됨",null,null,"완료","이태영","07.28"]
[null,null,"BOS",14,"하단에서 '진행' 버튼 선택","정지혜","실패","프로그램","하","(정지혜)\n 1. 진행 버튼이 어디는 검은색이고 어디는 흰색임\n 여기는 취소가 검정 버튼이라 UI 혼동심함\n 2. 프로모션 진행을 눌렀으나, 진행이 되지 않고 목록에 계속 대기상태로 남아있음(Pid 30)",null,null,"완료","이태영","07.28"]
[null,null,"BOS",15,"프로모션 등록했던 상품(#) 상세 진입","정지혜","실패","데이터","하","(정지혜)\n 1. 프로모션이 다중조건인데, 1개 조건만 노출됨\n STYD00000040","수정완료",null,"완료","김은실",6.23]
[null,null,"쇼핑몰",16,"(로그인 상태)\n  바로 구매 또는 쇼핑백 구매로 구매 진행","정지혜","실패","프로그램","하","(정지혜)\n 1. 딜 상품 등록 시, 사은품 조회 안됨\n --> 딜을 그럼등록을 못하게 해야하는거 아닌가요??",null,null,"완료","이태영","07.28"]
[null,null,"쇼핑몰",17,"주문 항목 설정 후, 결제","정지혜","실패","프로그램","하","(정지혜)\n 생성이 정상적으로 되지 않아 확인불가",null,null,"완료","이태영","07.28"]
[null,null,"BOS",18,"상단 '주문/배송' 메뉴 선택","정지혜","실패","프로그램","하","(정지혜)\n 생성이 정상적으로 되지 않아 확인불가",null,null,"완료","이태영","07.28"]
[null,null,"BOS",19,"좌측 주문관리>주문목록 메뉴 선택","정지혜","실패","프로그램","하","(정지혜)\n 생성이 정상적으로 되지 않아 확인불가",null,null,"완료","이태영","07.28"]
[null,null,"BOS",20,"몰구분(자사몰) 설정, 주문자명 입력, 조회일자(최근 한주) 설정 후, '조회' 버튼 선택","정지혜","실패","프로그램","하","주문최근한달/4개월 조회햇으나 \n 6월10일꺼부터나옴\n \n (정지혜)\n 생성이 정상적으로 되지 않아 확인불가",null,null,"완료","이태영","07.28"]
[null,null,"BOS",21,"주문번호 선택","정지혜","실패","프로그램","하","(정지혜)\n 생성이 정상적으로 되지 않아 확인불가",null,null,"완료","이태영","07.28"]
[null,null,"BOS",22,"주문 정보 검증","정지혜","실패","프로그램","하","(정지혜)\n 생성이 정상적으로 되지 않아 확인불가",null,null,"완료","이태영","07.28"]
["TEST_06_009","선포인트 세팅 및 주문","BOS",1,"상단 메뉴에서 상품 선택",null,"성공"]
[null,null,"BOS",2,"상푸목록 선택",null,"성공"]
[null,null,"BOS",3,"상품코드 또는 상태 등을 통해 상품 조회",null,"성공"]
[null,null,"BOS",4,"특정 상품 선택",null,"성공"]
[null,null,"BOS",5,"PC 포인트 및 모바일 포인트 할인율 설정\n  \n  * 해당 항목이 선포인트 지급 정보 설정 항목임",null,"성공"]
[null,null,"BOS",6,"저장 버튼 선택",null,"성공"]
[null,null,"쇼핑몰",7,"상품(#) 확인",null,"성공"]
[null,null,"쇼핑몰",8,"(로그인 상태)\n  바로 구매 또는 쇼핑백 구매로 구매 진행",null,"성공"]
[null,null,"쇼핑몰",9,"주문 항목 설정 후, 결제","정지혜","실패","데이터","하","(정지혜)\n 1. 상단 상품 정보 항목 포인트 오류\n 2. 네이버 페이 결제 상품 정보 노출 시, 아이콘 확인","1. 포인트정보 수정완료\n2. 현재 개발중",null,"완료",6.17,"전석훈"]
[null,null,"BOS",10,"상단 '주문/배송' 메뉴 선택",null,"성공"]
[null,null,"BOS",11,"좌측 주문관리>주문목록 메뉴 선택",null,"성공"]
[null,null,"BOS",12,"몰구분(자사몰) 설정, 주문자명 입력, 조회일자(최근 한주) 설정 후, '조회' 버튼 선택",null,"성공"]
[null,null,"BOS",13,"주문번호 선택",null,"성공"]
[null,null,"BOS",14,"주문 정보 검증",null,"성공"]
["TEST_06_010","* 모바일에서 확인 필수\n  \n  선물하기","BOS",1,"상품> 상품관리> 상품목록에서 승인완료된 상품 접근하여 '선물 주문가능여부' Y로 체크 후 저장","김은주","실패","프로그램","하","(김은주)\n 상품 검색시 선물하기 Y 여부 비확인","상품검색항목에는 선물주문가능여부 조회 조건 없음.\n상품상세에서 선물주문가능여부 체크",null,"완료","김은실",6.19]
[null,null,"FRONT",2,"로그인 후 해당 상품 상세 접근하여 옵션 선택 후 선물하기 선택","정지혜\n김은주","실패","프로그램","하","(정지혜)\n 모바일 디바이스 환경에서는 로그인 체크안됨\n \n (김은주)\n 선물하기 버튼 미확인 / 선물 가능한 상품 확인요청",null,null,"완료"]
[null,null,"FRONT",3,"선물하기 주문내역 확인","정지혜","실패","데이터","하","(정지혜)\n 포인트 내역 비정상","포인트내역수정완료",null,"완료",6.17,"전석훈"]
[null,null,"FRONT",4,"주문고객 정보 확인",null,"성공"]
[null,null,"FRONT",5,"선물 받으실 분 영역에 받는분, 받는분 휴대전화번호, 선물 메시지 입력\n  \n  * 테스트를 위해 본인 혹은 옆 동료 번호 지정 요청","정지혜","실패","프로그램","하","(정지혜)\n 1. 선물 받으실분 기본키보드 : 한글 로설정이안되어있음\n 2. 휴대폰 번호 키패드 : 숫자키패+드 안나옴\n 3. 휴대폰번호 키패드영역 닫으면 파란색 라인이 생김\n 4. 탑버튼 위치 확인 필요\n 5. 최근본상품 미구현","1. 기본한글로설정\n2. 숫자키패드설정\n3. 확인중\n4. 퍼블수정\n  [퍼블확인] \n    탑버튼 위치는 \n    노치 추가되면서 \n    일괄 조정 반영됨 \n    (6월4일자)\n5. 최근본상품이 어느위치에서 구현되는지 확인 부탁드립니다.\n",null,"완료",6.18,"전석훈"]
[null,null,"FRONT",6,"(해당사항인 경우에 진행)\n  할인혜택 사용 영역 확인",null,"성공"]
[null,null,"FRONT",7,"(해당사항인 경우에 진행)\n  할인코드 입력 후 적용버튼 클릭",null,"성공"]
[null,null,"FRONT",8,"(해당사항인 경우에 진행)\n  쿠폰변경 버튼 클릭",null,"성공"]
[null,null,"FRONT",9,"(해당사항인 경우에 진행)\n  쿠폰 리스트 확인","정지혜\n김은주","보류","프로그램","하","(정지혜)\n 1. 쇼핑백에서 상품 딤드 처리 한 부분 잘못나옴 확인바람\n 2. 모바일 > 주문서에서 세트 상품 로딩시, 로딩 할때는 2개 기준 5000 P 였다가 레이어를 열고 다시 확인하면 2040P 적립 예정으로 변경됨(포인트 적립금액오류발생)\n 3. 모바일 > 주문서 쿠폰 적용팝업에서 총 -XXXX원 이라고 알림이 나옴, 총 XXXX원 할인인데요..\n 4. 모바일 > 쿠폰팝업에서 쪽에 노출되는 상품 컷 비율 맞지 않음\n 5. 모바일 > 결제수단 선택 없을 때 결제수단 아코디언 열려있어야 하나, 안열려있음\n \n (김은주)\n 쿠폰 미확인으로 적용 불가","1. 퍼블에서 확인요처\n    [퍼블완료] (6/17)\n\n2. 정상동작확인\n3. 확인중\n4. 수정완료\n5. 수정완료\n\n",null,"완료",6.18,"전석훈"]
[null,null,"FRONT",10,"(해당사항인 경우에 진행)\n  쿠폰 리스트에서 다른 쿠폰 선택하여 쿠폰 적용 버튼 클릭","김은주","보류","프로그램","하","(김은주)\n 적용 안됨","정상동작확인 어떻게 적용이 안되는지 상세 설명 부탁드립니다.",null,"완료",6.18,"전석훈"]
[null,null,"FRONT",11,"(해당사항인 경우에 진행)\n  스타일 포인트 입력 후 적용 버튼 클릭",null,"성공"]
[null,null,"FRONT",12,"(해당사항인 경우에 진행)\n  상품권 사용 금액 입력 후 적용 버튼 클릭",null,"성공"]
[null,null,"FRONT",13,"결제수단에서 결제수단 선택",null,"성공"]
[null,null,"FRONT",14,"결제 예정금액 확인",null,"성공"]
[null,null,"FRONT",15,"동의 후 결제하기' 버튼 선택하여 결제 진행","정유리\n 정지혜","실패","프로그램","하","브라우저테스트시는결제가안됨\n (카드결제-BC카드페이북)\n 모바일디바이스테스트시는\n 로그인이되지않아테스트불가\n \n (정지혜)\n 선물메시지 스크립트 내용치환안됨","선물스크립트 어떤내용인지 상세설명 부탁드립니다.",null,"보류",6.18,"전석훈"]
[null,null,"FRONT",16,"마이페이지 > 주문조회 선택","정유리","실패","프로그램","하","결제가되지않아잔여테스트진행불가",null,null,"보류"]
[null,null,"FRONT",17,"선물한 목록 상태 확인","정유리\n 정지혜","실패","프로그램","하","결제가되지않아잔여테스트진행불가\n \n (정지혜)\n Sms 재발송기능안됨",null,null,"보류"]
[null,null,"FRONT",18,"선물받기 완료 후 다음 진행","정유리","실패","프로그램","하","결제가되지않아잔여테스트진행불가",null,null,"보류"]
[null,null,"BOS",19,"상단 '주문/배송' 메뉴 선택","정유리","실패","프로그램","하","결제가되지않아잔여테스트진행불가",null,null,"보류"]
[null,null,"BOS",20,"좌측 주문관리>주문목록 메뉴 선택","정유리","실패","프로그램","하","결제가되지않아잔여테스트진행불가",null,null,"보류"]
[null,null,"BOS",21,"몰구분(자사몰) 설정, 주문자명 입력, 조회일자(최근 한주) 설정 후, '조회' 버튼 선택","정유리\n 정지혜","실패","프로그램","하","결제가되지않아잔여테스트진행불가\n \n (정지혜)\n 업체 브랜드 를 자사로 설정했는데 \n 전체 섞여서 노출됨\n 결제타입이 일부항목만 노출됨\n 주문엑셀 데이터 이상함","상세한설명부탁드립니다.",null,"보류",6.18,"전석훈"]
[null,null,"BOS",22,"주문번호 선택","정유리","실패","프로그램","하","결제가되지않아잔여테스트진행불가",null,null,"보류"]
[null,null,"BOS",23,"주문 정보 검증","정유리","실패","프로그램","하","결제가되지않아잔여테스트진행불가",null,null,"보류"]
["TEST_06_011","* 모바일에서 확인 필수\n  \n  선물받기","FRONT",1,"[받는사람]\n  링크를 통해 선물받기 페이지 진입\n  \n  * 링크\n  http://ts5000.ipdisk.co.kr/order/giftComplete?ordNo=주문번호","정유리\n 정지혜","실패","프로그램","하","(정유리)\n 결제가되지않아잔여테스트진행불가\n \n (정지혜)\n 상단 헤더 짤림\n 배송지 영역 열리지 않음\n \n (김은주)\n 선불받기 링크 페이지로 이동안됨 > 메인 페이지로 이동됨","1.상단헤더수정완료",null,"보류",6.18,"전석훈"]
[null,null,"FRONT",2,"[받는사람]\n  선물받으실 상품 선택","정유리\n 정지혜","실패","프로그램","하","결제가되지않아잔여테스트진행불가\n \n (정지혜)\n 상품 이미지 정보 정상적으로 안나옴(더미이미지나옴)\n 브랜드명 두개나옴","수정완료",null,"보류",6.18,"전석훈"]
[null,null,"FRONT",3,"[받는사람]\n  선물받으실 상품 정보 확인","정유리\n 정지혜","실패","프로그램","하","결제가되지않아잔여테스트진행불가\n \n (정지혜)\n 호출안됨",null,null,"보류"]
[null,null,"FRONT",4,"[받는사람]\n  '옵션변경' 버튼 선택","정유리\n 정지혜","실패","프로그램","하","결제가되지않아잔여테스트진행불가\n \n (정지혜)\n 호출안됨",null,null,"보류"]
[null,null,"FRONT",5,"[받는사람]\n  사이즈 변경 후 저장 선택","정유리\n 정지혜","실패","프로그램","하","결제가되지않아잔여테스트진행불가\n \n (정지혜)\n 호출안됨",null,null,"보류"]
[null,null,"FRONT",6,"[받는사람]\n  선물하신 분 확인","정유리\n 정지혜","실패","프로그램","하","결제가되지않아잔여테스트진행불가\n \n (정지혜)\n 마스킹되어 노출됨",null,null,"보류"]
[null,null,"FRONT",7,"[받는사람]\n  선물하신 분 선택","정유리\n 정지혜","보류","프로그램","하","결제가되지않아잔여테스트진행불가\n \n (정지혜)\n 메시지 데이터 치환해서 나오지 않음","선물메시지 상세설명 부탁드립니다.",null,"보류",6.18,"전석훈"]
[null,null,"FRONT",8,"[받는사람]\n  선물 받으실 분 배송지 선택","정유리","실패","프로그램","하","결제가되지않아잔여테스트진행불가",null,null,"보류"]
[null,null,"FRONT",9,"[받는사람]\n  배송지 정보 입력 후 '배송지 등록' 버튼 선택","정유리","실패","프로그램","하","결제가되지않아잔여테스트진행불가",null,null,"보류"]
[null,null,"FRONT",10,"[받는사람]\n  배송지 변경 버튼 선택","정유리","실패","프로그램","하","결제가되지않아잔여테스트진행불가",null,null,"보류"]
[null,null,"FRONT",11,"[받는사람]\n  배송지 변경 정보 입력 후 '배송지 등록' 버튼 선택","정유리\n 정지혜","보류","프로그램","하","결제가되지않아잔여테스트진행불가\n \n (정지혜)\n 반영은 되나, 갑자기 팝업이 닫히고, 인지가 불가","정상동작확인 상세설명 부탁드립니다.",null,"보류",6.18,"전석훈"]
[null,null,"FRONT",12,"[받는사람]\n  '선물 배송 요청' 버튼 선택","정유리","실패","프로그램","하","결제가되지않아잔여테스트진행불가",null,null,"보류"]
[null,null,"FRONT",13,"[받는사람]\n  '확인' 버튼 선택","정유리","실패","프로그램","하","결제가되지않아잔여테스트진행불가",null,null,"보류"]
[null,null,"FRONT",14,"[보낸 사람]\n  마이페이지 > 주문조회 선택","정유리","실패","프로그램","하","결제가되지않아잔여테스트진행불가",null,null,"보류"]
[null,null,"FRONT",15,"[보낸 사람]\n  선물한 목록 상태 확인","정유리\n 정지혜","실패","프로그램","하","결제가되지않아잔여테스트진행불가\n \n (정지혜)\n 리뷰쓰기 버튼 미노출, 주문취소버튼 계속 노출됨","어느화면인지 상세설명 부탁드립니다.",null,"보류",6.18,"전석훈"]
[null,"[해외구매대행]\n  [병행수입]\n  [주문제작]\n  로 설정한 상품\n  \n  바로구매(또는 쇼핑백 구매)","쇼핑몰",1,"TBJ 상품 > 남성 > 티셔츠 \n  에서 상품 확인",null,"성공"]
[null,null,"쇼핑몰",2,"해당 상품 선택",null,"성공"]
[null,null,"쇼핑몰",3,"(로그인 상태)\n  바로 구매 또는 쇼핑백 구매로 구매 진행",null,"성공"]
[null,null,"쇼핑몰",4,"개인통관고유부호 항목 노출","정지혜","실패","데이터","하","(정지혜)\n 1. 열었을때 스크롤이 위로 올라가서 내용확인어려움\n 2, 통관부호 입력한 내용에 대한 내용안나옴","[퍼블 완료]_06.17_윤성미\n1. 선택된 항목은 \n화면 안으로 이동되게 처리 됨.\n",null,"완료"]
[null,null,"쇼핑몰",5,"개인통관고유부호 저장/관리 동의 체크","정지혜","실패","화면","하","(정지혜)\n 열었을때 스크롤이 위로 올라가서 내용확인어려움\n -> 체크 하고 닫았을때, 체크 표시 활성화되지 않음","[퍼블 완료]_06.17_윤성미\n1. 선택된 항목은 \n화면 안으로 이동되게 처리 됨.\n2. 체크 표시 활성상태는 퍼블 화면 상으로는 이상 없음",null,"완료",6.17,"윤성미"]
[null,null,"쇼핑몰",6,"주문제작상품인 경우, 주문제작상품 동의 체크","정지혜","실패","화면","하","(정지혜)\n 열었을때 스크롤이 위로 올라가서 내용확인어려움\n -> 체크 하고 닫았을때, 체크 표시 활성화되지 않음","[퍼블 완료]_06.17_윤성미\n1. 선택된 항목은 \n화면 안으로 이동되게 처리 됨.\n2. 체크 표시 활성상태는 퍼블 화면 상으로는 이상 없음",null,"완료",6.17,"윤성미"]
[null,null,"쇼핑몰",7,"결제하기",null,"성공",null,null,"주문번호 19713873"]
[null,null,"쇼핑몰",8,"주문완료 메일 및 알림톡 확인","정유리","실패","프로그램","하","확인 불가",null,null,"완료"]
["TEST_11_001","입고상품 확인","BOS",3,"BOS 상품>상품관리>WMS입고상품관리 메뉴 선택\n  조회조건은 등록일 : 최근 한달 로 \n  조회","정지혜","실패","프로그램","하","(정지혜)\n * SCM에 노출된 WMS 입고관리 페이지는 메뉴 눌러도 나오지않음, 미제공 메뉴로 파악하고 있는데, 관련 메뉴 노출 처리하거나 제거처리하거나 필요\n * 입고된 수량 데이터가 없음\n * 입고데이터는 SKU기준으로 노출되어야함\n * WMS 입고화면 참고","테스트입점업체의 메뉴 삭제\n\nADMIN의 WMS 입고상품관리 화면에 대한 인터뷰 요청",null,"완료","김은실","07.28"]
[null,"촬영업체 \n  자사상품대량등록","SCM",1,"scm.style24.com\n  > eskimfilm/1q2w3e4r5t\n  계정으로 접근\n  SCM 상품>상품관리>상품대량등록 메뉴 선택","정지혜","개선","프로그램","하","(정지혜)\n ** 왜 scm은 단수등록 있는데 촬영업체는 없나요.",null,null,"완료","김은실","07.28"]
[null,null,"SCM",2,"자사상품 등록양식 다운로드 버튼 클릭",null,"성공"]
[null,null,"SCM",3,"다운받은 양식에 BOS WMS입고상품관리에 조회된 모델번호(온라인상품코드) 기준으로 작성\n  --> 상기 상품 중 1개 실행\n  A213JK169P\n  A214DM159P\n  E213SW344P\n  E213TS367P\n  E214PT354P\n  E214SW348P\n  E214SW392P\n  N214DM358P\n  N214JK127P\n  N214JK327P\n  O212PT120P","박지영","보류","프로그램","하","(박지영)\n 해당품번 재고 없음으로 등록 안됨\n \n (정지혜)\n [기본정보]\n 1. 안전인증정보 등록내용이 없음(필요함)\n 2. 시즌코드는 분류되는게 있는데 왜 구지 등록하라고 하나요?(일전에 분리요청하고 데이터 분류 이야기 주셨는데 다 그부분 스킵됨)\n 3. 아동연령코드 자사는 등록이없습니다. 확인바랍니다.\n [고시정보]\n - 안내되는 정보 컬럼이 달라 혼동이 심함,\n 1. 색상/치수데이터는 자동으로 입력되는데, 이 부분은 안내를 줘야 하는거 아닌지요?\n 2. 기존 품번 룰에 따라 기본 분류되는 품목 군이 있는데, 수기로 무조건 입력을 해야 하게 처리한건 왜인지?\n 3. 성별군의 경우 한세드림은 자동으로 분류 되도록 데이터가 나눠져 있는데 별도 인풋을 해야 하는지?\n --> 관련 내용이 업로드되면서 보정되는지 확인\n 원산지 의 경우 원산지 코드 정보가 있는데 입력을 별도로 받고있음\n - 제조년월데이터 두번입력","[기본정보]\n1.촬영업체 등록시 인증이 없고 인증은 상품 등록후 MD가 개발 진행\n2.스타일 및 시즌은 공통코드 입력으로 처리,\n통합품번분류코드의 정보는 마이그용으로 사용\n3.수정완료\n[고시정보]\n1.엑셀 입력값 적용으로 변경\n2.3.현재 프로세스 유지\n\n",null,"완료","김은실","07.28"]
[null,null,"SCM",4,"대량자사상품등록 버튼을 클릭하여 작성한 엑셀파일 선택 후 저장",null,"실패","프로그램","하","(박지영)\n 해당품번 재고 없음으로 등록 안됨","WMS 작업으로 재고설정됨 \n등록 테스트 진행가능",null,"완료","김은실",6.18]
[null,null,"SCM",5,"아래 검색조건에 등록일을 오늘(상품등록작업일)로 하여 조회버튼 클릭",null,"성공",null,null,"(이재연)\n 대량상품 수정 시, 로딩이 계속 됨"]
[null,null,"SCM",6,"상품 이미지 생성\n  자사상품등록양식의 색상 시트를 참조하여 \n  온라인상품코드_온라인색상코드_이미지순번.JPG 로 생성",null,"성공"]
[null,null,"SCM",7,"이미지 대량 등록 버튼 클릭 후 파일추가버튼을 클릭하여 이미지 선택",null,"성공"]
[null,null,"SCM",8,"업로드/수정버튼을 클릭","정지혜","실패","프로그램","하","(정지혜)\n 대량 등록 이미지 메뉴를 통해 업로드시 오류(오류 3회 이상 이후에 업로드성공함)\n dext5 => ESVG-00024 c3.2.0.0-m3.2.0.0 파일을 전송하고 있는 상태입니다.",null,null,"완료","김은실","07.28"]
[null,null,"SCM",9,"상품>상품관리>상품목록 메뉴선택",null,"성공"]
[null,null,"SCM",10,"등록된 상품코드를 키워드에 입력 하거나 등록일을 오늘로 선택 후 조회 버튼 클릭","정지혜","실패","프로그램","하","(정지혜)\n 1. 품목 검색 부분 전체 항목 선택 후, 다른 항목 선텍 하면 조회가 정상적으로 되지 않음(다른 항목만 보는현상)","정상처리 확인",null,"완료","김은실",6.18]
[null,null,"SCM",11,"상품목록에서 신규 등록 한 상품명 클릭","정지혜","실패","프로그램","하","(정지혜)\n 1. 상세 상품 특징 데이터 잘못들어감(상세 타이틀내용으로 들어가는현상)\n 2. KC 인증필유무/수입여부 데이터는 자동으로 들어가게 되어있는데 기준이 어떻게 되는지?\n 3. 선물여부 Y로 처리요망\n 4. 촬영엽체에서 다른 기본정보에 대한 수정 불가함(저장버튼없음)","1.수정완료\n2.인증작업은 MD가작업, 고시항목의 수입여부는 입력값으로 처리 \n3.수정완료\n4.이미지작업만 가능",null,"완료","김은실",6.18]
[null,null,"SCM",12,"상품상세 팝업에서 옵션/재고정보탭을 선택 > \n  색상의 수정버튼 클릭","박지영","실패","프로그램","하","(박지영)\n 이미지 적용 안됨","정상 처리 확인",null,"완료","김은실",6.18]
[null,null,"BOS",13,"BOS 로그인 - 본인계정",null,"성공"]
[null,null,"BOS",14,"BOS 상품>상품관리>상품목록 메뉴 선택\n  조회조건은 등록일 : 최근 한달 로 \n  조회","정지혜","실패","프로그램","하","(정지혜)\n 품절여부 N 으로 조회 했는데 일시품절 상품",null,null,"완료","김은실","07.28"]
[null,null,"BOS",15,"상품목록중 등록된 상품의 상품명 클릭",null,"성공"]
[null,null,"BOS",16,"상품상세에서 상품 필수정보, 이미지,고시정보 입력 및 확인후 상품상태를 승인완료 선택후 저장버튼 클릭","정지혜","실패","프로그램","하","(정지혜)\n 오류로 인해 처리되지 않았다는 alert 노출되며 저장되지 않음\n N214JK327P","상품이력 테이블 출고처코드 컬럼 추가",null,"완료","김은실",6.18]
[null,null,"쇼핑몰",17,"상품상세의 미리보기 클릭하거나 아래주소에 상품코드르 적용하여 브라우져에서 조회\n  https://www.style24.com/goods/detail/form?goodsCd=상품코드","정지혜","실패","프로그램","하","(정지혜)\n 상품승인완료되지 않아 확인불가","재확인요청",null,"완료","김은실",6.18]
["TEST_11_003","입점상품대량등록","SCM",1,"scm.style24.com\n  SCM 입점업체 로그인 eskimSupply/1q2w3e4r5t\n  \n  SCM 상품>상품관리>상품대량등록 메뉴 선택",null,"성공"]
[null,null,null,2,"업체명 옆의 배송비 정책 - 선택아닌 첫번째 선택","박지영\n정지혜","실패","프로그램","하","(박지영)\n 배송비 정책 내용 확인 안됨 /안보임\n \n (정지혜)\n 선택 함에 무슨차이가 있나요?\n 데이터 확인인가요? 관련 데이터 확인 하려면, 숫자만 노출하는게 아니라, 관련 정책번호를 같이 뿌려주어야 확인가능합니다.\n (정책번호 값 없어서 정상적인확인불가)\n \n = 출고처 정보는 없는데 어디서 지정하나요?","상품단위 출고처 관리 추가\n입점상품대량등록화면에 출고처 셀렉박스 추가",null,"완료","김은실",6.18]
[null,null,"SCM",3,"입점상품 등록양식 다운로드 버튼 클릭",null,"성공"]
[null,null,"SCM",4,"다운받은 양식에 등록상품 정보 작성\n  공급업체코드:3208\n  공급업체상품코드:본인영문명(중복되지 않을 코드)\n  브랜드코드:","정지혜","실패","프로그램","하","(정지혜)\n 브랜드 코드 확인방법이없음\n 1. 유전자 재조합식품 안내 오타","상품목록에 업체별 해당 브랜드 조회 가능,\n브랜드 신규생성시 브랜드 생성후 해당 브랜드코드 업체에 공유\n1.수정완료\n\n",null,"완료","김은실",6.19]
[null,null,"SCM",5,"대량입점상품등록 버튼을 클릭하여 작성한 엑셀파일 선택 후 저장","박지영\n정지혜\n","실패","프로그램","하","(박지영)\n 파일 업로드 실패\n \n (정지혜)\n 업로드 오류 발생(가격오류벨리데이션없음)\n /files/data/style24/excel/excel/입점등록테슽.xlsx: Input/output error\n --> 가격 오류시 상기와 같이 에러나옴\n 1. 에러가 어떤 것 때문에 어떤 상품이 났는지 알수가 없음\n 2. 상품상세 html 필수값이나 벨리데이션체크안함( 등록안해도 승인도 되고 등록도됨)","\n\n1.엑셀파일 파싱시 오류는 상품정보  확인할 수 없음\n2.수정완료\n\n\n\n",null,"완료","김은실",6.19]
[null,null,"SCM",6,"등록일을 오늘(상품등록작업일)로 하여 조회버튼 클릭",null,"성공"]
[null,null,"SCM",7,"상품 이미지 생성\n  입점상품등록양식의 색상 시트를 참조하여 \n  온라인상품코드_이미지순번.JPG 로 생성",null,"성공"]
[null,null,"SCM",8,"이미지 대량 등록 버튼 클릭 후 파일추가버튼을 클릭하여 이미지 선택",null,"성공"]
[null,null,"SCM",9,"업로드/수정버튼을 클릭",null,"성공"]
[null,null,"SCM",10,"상품>상품관리>상품목록 메뉴선택",null,"성공"]
[null,null,"SCM",11,"등록된 상품코드를 키워드에 입력 하거나 등록일을 오늘로 선택 후 조회 버튼 클릭",null,"성공"]
[null,null,"SCM",12,"상품목록에서 상품명 클릭","정지혜","실패","프로그램","하","(정지혜)\n 1. SCM 입점에서 포인트 및 선포인트 세팅 가능한상태, 해당 내용불가함.\n 2. 시즌데이터 필수인데 벨리데이션체크안함\n 3. 고시정보 입력하라는 내용과 다르게 내용이 늘어나있음( 화장품) - 대량입력안내와 전혀 다름/","1.수정완료\n2.수정완료\n3.수정완료",null,"완료","김은실",6.19]
[null,null,"SCM",13,"상품상세 팝업에서 옵션/재고정보탭을 선택 > \n  등록한 색상의 수정버튼 클릭","정지혜","실패","프로그램","하","(정지혜)\n 1. 업로드 된 이미지 리스트에서 ↓ 아이콘 클릭 시 오류발생 --> dext5 => ESVG-00021 c3.2.0.0-m3.2.0.0 파일 다운로드 진행 중 오류가 발생했습니다. Type: Single Target: 0000024643/20210616 Respone-status: 404",null,null,"완료","김은실","07.28"]
[null,null,"BOS",14,"BOS 로그인 - 본인계정",null,"성공"]
[null,null,"BOS",15,"BOS 상품>상품관리>상품목록 메뉴 선택\n  조회조건은 등록일 : 최근 한달 로 \n  조회",null,"성공"]
[null,null,"BOS",16,"상품목록중 등록된 상품의 상품명 클릭",null,"성공"]
[null,null,"BOS",17,"상품상세에서 상품 필수정보, 이미지,고시정보 확인후 상품상태를 승인완료 선택후 저장버튼 클릭","정지혜","실패","프로그램","하","(정지혜)\n 1.전체 승인 기능으로 처리하려 할때, 체크박스 선택 한 항목만 적용되는게 아닌, 전체 항목으로 체크됨\n 2. 이미지 등록되었으나 이미지 등록이 필요하다고 나옴 (고시정보 미등록 상태인데, 안내 잘못나오는 케이스임)[ E075100000069 ]은\n 이미지가 등록되지 않아 '승인대기'나 '승인완료' 상태로 변경할 수 없습니다.\n 상품을 확인하시고, 다시 시도해주세요.","1.정상처리 확인\n2.체크 메세지 수정",null,"완료","김은실",6.19]
[null,null,"FRONT",18,"상품상세의 미리보기 클릭하거나 아래주소에 상품코드르 적용하여 브라우져에서 조회\n  https://www.style24.com/goods/detail/form?goodsCd=상품코드","정지혜","실패","데이터","하","(정지혜)\n E075100000068 / E075100000069\n --> 상품상세 html 등록안되었으나 승인됨\n 1. 프론트 이미지 클릭 시, 닫기버튼이 이미지에 가림(모바일) 위치 확인\n 2. 모바일 html에서 table은 태그 깨져셔나옴\n 3.상위 모바일 버전 이미지의 경우 리사이징 되어 정상사이즈로 안나옴 확인(높이리사이징되면 안됨..가로 맞춰서 노출되어야함)\n 4. 하위 모바일 버전 이미지 상동\n 5. 상세설명 별도표기 에 대해서도 관련 안내 나와야 하나 나오지 않음\n 6. 택배사 정보 어디서 확인하나요?\n 7. 상품상세 이미지 클릭 시 pc 팝업 에서 이미지 안나오는 현상\n 8. 배송안내 팝업 모바일 상단 브랜드/영역 살짝 영역 벗어남\n 9. 모바일 확인 시 기술서 이미지안나옴, 상기 부분 경로 확인 필요(외부도메인 이슈일수도있음)\n 10. 모바일 노치영역에 구매하기,찜, 공유버튼 이 일부묻혀 버튼위치가 안맞음\n 11. 옵션선택 문구(선택되었을때) 너무작음\n 12. 카카오톡 공유 구현안된건지확인\n 13. 카드혜택 영역 상단 하단 좀 벌어짐\n 14. 모바일 상품기술서 영역 벌어짐(상단영역 쫙벌어짐)","1.입점상품 HTML 필수 적용\n2.이상확인할수 없음\n3.MD공지와 동일하게 리사이징되어 노출되고 있음\n4.MD공지와 동일하게 리사이징되어 노출되고 있음\n5.해당 사항 확인 불가\n6.배송/교환/반품 레이어에서 확인 가능\n7.정상 노출되고 있음\n8.해당 현상 확인 불가\n9.정상이슈\n10.해당 현상 확인 불가\n11.디자인 및 퍼블 가이드에 맞게 노출되고 있음\n12.http://ts5000.ipdisk.co.kr에서 장상 노출확인, 운영 오픈시 확인\n13.해당 현상 확인 불가\n14.수정완료\n\n",null,"완료","김은실",6.21]
["TEST_11_004","입점상품단품등록","SCM",1,"scm.style24.com\n  SCM 입점업체 로그인 eskimSupply/1q2w3e4r5t\n  \n  SCM 상품>상품관리>입점상품등록 메뉴 선택",null,"성공"]
[null,null,"SCM",2,"브랜드및 업체 상품 코드 입력\n  업체상품코드:본인영문명01(중복되지 않을 코드)",null,"성공"]
[null,null,"SCM",3,"기본정보탭의 필수 입력","정지혜","실패","프로그램","하","(정지혜)\n 입점업체에서 선포인트 및, 포인트 입력불가","단품입력화면제외,\n저장시 자동처리로 수정",null,"완료","김은실",6.19]
[null,null,"SCM",4,"옵션재고정보탭의 옵션추가버튼을 클릭하여 옵션정보 입력",null,"성공"]
[null,null,"SCM",5,"상품상세정보탭의 서브 상세HTML 탭을 선택 > 상품상세 editor의 </>버튼을 클릭하여 상품상세html 입력 > </>버튼을 클릭",null,"성공"]
[null,null,"SCM",6,"고시정보탭의 고시분류 콤보 선택 후 선택 버튼 클릭","정지혜","실패","프로그램","하","(정지혜)\n 제조국 코드가 국가코드 정보를 안보게되있음","기본정보와 고시정보는 별개의 데이터 처리됨",null,"완료","김은실",6.19]
[null,null,"SCM",7,"해당 고시분류를 선택 후 고시항목별 정보 입력",null,"성공"]
[null,null,"SCM",8,"안전인증탭의 인증정보 입력\n  (필수아님)","정지혜","실패","프로그램","하","(정지혜)\n 필수값으로 체크 필요\n - 인증대상 아닐 경우 인증형태/인증타입/인증번호 미입력인데 입력가능하게 풀려있음\n - 공급자 적합성 항목인데 인증번호를 입력하게 되어있음\n - 인증번호에 대한 api 벨리데이션 없이 등록되고 있음","유아용품일경우 필수 체크로직 추가 - 단품/ 대량등록",null,"완료","김은실",6.28]
[null,null,"SCM",9,"저장버튼을 클릭",null,"성공"]
[null,null,null,10,"BOS 로그인 - 본인계정",null,"성공"]
[null,null,"SCM",11,"SCM 상품>상품관리>상품목록 메뉴 선택",null,"성공"]
[null,null,"SCM",12,"등록된 상품코드를 키워드에 입력 하거나 등록일을 오늘로 선택 후 조회 버튼 클릭",null,"성공"]
[null,null,"SCM",13,"상품목록에서 등록한 상품명 클릭",null,"성공"]
[null,null,"SCM",14,"상품상세 팝업에서 옵션/재고정보탭을 선택 > \n  등록한 색상의 수정버튼 클릭",null,"성공"]
[null,null,null,15,"상품 이미지 생성\n  입점상품등록양식의 색상 시트를 참조하여 \n  온라인상품코드_이미지순번.JPG 로 생성",null,"성공"]
[null,null,"SCM",16,"파일추가버튼을 클릭하여 이미지 선택",null,"성공"]
[null,null,"SCM",17,"업로드/수정버튼을 클릭","박지영","실패","데이터","하","(박지영)\n 이미지 순번대로 노출안됨 / 순서 수정은 됨","테스트하신 상품코들 공유해주세요",null,"완료","김은실","07.28"]
[null,null,"BOS",18,"BOS 로그인 - 본인계정",null,"성공"]
[null,null,"BOS",19,"BOS 상품>상품관리>상품목록 메뉴 선택\n  조회조건은 등록일 : 최근 한달 로 \n  조회",null,"성공"]
[null,null,"BOS",20,"상품목록중 등록된 상품의 상품명 클릭",null,"성공"]
[null,null,"BOS",21,"상품상세에서 상품 필수정보, 이미지,고시정보 확인후 상품상태를 승인완료 선택후 저장버튼 클릭",null,"성공"]
[null,null,"FRONT",22,"상품상세의 미리보기 클릭하거나 아래주소에 상품코드르 적용하여 브라우져에서 조회\n  https://www.style24.com/goods/detail/form?goodsCd=상품코드","정지혜","실패","프로그램","하","(정지혜)\n 1. 품절 제외 체크 후, 체크박스 해제 시 계속 품절 제외된 상태로 처리됨\n \n 2. E031800000053\n - 옵션 하위명 노출안되는현상\n 3. 상품 특징쪽 html 기술해도 나오지않음","1.정상작동 확인\n2.장상작동 확인\n3.정상작동 확인\n",null,"완료","김은실",6.21]
["TEST_12_001","입점주문목록","FRONT",1,"입점업체(레코픽) 상품을 주문\n  상품코드(10778211, 10770612)","정지혜","실패","프로그램","하","(정지혜)\n https://www.style24.com/goods/detail/form?goodsCd=10778211&colorCd=&ithrCd=IN18_01\n (옵션단위로 되고안되고함)(\n 서브옵션 3개 적용시에는 안되고, 서브옵션 단일이 금액이 넘어가야적용됨\n 쿠폰이 있어 쿠폰을 받고 적용했으나, 주문에서는 쿠폰적용 안됨\n 결제 완료 페이지에서 포인트 사용은 영역이 깨짐",null,null,"완료","전석훈","07.28"]
[null,null,"SCM",2,"SCM 관리자 화면 로그인\n  ID : xodud1829\n  PASS : a123456789","윤지영","실패","프로그램","하","조회 안됨","로그인 잘됨 확인",null,"완료","이태영","06.15"]
[null,null,"SCM",3,"주문/배송 > 입점주문목록 메뉴로 이동","윤지영","실패","프로그램","하","조회 안됨","이상 없음 확인",null,"완료","이태영","06.15"]
[null,null,"SCM",4,"업체/브랜드 선택 후 조회","윤지영\n 정유리\n 정지혜","실패","프로그램","하","조회 안됨\n 업체/브랜드 선택 후 조회시\n 시작기간을 입력하라는 알럿창 뜸\n 기간셋팅후조회시조회결과가없습니다라고 나옴","기간 기본 조건 제거\n (06/16 배포 예정)\n 그 외 조회 이상 없음으로 보임",null,"완료","이태영","06.15"]
[null,null,"SCM",5,"주문번호 입력 후 조회","윤지영\n 정유리\n 정지혜","실패","프로그램","하","주문번호 19713849 입력 후 조회시\n 조회결과가없습니다라고 나옴",null,null,"완료","전석훈","07.28"]
[null,null,"SCM",6,"주문자명 입력 후 조회","윤지영\n 정유리\n 정지혜","실패","프로그램","하","조회 안됨","정상동작 확인",null,"완료","이태영","06.15"]
[null,null,"SCM",7,"상품코드 입력 후 조회","윤지영\n 정유리\n 정지혜","실패","프로그램","하","조회 안됨","정상동작확인",null,"완료","이태영","06.15"]
[null,null,"SCM",8,"주문상세상태 선택 후 조회","윤지영\n 정유리\n 정지혜","실패","프로그램","하","조회 안됨","SCM에는 주문 상세 상태 선택 후 조회가 없습니다.",null,"완료","이태영","06.15"]
[null,null,"SCM",9,"조회일자 선택 후 조회","윤지영\n 정유리\n 정지혜","실패","프로그램","하","조회 안됨","정상동작확인",null,"완료","이태영","06.15"]
["TEST_12_002","입점미발주목록","SCM",1,"입점미발주목록조회","윤지영\n 정지혜","실패","프로그램","하","조회 안됨\n \n (정지혜)\n 브랜드 설정시 조회 안됨\n 옵션 1번 항목이 안나옴","옵션1 리스트 추가\n 기간 기본 설정 제거\n (06/16 배포예정)",null,"완료","이태영","06.15"]
[null,null,"SCM",2,"결제완료상태의 주문목록 선택후 엑셀다운로드","김선혜\n 윤지영\n 정유리\n 정지혜","실패","프로그램","하","데이터처리중에러\n {\"status\":500,\"error\":{\"message\":\"데이터 처리중 에러가 발생하였습니다. 시스템 관리자에게 문의하세요.\"},\"message\":\"\"}\n \n (정지혜)\n 엑셀 다운로드 안됨, alert 창 나오고 아무응답 없음\n {\"status\":500,\"error\":{\"message\":\"데이터 처리중 에러가 발생하였습니다. 시스템 관리자에게 문의하세요.\"},\"message\":\"\"}\n \n 오류 이후 상품준비중으로 변경하고 페이지 다시조회하니 변경은 되어있음","쿼리 속도 개선\n (06/16 배포 예정)",null,"완료","이태영","06.15"]
[null,null,"SCM",3,"입점미발주목록조회","김선혜\n 윤지영\n 정유리","실패","프로그램","하","응답을 기다리는중 \n {\"status\":500,\"error\":{\"message\":\"데이터 처리중 에러가 발생하였습니다. 시스템 관리자에게 문의하세요.\"},\"message\":\"\"}","정상동작확인",null,"완료","이태영","06.15"]
[null,null,"FRONT",4,"마이페이지 > 주문확인/배송조회","김선혜","실패","프로그램","하","주문목록 확인 안됨",null,null,"완료","전석훈","07.28"]
[null,null,"BOS",5,"주문/배송 > 주문목록","김선혜","실패","프로그램","하","주문목록 확인 안됨",null,null,"완료","전석훈","07.28"]
[null,null,"SCM",6,"입점송장번호등록 다운로드 버튼 클릭","김선혜\n 정유리","실패","프로그램","하","주문목록 확인 안됨",null,null,"완료","전석훈","07.28"]
[null,null,"SCM",7,"입점송장번호등록 양식에 맞게 송장번호, 택배사 기입 후 엑셀업로드","김선혜\n 윤지영\n 정유리\n 정지혜","실패","프로그램","하","주문목록 확인 안됨\n 데이터 안나옴 \n \n (정지혜)\n 출고완료 : 3건 / 실패 : 2건 / 성공 : 1건\n 실패 목록 : 10778211 / NO(Error2)\n 10778211 / NO(Error2)","배송 수량 밸리데이션 수정- 취소 수량 차감 검사\n (06/16 배포예정)",null,"완료","이태영","06.15"]
[null,null,"FRONT",8,"마이페이지 > 주문확인/배송조회","김선혜\n 정유리","실패","프로그램","하","주문목록 확인 안됨\n 이전테스트항목 실행할수없어 테스트불가",null,null,"완료","전석훈","07.28"]
[null,null,"BOS",9,"주문/배송 > 주문목록","김선혜\n 정유리","실패","프로그램","하","이전테스트항목 실행할수없어 테스트불가",null,null,"완료","전석훈","07.28"]
[null,null,"BOS",10,"주문/배송 > 주문목록 > 주문상세","김선혜\n 윤지영\n 정유리","실패","프로그램","하","주문목록 확인 안됨 설정 변경불가\n 송장번호 안나옴",null,null,"완료","전석훈","07.28"]
[null,null,"SCM",11,"입점미발주목록에서 배송준비중 상태의 주문목록 선택 후 송장번호 변경 후 저장버튼 클릭","김선혜\n 윤지영\n 정유리","실패","프로그램","하","주문목록 확인 안됨 설정 변경불가\n 송장번호 안나옴",null,null,"완료","전석훈","07.28"]
["TEST_12_003","입점발주확정대상목록","SCM",1,"입점발주확정대상목록조회","김선혜\n 윤지영\n 정유리","실패","프로그램","하","주문목록 확인 안됨 설정 변경불가\n 조회결과 안나옴",null,null,"완료","전석훈","07.28"]
[null,null,"SCM",2,"배송준비중 목록의 미출고수량등록 후 저장버튼 클릭","김선혜\n 윤지영\n 정유리\n 정지혜","실패","프로그램","하","주문목록 확인 안됨 설정 변경불가\n 조회결과 안나옴\n \n (정지혜)\n 주문/미출고 2로 처리시 데이터 처리 에러\n 다시 처리시 /nullnull : Malformed URL (잘못된 형식의 호출 URL입니다.) 이라고 나옴","네이버페이 취소 URL 설정 추가\n (06/16 배포예정)",null,"완료","이태영","06.15"]
[null,null,"FRONT",3,"마이페이지 > 주문확인/배송조회","김선혜\n 윤지영\n 정유리\n 정지혜","실패","프로그램","하","주문목록 확인 안됨 설정 변경불가\n \n (정지혜)\n 미출고 처리시 에러",null,null,"완료","전석훈","07.28"]
[null,null,"FRONT",4,"마이페이지 > 취소/반품/교환 내역","김선혜\n 정유리\n 정지혜","실패","프로그램","하","주문목록 확인 안됨 설정 변경불가\n \n (정지혜)\n 미출고 처리시 에러",null,null,"완료","전석훈","07.28"]
[null,null,"FRONT",5,"마이페이지 > 취소/반품/교환 내역","김선혜\n 정유리\n 정지혜","실패","프로그램","하","주문목록 확인 안됨 설정 변경불가\n 주문취소함\n \n (정지혜)\n 미출고 처리시 에러",null,null,"완료","전석훈","07.28"]
[null,null,"BOS",6,"주문/배송 > 주문목록 > 주문상세","김선혜\n 정유리\n 정지혜","실패","프로그램","하","주문목록 확인 안됨 설정 변경불가\n 주문취소함\n \n (정지혜)\n 미출고 처리시 에러",null,null,"완료","전석훈","07.28"]
[null,null,"BOS",7,"주문/배송 > 주문목록 > 주문상세","김선혜\n 정유리\n 정지혜","실패","프로그램","하","주문목록 확인 안됨 설정 변경불가\n \n (정지혜)\n 미출고 처리시 에러",null,null,"완료","전석훈","07.28"]
["TEST_13_001","출고처리","BATCH",1,"[출고처 지정 및 출고요청]\n  \n  BOS 운영관리> 시스템관리 > 배치관리 > 업무구분 [주문/배송] 선택후 조회 -> 출고처 지정 및 출고요청 - 실행",null,"성공"]
[null,null,"BOS",2,"BOS> 주문/배송> 배송관리> 배송목록에서 상태값 상품준비중 확인",null,"성공"]
[null,null,"BOS",3,"BOS> 주문/배송> 주문관리> 주문목록에서 상태값 상품준비중 확인",null,"성공"]
[null,null,"FRONT",4,"FRONT > 마이페이지 > 주문확인/배송조회 > 상태값 확인",null,"성공"]
[null,null,"WMS",5,"[WMS_IF DB 등록 확인]\n  \n  서보성이사님 통한 DATA 확인\n  (SELECT * FROM istyle24_Wmsif.dbo.TB_IF_DeliveryOrder where DateIssued > CONVERT(VARCHAR, GETDATE() , 23);)",null,"성공"]
[null,null,"WMS_BATCH",6,"[서보성이사 지원필요]\n  \n  [(WMS)배송지시]\n  \n  수동 배치실행> (WMS)배송지시",null,"성공"]
[null,null,"WMS",7,"[서보성이사 지원필요]\n  \n  WMS 화면> 출고관리> 출고현황에서 출고대상목록 확인.",null,"성공"]
[null,null,"WMS",8,"[서보성이사 지원필요]\n  \n  [(WMS) 피킹지시]\n  \n  WMS 화면> 출고관리> 자동출고지시|| 피킹지시> 피킹지시 실행",null,"성공"]
[null,null,"WMS",9,"[서보성이사 지원필요]\n  \n  WMS 화면> 출고관리> 피킹리스트출력> 출력버튼 이용 피킹리스트 출력",null,"성공"]
[null,null,"WMS",10,"[서보성이사 지원필요]\n  \n  [(WMS) 운송장출력]\n  \n  WMS 화면> 출고관리> 운송장출력> 검색 -> 운송장 수 기재 -> 운송장추력버튼을 이용 운송장출력",null,"성공"]
[null,null,"BATCH",11,"* WMS 피킹지시이후 테스트 가능\n  \n  [송장번호수신]\n  \n  BOS 운영관리> 시스템관리 > 배치관리 > 업무구분 [주문/배송] 선택후 조회 -> 송장번호수신 - 실행","정지혜","실패","프로그램","하","(정지혜)\n 확정전품절/확정후불량 시 문자열 오류\n --> 주문번호가 겹치는 현상\n 마이그에서 검증","수정완료",null,"완료",6.18,"김성욱"]
[null,null,"BOS",12,"BOS> 주문/배송> 배송관리> 배송목록에서 조회 후 목록에서 송장번호 확인.","정지혜","실패","프로그램","하","(정지혜)\n 스윗트래커로 넘길 때 배송중으로(출고확정) 시점에 넘기도록 수정","수정완료",null,"완료",6.17,"문달호"]
[null,null,"BOS",13,"BOS>주문/배송> 주문목록에서 조회 후 목록에서 송장번호 확인","정지혜","실패","프로그램","하","(정지혜)\n 송장 번호 선택 시 에러화면 노출\n - 배송 추적 화면 나와야 하는게 아닌지요?","수정완료",null,"완료",6.18,"전석훈"]
[null,null,"BOS",14,"FRONT > 마이페이지 > 주문확인/배송조회 > 해당 주문건의 [배송 조회] 클릭하여 송장번호 확인",null,"성공"]
[null,null,"WMS",15,"[서보성이사 지원필요]\n  \n  [(WMS)출고확정]\n  \n  WMS 화면> 출고관리> 출고확정화면에서 운송장스캔 (테스트시 수기입력)후 확정","정지혜","실패","프로그램","하","(정지혜)\n 확정전 품절/확정후 불량은 재테스트필요","수정완료",null,"완료",6.21,"서보성"]
[null,null,"WMS",16,"WMS 화면> 출고관리> 출고현황화면에서 출고수량 확인가능",null,"성공"]
[null,null,"WMS_BATCH",17,"[택배사 배송지시]\n  \n  수동 배치실행 > 택배사 배송지시",null,"성공"]
[null,null,null,18,"서보성이사님 통한 DATA 확인\n  (택배사 DB 조회)",null,"성공"]
[null,null,"BATCH",19,"[출고결과 수신]\n  \n  BOS 운영관리> 시스템관리 > 배치관리 > 업무구분 [주문/배송] 선택후 조회 -> 출고결과수신 - 실행\n  (대상- WMS 확정 DATA)",null,"성공"]
[null,null,"BOS",20,"주문/배송> 배송관리> 배송목록에서 조회 후 목록에서 주문상태값 확인 '배송중'","정지혜","실패","데이터","하","(정지혜)\n 변경아이디값이 NULL인데 무엇인지?\n --> 배치 처리 예정","수정완료",null,"완료",7.01,"문달호"]
[null,null,"BOS",21,"주문/배송> 주문관리> 주문목록에서 조회 후 목록에서 주문상태값 확인 '배송중'",null,"성공"]
[null,null,"FRONT",22,"마이페이지> 주문확인/배송조회> 상태값 확인 '배송중'",null,"성공"]
[null,null,"BOS",23,"[스윗트래커 배송추적요청]\n  \n  수동 배치실행 > 스윗트래커 배송추적",null,"성공"]
[null,null,"BOS",24,"주문/배송> 배송관리> 배송목록에서 조회 후 목록에서 배송추적 컬럼으로 확인가능","정지혜","실패","프로그램","하","(정지혜)\n 송장 번호 선택 시 에러화면 노출\n - 배송 추적 화면 나와야 하는게 아닌지요?","TEST_13_001 13\n내용과 중복",null,"완료"]
[null,null,"BOS",25,"배송트래킹 확인\n  - 스윗트래커 배치주기 따른 트래킹정보 수신 \n  - 확인 방법은 DB조회 확인 또는 주문상태값 배송중으로 DB 수정 후 FRONT 마이페이지> 주문확인/배송조회> 해당주문건 배송조회 클리후 확인",null,"성공"]
["TEST_13_002","배송목록","BOS",1,"주문/배송> 배송관리 > 배송목록 화면 조회","정지혜","실패","프로그램","하","(정지혜)\n 송장 번호 선택 시 에러화면 노출\n - 배송 추적 화면 나와야 하는게 아닌지요?","TEST_13_001 13\n내용과 중복",null,"완료"]
[null,null,"BOS",2,"[품절처리]\n  주문상세상태값이 결제완료 상태로 있는 건에 대해서 체크 후 품절처리","정지혜","실패","프로그램","하","(정지혜)\n 로딩시간 속도측정필요(30초 소요)\n 결품처리 된 데이터에 대해서 주문목록에서 어떻게 처리되었는지 확인필요\n --> 결품취소도 결제후주문취소처리?","품절취소 로처리 ",null,"완료",701,"문달호"]
[null,null,"BOS",3,"[송장등록수정]\n  - 수동으로 송장 등록 및 수정\n  송장등록수정 버튼을 클릭하여 송장등록수정 팝업호출",null,"성공"]
[null,null,"BOS",4,"[송장등록수정팝업]\n  배송업체, 송장번호 입력 후 저장","정지혜","실패","프로그램","하","(정지혜)\n 아무 번호나 저장되는데 기준맞는지?","cj택배사일경우 체크 로직 추가",null,"완료",7.01,"문달호"]
[null,null,"BOS",5,"[배송완료처리]\n  배송중 상태의 주문건을 수동으로 배송완료 처리",null,"보류",{"$nulls":5},"완료","문달호"]
["TEST_13_003","출고금지상품관리","BOS",1,"주문/배송> 배송관리 > 출고금지상품관리 화면 조회","정지혜","보류",null,null,"** 직송매장 테스트시 진행"]
[null,null,"BOS",2,"등록 버튼을 이용하여 출고금지 상품등록 팝업 호출","정지혜","보류",null,null,"** 직송매장 테스트시 진행"]
[null,null,"BOS",3,"[출고금지상품등록 팝업]\n  상품조회 조건을 입력 후 상품조회","정지혜","보류",null,null,"** 직송매장 테스트시 진행"]
[null,null,"BOS",4,"[출고금지상품등록 팝업]\n  출고금지 상품을 선택 후 출고금지기간, 출고금지출고처 선택 후 저장","정지혜","보류",null,null,"** 직송매장 테스트시 진행"]
[null,null,"BOS",5,"[삭제]\n  출고금지상품관리 리스트 에서 선택후 삭제버튼 이용 삭제","정지혜","보류",null,null,"** 직송매장 테스트시 진행"]
[null,null,"BOS",6,"[출고금지상품 출고테스트1]\n  \n  등록 버튼 이용 출고금지상품등록 팝업 호출","정지혜","보류",null,null,"** 직송매장 테스트시 진행"]
[null,null,"BOS",7,"[출고금지상품 출고테스트2]\n  \n  [T181TS320P] 다음 상품코드 입력후 조회","정지혜","보류",null,null,"** 직송매장 테스트시 진행"]
[null,null,"BOS",8,"[출고금지상품 출고테스트3]\n  \n  상품 선택 후 \n  출고금지기간 - 당일로 지정\n  출고금지출고처 - 파주물류센터지정 (WMS)","정지혜","보류",null,null,"** 직송매장 테스트시 진행"]
[null,null,"BOS",9,"[출고금지상품 출고테스트4]\n  \n  등록 후 팝업 닫고 \n  조회후 목록에서 확인","정지혜","보류",null,null,"** 직송매장 테스트시 진행"]
[null,null,"BOS",10,"[출고금지상품 출고테스트5]\n  \n  출고금지등록 상품 FRONT 주문\n  \n  https://www.style24.com/goods/detail/form?goodsCd=T181TS320P","정지혜","보류",null,null,"** 직송매장 테스트시 진행"]
[null,null,"BOS",11,"[출고금지상품 출고테스트6]\n  \n  출고처지정 및 출고요청 배치 실행\n  (실행은 bos 배치관리에서 처리)","정지혜","보류",null,null,"** 직송매장 테스트시 진행"]
[null,null,"BOS",12,"[출고금지상품 출고테스트7]\n  \n  출고금지상품관리 화면에서\n  조회 후 해당 상품 삭제","정지혜","보류",null,null,"** 직송매장 테스트시 진행"]
[null,null,"BOS",13,"[출고금지상품 출고테스트8]\n  \n  출고처지정 및 출고요청 배치 실행\n  (실행은 bos 배치관리에서 처리)","정지혜","보류",null,null,"** 직송매장 테스트시 진행"]
["TEST_13_004","출고처지정관리","BOS",1,"주문/배송> 배송관리 > 출고처지정관리 화면 조회","정지혜","보류",null,null,"** 직송매장 테스트시 진행"]
[null,null,"BOS",2,"조회된 리스트에서 출고처 지정이 안된 주문상세번호 기준 [출고처지정] 이용하여 출고처 지정 팝업 호출","정지혜","보류",null,null,"** 직송매장 테스트시 진행"]
[null,null,"BOS",3,"[출고처지정 팝업]\n  출고가능 출고처 목록 자동 조회","정지혜","보류",null,null,"** 직송매장 테스트시 진행"]
[null,null,"BOS",4,"[출고처지정 팝업]\n  출고처 선택 후 출고처지정 버튼을 이용하여 출고처지정","정지혜","보류",null,null,"** 직송매장 테스트시 진행"]
[null,null,"BOS",5,"[출고처지정취소]\n  출고처지정취소 버튼을 이용하여 출고처지정 취소","정지혜","보류",null,null,"** 직송매장 테스트시 진행"]

{"sheet":"2차 통합테스트","index":4,"n_rows":697,"n_cols":17,"rows_kept":697,"cut":false,"hidden":false,"merged":[[0,5,1,5],[0,0,1,0],[0,1,1,1],[0,2,1,2],[0,3,1,3],[0,4,1,4],[0,15,0,16],[0,6,1,6],[0,9,1,9],[0,10,1,10],[0,11,1,11],[0,12,1,12],[0,13,0,14],[161,1,193,1],[161,0,193,0],[108,1,123,1],[108,0,123,0],[124,1,144,1],[124,0,144,0],[79,1,107,1],[79,0,107,0],[483,1,508,1],[483,0,508,0],[509,1,537,1],[509,0,537,0],[392,1,434,1],[392,0,434,0],[435,1,482,1],[435,0,482,0],[278,1,391,1],[278,0,391,0],[194,1,277,1],[194,0,277,0],[145,1,160,1],[145,0,160,0],[2,1,31,1],[2,0,31,0],[32,1,51,1],[32,0,51,0],[52,1,78,1],[52,0,78,0],[538,1,572,1],[538,0,572,0],[573,1,611,1],[573,0,611,0],[612,1,650,1],[612,0,650,0],[693,1,696,1],[693,0,696,0],[651,1,662,1],[651,0,662,0],[663,1,675,1],[663,0,675,0],[676,1,692,1],[676,0,692,0]]}
["TEST ID","케이스","시스템","세부순서","시나리오","테스터","테스트 결과","결함유형","결함 상태","결함 상세","처리내용","개선내용","확인 상태","처리 결과",null,"처리 확인"]
[{"$nulls":13},"처리자","처리일자","확인자","확인일자"]
["TEST_04_005","기획전 세팅","BOS",1,"상단 회원/마케팅 메뉴 선택",null,"성공"]
[null,null,"BOS",2,"마케팅_기획전관리 선택",null,"성공"]
[null,null,null,3,"등록 선택",null,"성공"]
[null,null,"BOS",4,"구분(전체선택), 구분(기획전), 기획전명(#), 기간, 코너명 노출 여부(Yes), 오픈여부(No), 등급(전체), 고개구분(일반), 메인이미지, 신규회원여부(No) 저장","정지혜","실패","프로그램","하","신규 default N 으로 변경","- 신규회원 N 으로 변경\n  (6/9 추가수정)\n- 오픈여부(노출여부) N \n  으로 변경",null,"완료","김소원","2021-06-08"]
[null,null,"BOS",5,"등록한 기획전(#)의 일련번호 선택",null,"성공"]
[null,null,"BOS",6,"기획전 템플릿 선택",null,"성공"]
[null,null,"BOS",7,"리뷰 전시여부 체크, 타이틀(#)입력, 순서(1) 설정",null,"성공"]
[null,null,"BOS",8,"상품조회 버튼 선택",null,"성공",null,null,"상품조회 팝업 비노출"]
[null,null,"BOS",9,"상품 조회 및 선택 후 적용 버튼 선택",null,"성공"]
[null,null,"BOS",10,"쿠폰 전시여부 체크, 타이틀(#), 순서(2), 쿠폰유의사항 입력",null,"성공"]
[null,null,"BOS",11,"쿠폰추가 선택",null,"성공"]
[null,null,"BOS",12,"쿠폰코드 조회 버튼 선택","정지혜","실패","프로그램","하","1. 유효기간 조회 소팅 기능 비정상\n 2. 쿠폰 목록 노출 시 최신순이 아닌 old 순으로 노출됨\n 3. 쿠폰 할인값 데이터 이상함(최고할인값이 전부 %로 노출됨)","1,2,3 수정하여 반영",null,"완료","최수빈","2021-06-08"]
[null,null,"BOS",13,"등록할 쿠폰 선택 및 확인 버튼 선택","정지혜","실패","프로그램","하","쿠폰을 셀렉트할수없음, 셀렉트 항목이 없어 확인필요","체크박스 추가",null,"완료","최수빈","2021-06-08"]
[null,null,"BOS",14,"이미지 첨부 전시여부 체크, 이미지 수량1, 이미지 선택, 클릭시 페이지창(새창), 상풍 링크(#), 순서(3) 설정","정지혜","실패","프로그램","하","1. 이미지 링크가 상품 링크로 명시되있음\n 2. 클릭시 페이지창 : 새창으로 변경해도 현재창으로만 저장됨(업데이트안됨)\n --? 다른 항목을 변경한 후 ㅈ저장 하면 저장이 되고 해당 항목만 변경하면 저장안되는 버그","1. 상품링크 -> 이미지링크 변경\n2. 페이지창 오류 수정\n3. 이상없음\n다시 확인 부탁드립니다.",null,"완료","김소원","2021-06-08"]
[null,null,"BOS",15,"HTML 상단 전시여부 체크 및 HTML 코드 입력",null,"성공"]
[null,null,"BOS",16,"HTML 하단 전시여부 체크 및 HTML 코드 입력","정지혜","실패","데이터","하","하단 HTML에 이미지 저장 시\n 저장이 되지 않고, 리셋됨","이상없음 \n다시 확인 부탁드립니다.",null,"완료","김소원","2021-06-08"]
[null,null,"BOS",17,"상품등록 구분추가하기 버튼 선택",null,"성공"]
[null,null,"BOS",18,"전시여부 체크, 노출기준(4개), 타이틀(#), 페이징(새창), 상품 링크(#)",null,"성공"]
[null,null,"BOS",19,"상품조회 선택",null,"성공"]
[null,null,"BOS",20,"상품 4개 조회 및 선택",null,"성공"]
[null,null,"BOS",21,"저장 버튼 선택",null,"성공"]
[null,null,"BOS",22,"확인 선택",null,"성공"]
[null,null,"BOS",23,"저장 버튼 선택",null,"성공"]
[null,null,"BOS",24,"확인 선택",null,"성공"]
[null,null,"쇼핑몰",25,"GNB> 기획전 클릭","정지혜","실패","화면","하","리스트 깨짐","▶ [pub] (6/8) 윤성미\n - '아이템그룹 없을 경우' 여백 퍼블 참고\n(mo) http://ts5000.ipdisk.co.kr:89/ux/mo/dp_Exhibition.html\n\n - '기획전 생성 테스트' 이미지 재확인 요청\n//image.istyle24.com/Uploadnull\n---\n\n\n",null,"완료","김소원","2021-06-08"]
[null,null,"쇼핑몰",26,"전체 탭 리스트에 등록한 기획전 노출 확인",null,"성공"]
[null,null,"쇼핑몰",27,"관리자에서 설정한 카테고리 탭 클릭",null,"성공"]
[null,null,"쇼핑몰",28,"기획전 상품 리스트 확인",null,"성공","화면"]
[null,null,"쇼핑몰",29,"기획전 리스트 클릭","정지혜","실패","화면","하","1. 등급 접근 화면 모바일에서 깨짐\n 2. 채널 접근 검증방법 확인 필요","▶ [pub] (6/8) 윤성미\n - 회원등급혜택 페이지 퍼블 참고\nhttp://ts5000.ipdisk.co.kr:89/ux/mo/ev_rank_1.html\n\n1) header 에서 클래스 main 제거됩니다\n2) 해당 화면은 htopMain이 아닌, htopSub 사용합니다\n3) #gnb를 사용하지 않는 화면입니다\n\n---\n\n1. 접근 에러 모바일 수정완료",null,"완료","최수빈","07.28"]
[null,null,"쇼핑몰",30,"화면 및 콘텐츠 정상 노출 확인","정지혜","실패","데이터","하","1. 리뷰데이터 별점안나옴\n 2. 리뷰레이어 깨짐\n 3. 공유하기 오류(전체)\n 4. 상품(상단모듈) > 2개짜리 데이터 없는데도 타이틀만 모바일에서 노출됨\n 5. 이미지 리사이징 안됨\n 6. 모바일 > 상품구분자(코너) > 리스트 아이콘 영역 깨지는현상 나타남\n 7. PC. 상품구분자(코너) > 6컷 선택했으나 5컷으로 나옴","1. 수정완료\n2. 수정완료\n3. 현재 공유하기는 애져에서 확인이 어렵습니다.\n4. 타이틀만 입력해도 노출될 수 있도록 수정 요청 반영 함.\n5.수정완료\n6. 퍼블 수정 완료\n7. 2컷,4컷,5컷 적용",null,"완료","최수빈","07.28"]
["TEST_04_006","기획전 코너상품 세팅","BOS",1,"상단 회원/마케팅 메뉴 선택",null,"성공"]
[null,null,"BOS",2,"마케팅_기획전관리 선택",null,"성공"]
[null,null,"BOS",3,"등록했던 기획전(#) 이름 선택",null,"성공"]
[null,null,"BOS",4,"행추가 선택",null,"성공"]
[null,null,"BOS",5,"추가된 코너명(테스트설정값), 유형(4컷), 순서(1) 설정","장상현","실패","프로그램","하","코너명/코너번호/전시순서 수정불가","해당 셀 더블 클릭하고 값 입력 후 저장 누르시면 됩니다.",null,"완료","김소원","2021-06-08"]
[null,null,"BOS",6,"행추가 선택",null,"성공"]
[null,null,"BOS",7,"추가된 코너명(설정값), 유형(4컷), 순서(2) 설정","장상현","실패","프로그램","하","코너명/코너번호/전시순서 수정불가","해당 셀 더블 클릭하고 값 입력 후 저장 누르시면 됩니다.",null,"완료","김소원","2021-06-08"]
[null,null,null,8,"상단 저장 버튼 선택",null,"성공"]
[null,null,"BOS",9,"코너 1 선택 후 하단 상품 추가 버튼 선택",null,"성공"]
[null,null,"BOS",10,"다수의 상품 조회 및 선택 적용",null,"성공"]
[null,null,"BOS",11,"닫기 버튼 선택",null,"성공"]
[null,null,"BOS",12,"코너 2 선택 후 하단 엑셀상품추가 양식 다운로드 버튼 선택",null,"성공"]
[null,null,"BOS",13,"다운로드된 엑셀에 닷 상품코드 입력 후 엑셀상품추가 버튼 선택",null,"성공"]
[null,null,"BOS",14,"파일 선택","윤지영","실패","데이터","하","상품목록 노출 안됨","엑셀 업로드 후 해당 코너 상품 바로 조회 할 수 있도록 수정",null,"완료","김소원","2021-06-08"]
[null,null,"BOS",15,"저장 버튼 선택",null,"성공"]
[null,null,"BOS",16,"확인 선택",null,"성공"]
[null,null,"쇼핑몰",17,"GNB> 기획전 클릭",null,"성공"]
[null,null,"쇼핑몰",18,"전체 탭 리스트에 등록한 기획전 노출 확인",null,"성공"]
[null,null,"쇼핑몰",19,"기획전 리스트 클릭",null,"성공"]
[null,null,"쇼핑몰",20,"등록한 코너 상품 확인","정지혜","실패","데이터","하","1. 구분자(코너) 비노출 처리 했으나 노출됨\n 2. 다른기획전 보기 목록 이미지 깨짐 부분있음(리사이징 확인 필요)\n 3. 2개일 때 UI 수정 하기로 한 항목 수정 후 점검\n 4. 제휴채널로 접근 했을 때 에러페이지 깨짐","1. 수정완료\n2. 수정완료\n3. 퍼블적용완료\n4. 수정완료",null,"완료","김소원"]
["TEST_04_007","이벤트 세팅","BOS",1,"상단 회원/마케팅 메뉴 선택",null,"성공"]
[null,null,"BOS",2,"마케팅_기획전관리 선택",null,"성공"]
[null,null,"BOS",3,"등록 선택",null,"성공"]
[null,null,"BOS",4,"구분(전체선택), 구분(이벤트), 기획전명(#), 기간, 코너명 노출 여부(Yes), 오픈여부(No), 등급(전체), 고개구분(일반), 메인이미지, 신규회원여부(No) 저장",null,"성공"]
[null,null,"BOS",5,"등록한 이벤트(#)의 일련번호 선택",null,"성공"]
[null,null,"BOS",6,"기획전 템플릿 선택",null,"성공"]
[null,null,"BOS",7,"리뷰 전시여부 체크, 타이틀(#)입력, 순서(1) 설정",null,"성공"]
[null,null,"BOS",8,"상품조회 버튼 선택",null,"성공"]
[null,null,"BOS",9,"상품 조회 및 선택 후 적용 버튼 선택",null,"성공"]
[null,null,"BOS",10,"쿠폰 전시여부 체크, 타이틀(#), 순서(2), 쿠폰유의사항 입력",null,"성공"]
[null,null,"BOS",11,"쿠폰추가 선택",null,"성공"]
[null,null,"BOS",12,"쿠폰코드 조회 버튼 선택",null,"성공"]
[null,null,"BOS",13,"등록할 쿠폰 선택 및 확인 버튼 선택","정지혜","실패","화면","하","모바일 프론트 > 쿠폰영역 사용안내가 여백이 달라붙어있음, 확인필요\n https://www.style24.com/planning/detail/form?planSq=25#brand1","▶ [pub] (6/8) 윤성미\n - css 업데이트 완료\n\n현재 쿠폰 유의사항을 입력 안하는 경우 퍼블이 달라 붙는 것 같습니다.(퍼블 확인 필요)\n==> 수정 완료\nhttps://www.style24.com/planning/detail/form?planSq=36\n",null,"완료","김소원","2021-06-08"]
[null,null,"BOS",14,"이미지 첨부 전시여부 체크, 이미지 수량1, 이미지 선택, 클릭시 페이지창(새창), 상풍 링크(#), 순서(3) 설정",null,"성공"]
[null,null,"BOS",15,"HTML 상단 전시여부 체크 및 HTML 코드 입력","정지혜","실패","화면","하","등록은되나 프론트에서 정렬이 한쪽으로 쏠림","▶ [pub] (6/8) 윤성미\n - 퍼블 이상없음\nhttp://ts5000.ipdisk.co.kr:89/ux/pc/dp_detail_all.html\nhttp://ts5000.ipdisk.co.kr:89/ux/mo/dp_detail_all.html\n\n - div 뎁스 및 클래스 사용에 대한 재확인 요청\n예) promotion_visual type1/ type2\nbig_banner_slide/ big_banner , bulletship\n\n---\n[모바일] promotion_visual type1 \n[웹] coner_item01\n\n\n",null,"완료","최수빈","07.28"]
[null,null,"BOS",16,"HTML 하단 전시여부 체크 및 HTML 코드 입력","정지혜","실패","데이터","하","등록은 되나 프론트에 안나옴","이상없음 \n(링크 요청)",null,"완료","김소원","2021-06-08"]
[null,null,"BOS",17,"상품등록 구분추가하기 버튼 선택",null,"성공"]
[null,null,"BOS",18,"전시여부 체크, 노출기준(4개), 타이틀(#), 페이징(새창), 상품 링크(#)",null,"성공"]
[null,null,"BOS",19,"상품조회 선택",null,"성공"]
[null,null,"BOS",20,"상품 4개 조회 및 선택",null,"성공"]
[null,null,"BOS",21,"저장 버튼 선택",null,"성공"]
[null,null,"BOS",22,"확인 선택",null,"성공"]
[null,null,"BOS",23,"저장 버튼 선택",null,"성공"]
[null,null,"BOS",24,"확인 선택",null,"성공"]
[null,null,"쇼핑몰",25,"GNB> 이벤트 선택",null,"성공"]
[null,null,"쇼핑몰",26,"목록 확인",null,"성공"]
[null,null,"쇼핑몰",27,"등록한 이벤트 선택","정지혜","실패","프로그램","하","1. 모바일 포토댓글 > 상세 하단 레이어 스크롤 정상동작안함(올리기 동작이 안됨)\n 2.모바일 상품 전시 구분값 쪽에 스와이프 깨짐\n https://www.style24.com/planning/detail/form?planSq=25#brand1","기획전 템플릿 전시여부를 default y로 전부 수정하면서 링크 걸어 두신걸로 확인이 어렵습니다.\n새로 등록 링크 걸어 첨부하겠습니다.\n(배포 후 확인)\nhttps://www.style24.com/planning/detail/form?planSq=36",null,"완료","김소원","2021-06-09"]
["TEST_04_008","총알배송 세팅","BOS",1,"상단 회원/마케팅 메뉴 선택",null,"성공"]
[null,null,"BOS",2,"마케팅_기획전관리 선택",null,"성공"]
[null,null,"BOS",3,"등록 선택",null,"성공"]
[null,null,"BOS",4,"구분(전체선택), 구분(총알배송), 기획전명(#), 기간, 코너명 노출 여부(Yes), 오픈여부(No), 등급(전체), 고개구분(일반), 메인이미지, 신규회원여부(No) 저장",null,"성공"]
[null,null,"BOS",5,"등록한 총알배송(#)의 일련번호 선택",null,"성공"]
[null,null,"BOS",6,"행추가 버튼 선택",null,"성공"]
[null,null,"BOS",7,"빈 코너에 코너명(테스트설정값), 유형(4컷), 순서(1) 설정",null,"성공"]
[null,null,"BOS",8,"상단 저장 버튼 선택",null,"성공"]
[null,null,"BOS",9,"코너 1 선택 후 하단 상품 추가 버튼 선택",null,"성공"]
[null,null,"BOS",10,"업체 조회 선택",null,"성공"]
[null,null,"BOS",11,"한세 로 검색",null,"성공"]
[null,null,"BOS",12,"한세드림 선택 확인 버튼 선택",null,"성공"]
[null,null,"BOS",13,"조회 버튼 선택",null,"성공"]
[null,null,"BOS",14,"상품 다수 선택(테스트 설정 상품) 및 적용 버튼 선택",null,"성공"]
[null,null,"BOS",15,"확인버튼 선택",null,"성공"]
[null,null,"BOS",16,"상단 닫기 버튼 선택",null,"성공"]
[null,null,"BOS",17,"설정한 코너 1 선택",null,"성공"]
[null,null,"BOS",18,"행추가 버튼 선택",null,"성공"]
[null,null,"BOS",19,"추가된 빈 코너에 코너명(테스트설정값), 유형(4컷), 순서(2) 설정",null,"성공"]
[null,null,"BOS",20,"상단 저장 버튼 선택",null,"성공"]
[null,null,"BOS",21,"추가된 코너 2 선택 후 하단 상품 추가 버튼 선택",null,"성공"]
[null,null,"BOS",22,"브랜드 조회 선택",null,"성공"]
[null,null,"BOS",23,"TBJ 로 검색",null,"성공"]
[null,null,"BOS",24,"TBJ 선택 확인 버튼 선택",null,"성공"]
[null,null,"BOS",25,"조회 버튼 선택",null,"성공"]
[null,null,"BOS",26,"상품 다수 선택(테스트 설정 상품) 및 적용 버튼 선택",null,"성공"]
[null,null,"BOS",27,"설정한 코너 2 선택",null,"성공"]
[null,null,"BOS",28,"상단 닫기 버튼 선택",null,"성공"]
[null,null,"쇼핑몰",29,"배치 후\n GNB 총알배송 메뉴 선택",null,"성공"]
["TEST_04_009","출석체크세팅","BOS",1,"상단 회원/마케팅 메뉴 선택",null,"성공"]
[null,null,"BOS",2,"마케팅_기획전관리 선택",null,"성공"]
[null,null,"BOS",3,"등록 선택",null,"성공"]
[null,null,"BOS",4,"구분(전체선택), 구분(출석체크), 기획전명(#), 기간, 코너명 노출 여부(Yes), 오픈여부(No), 등급(전체), 고개구분(일반), 메인이미지, 신규회원여부(No)",null,"성공"]
[null,null,"BOS",5,"혜택추가 버튼 선택",null,"성공"]
[null,null,"BOS",6,"추가된 혜택의 혜택종류(포인트), 일수(1), 포인트(100), 포인트 적용일(1) 설정\n \n *설정값은 다르게 해도 무방","정지혜","실패","프로그램","하","겹치는 일수를 두번 등록해도 등록됨\n 포인트 + 쿠폰으로 등록 시 등록안됨\n (겹치는 경우, 그어떤 벨리데이션없이 저장이 아예안되버림)\n 쿠폰번호 입력방식이라 검증이 안됨","1. 적용일수 동일할 경우 alert처리\n2. 필수 사항 입력 안하는 경우 alert\n3. 쿠폰ID 입력 후 저장 누를 시 유효사항 확인",null,"완료","최수빈","07.28"]
[null,null,"BOS",7,"혜택추가 버튼 선택",null,"성공"]
[null,null,"BOS",8,"추가된 혜택의 혜택종류(포인트), 일수(10), 포인트(1000), 포인트 적용일(1) 설정\n \n *설정값은 다르게 해도 무방",null,"성공"]
[null,null,"BOS",9,"혜택추가 버튼 선택",null,"성공"]
[null,null,"BOS",10,"저장 버튼 선택",null,"성공"]
[null,null,"쇼핑몰",11,"GNB > 이벤트 메뉴 선택",null,"성공"]
[null,null,"쇼핑몰",12,"등록한 출석체크 선택",null,"성공"]
[null,null,"쇼핑몰",13,"설정한 값 확인","정지혜","실패","데이터","하","1. 포인트+쿠폰 표시시, 2일 데이터 넣어서 나와야 하나 2 출석시 라고 표시됨(일 문구가 빠짐)\n 2. 출석체크 혜택 아이콘 깨짐\n 3. 하단 여백을 두지 않아 오류발생","1. 수정 완료\n2. 출석체크 아래 유의사항이 생략될\n    경우 깨짐 발생\n    (퍼블 확인 필요)\n\n---\n▶ [pub] (6/10) 윤성미\n - 스타일 수정 완료됨, 반영요청\n====> 수정완료",null,"완료","김소원"]
[null,null,"쇼핑몰",14,"출석체크 선택","정지혜","실패","프로그램","하","alert 안나옴","수정완료",null,"완료","김소원"]
[null,null,"쇼핑몰",15,"상단 마이페이지 메뉴 이동","정지혜","실패","프로그램","하","상단 마이페이지 포인트 영역 클릭 했으나 이동안됨(모바일)",null,null,"완료","최수빈","07.28"]
[null,null,"쇼핑몰",16,"상단 스타일포인트 정보 확인"]
["TEST_04_010","설문조사 세팅","BOS",1,"상단 대메뉴에서 회원/마케킹 선택",null,"성공"]
[null,null,"BOS",2,"POLL 관리 선택",null,"성공"]
[null,null,"BOS",3,"하단\n 제목(#), 기간, 중복참여(NO), 선착순(YES), 선착순인원(1000) 설정\n \n *설정값은 다르게 해도 무방",null,"성공"]
[null,null,"BOS",4,"문항추가 선택",null,"성공"]
[null,null,"BOS",5,"제목(#)입력, 유형(#), 참고값 설정",null,"성공"]
[null,null,"BOS",6,"문항추가 선택",null,"성공"]
[null,null,"BOS",7,"제목(#)입력, 유형(#), 참고값 설정",null,"성공"]
[null,null,"BOS",8,"저장 선택",null,"성공"]
[null,null,"BOS",9,"POLL 번호 복사",null,"성공"]
[null,null,"BOS",10,"기획전 관리 메뉴 선택",null,"성공"]
[null,null,"BOS",11,"등록 선택",null,"성공"]
[null,null,"BOS",12,"구분(전체선택), 구분(이벤트), 기획전명(#), 기간, 코너명 노출 여부(Yes), 오픈여부(No), 등급(전체), 고개구분(일반), 메인이미지, 복사한 POLL번호 투표일련번호 붙이기, 신규회원여부(No) 저장",null,"성공"]
[null,null,"BOS",13,"등록한 기획전(#)의 일련번호 선택",null,"성공"]
[null,null,"BOS",14,"기획전 템플릿 선택",null,"성공"]
[null,null,"BOS",15,"HTML 상단 전시여부 체크 및 HTML 코드 입력",null,"성공"]
[null,null,"BOS",16,"저장 버튼 선택",null,"성공"]
[null,null,"BOS",17,"확인 선택",null,"성공"]
[null,null,"BOS",18,"저장 버튼 선택",null,"성공"]
[null,null,"BOS",19,"확인 선택",null,"성공"]
[null,null,"쇼핑몰",20,"GNB> 이벤트 메뉴 클릭",null,"성공"]
[null,null,"쇼핑몰",21,"등록한 설문조사 선택","정지혜","실패","데이터","하","버튼은 노출되나, 설문조사 페이지가 호출되지 않음","이상없음\n다시 확인부탁드립니다.",null,"완료","김소원","2021-06-08"]
["TEST_04_011","핫딜 상품 등록","BOS",1,"상단 대메뉴에서 회원/마케킹 선택",null,"성공"]
[null,null,"BOS",2,"핫딜 관리 선택",null,"성공"]
[null,null,"BOS",3,"사용여부(YES), 웹모바일구분(ALL), 소셜명(#), 진행기간 설정, 적용구분(대기) 상태로 저장",null,"성공"]
[null,null,"BOS",4,"등록된 핫딜제목 선택",null,"성공"]
[null,null,"BOS",5,"소셜상품 탭 선택",null,"성공"]
[null,null,"BOS",6,"상품추가 버튼 선택",null,"성공"]
[null,null,"BOS",7,"상품 조회 및 선택, 적용",null,"성공"]
[null,null,"BOS",8,"닫기 버튼 선택","장상현","실패","프로그램","하","상품 적용은 되었지만 상품조회 팝업 안닫힘",null,null,"완료","김소원","2021-06-08"]
[null,null,"BOS",9,"A상품 상품 적용 판매가 입력",null,"성공"]
[null,null,"BOS",10,"B상품 할인율 입력","정지혜","실패","데이터","하","핫딜 판매가 49900 으로 일괄적용 후 저장시, 데이터 처리에 에러가 발생했다 라고 alert 노출됨 à 일괄적용시 기존판매가보다 높은 가격으로 일부데이터가 처리될경우 저런 에러 메시지 나옴, 분기후 처리를 하든 무슨 처리가 필요함.","- 딜상품 할인가격 적용\n 못하도록 alert\n- 기존 판매가보다 높은 \n   경우 alert",null,"완료","김소원","2021-06-07"]
[null,null,"BOS",11,"기본정보 탭 선택",null,"성공"]
[null,null,"BOS",12,"적용구분 적용 선택","정지혜","실패","데이터","하","적용구분: all 인 적용된 핫딜이 있는데, 모바일로만 구분해서 처리 하면 저장됨\n 그럼 어떤데이터로 나오게되는지?","all 이 적용되어 있고 모바일 또는 웹을 추가적으로 등록하려고 한다면 적용날짜, 사용여부를 확인하여 등록(저장)이 가능 하도록 함",null,"완료","김소원","2021-06-09"]
[null,null,"BOS",13,"저장 버튼 선택",null,"성공"]
[null,null,"쇼핑몰",14,"GNB> 핫딜 메뉴 클릭",null,"성공"]
[null,null,"쇼핑몰",15,"남은 시간 정상 카운트 확인",null,"성공"]
[null,null,"쇼핑몰",16,"상품 리스트 확인","정지혜","실패","프로그램","하","1. 핫딜 화면 오류- 페이지 깨짐\n 2. 메인 핫딜 화면 깨짐 --> 상품데이터가 없으면 안나와야 하는거 아닌가요?\n 3. 상품 상세에서도 핫딜가 적용안됨",null,null,"완료","김소원","2021-06-07"]
["TEST_04_012","룩북 등록","BOS",1,"상단 대메뉴에서 전시 선택",null,"성공"]
[null,null,"BOS",2,"룩북관리 선택",null,"성공"]
[null,null,"BOS",3,"등록 버튼 선택",null,"성공"]
[null,null,"BOS",4,"브랜드조회 선택",null,"성공"]
[null,null,"BOS",5,"브랜드그룹명에 (#) 입력 및 조회",null,"성공"]
[null,null,"BOS",6,"(#) 선택 및 확인 버튼 선택",null,"성공"]
[null,null,"BOS",7,"타이틀(#), 노출기간(#), 노출여부(Y) 설정",null,"성공"]
[null,null,"BOS",8,"썸네일 파일 선택",null,"성공"]
[null,null,"BOS",9,"목록 썸네일 이미지 등록",null,"성공"]
[null,null,"BOS",10,"배너추가 버튼 선택",null,"성공"]
[null,null,"BOS",11,"배너 이미지 파일 찾기 선택",null,"성공"]
[null,null,"BOS",12,"이미지 등록",null,"성공"]
[null,null,"BOS",13,"이미지 설명 설정","정지혜","실패","프로그램","하","문구 글자수 제한 값 확인 필요","문구 글자수 제한 추가",null,"완료","최수빈","2021-06-08"]
[null,null,"BOS",14,"저장 버튼 선택",null,"성공"]
[null,null,"BOS",15,"등록한 목록 선택",null,"성공"]
[null,null,"BOS",16,"피커추가 선택",null,"성공"]
[null,null,"BOS",17,"이미지 위 피커 위치 클릭",null,"성공"]
[null,null,"BOS",18,"상품조회 버튼 선택",null,"성공"]
[null,null,"BOS",19,"상품코드(#) 조회",null,"성공"]
[null,null,"BOS",20,"상품(#0 선택 및 적용",null,"성공"]
[null,null,"BOS",21,"피커저장",null,"성공"]
[null,null,"BOS",22,"저장 버튼 선택",null,"성공"]
[null,null,"쇼핑몰",23,"GNB> 룩북 메뉴 선택",null,"성공"]
[null,null,"쇼핑몰",24,"브랜드 선택 클릭",null,"성공",null,null,"모바일 룩북화면 깨짐"]
[null,null,"쇼핑몰",25,"(#) 선택 후 적용 버튼 클릭",null,"성공"]
[null,null,"쇼핑몰",26,"룩북 리스트 확인",null,"성공"]
[null,null,"쇼핑몰",27,"룩북 리스트 클릭","정지혜","실패","화면","하","1. 상단헤더벌어짐\n 2. 타이틀 CSS 잘못적용됨\n 3. 모바일 피커데이터 2개 찍었는데 1페이지에 3개 나옴.\n 4. 모바일 하단 룩북 상품리스트 깨짐\n 5. 모바일 모두 쇼핑백 담기 시, alert 에 아무문구 안나옴\n 6. alert이 이중노출되는케이스 발생","▶ [pub] (6/8) 윤성미\n - 1번에 대한 확인 요청\n - '브랜드룩북' 헤더 구분에 대한 스크립트 누락\n - 퍼블 br_lookbook_detail.html 주석 확인( //210527_ 추가 )\n---\n\n",null,"완료","최수빈","2021-06-10"]
[null,null,"쇼핑몰",28,"화면 및 콘텐츠 정상 노출 확인",null,"성공"]
[null,null,"쇼핑몰",29,"GNB> 브랜드> (#) 클릭",null,"성공"]
[null,null,"쇼핑몰",30,"브랜드 GNB> 룩북 클릭","정지혜","실패","데이터","하","메뉴노출했으나 안나옴",null,null,"완료","최수빈","2021-06-08"]
[null,null,"쇼핑몰",31,"룩북 리스트 확인","정지혜","실패","데이터","하","메뉴 노출되지 않아 확인불가",null,null,"완료","최수빈","07.28"]
[null,null,"쇼핑몰",32,"룩북 리스트 클릭","정지혜","실패","데이터","하","메뉴 노출되지 않아 확인불가",null,null,"완료","최수빈","07.28"]
[null,null,"쇼핑몰",33,"화면 및 콘텐츠 정상 노출 확인","정지혜","실패","데이터","하","메뉴 노출되지 않아 확인불가",null,null,"완료","최수빈","07.28"]
["TEST_04_001","PC 및 MW 메인 전시 화면 세팅","BOS",1,"상단 대메뉴에서 전시 선택",null,"성공"]
[null,null,"BOS",2,"메인관리 선택",null,"성공"]
[null,null,"BOS",3,"대분류에서 몰메인[1700] 선택",null,"성공"]
[null,null,"BOS",4,"[신규 등록 인 경우_공통]\n \n 행 추가",null,"성공"]
[null,null,"BOS",5,"[신규 등록 인 경우_공통]\n \n 모듈 내 상단 항목에서 추가할 항목을 선택","정지혜","실패","프로그램","하","몰메인 > 추천상품E \n SMM010 > 하단 위치설정이라는 문구가 나오는데 뭔지 모르겠음","컨텐츠유형[E]\n전시컨텐츠 설정없이\n메인에서 보여지는 \n전시 위치만 설정하는 유형",null,"완료","최수빈","2021-06-08"]
[null,null,"BOS",6,"[신규 등록 인 경우_공통]\n 선택 항목 하단 좌측타입은 추가할 항목의 이름 마지막에 있는 타입과 동일한 것으로 설정",null,"성공"]
[null,null,"BOS",7,"[신규 등록 인 경우_공통]\n \n 우측 타이틀 입력 영역에 모듈 타이틀 입력","정지혜","실패","프로그램","하","GNB 배너 타입 등록 시 결함\n 1. GNB 배너 등록시 오픈배너 이미지를 미저장 하고, 임시저장시 해당 컬럼 자체가 아예 사라짐\n 2. 프론트에서 노출되었을 때, 오픈배너 접기하면 전체화면이 딤처리됨\n 3. 이미지 배너로 등록 되었을 때, 저장을 하면, 오픈배너 이미지 파일 선택 항목이 노출되며, 등록하지 않은 이미지가 나옴\n 4. 텍스트 배너 추가하면 텍스트 배너 타이틀 영역을 별도로 추가해야함",null,null,"완료","최수빈","2021-06-10"]
[null,null,"BOS",8,"[신규 등록 인 경우_공통]\n \n 위치를 이동 및 레이아웃 저장","정지혜","실패","프로그램","하","5. GNB 배너타입은 bos 레이아웃위치와 관계없이 고정값으로구현되어있음에도 관련 위치를 변경할수 있어 혼란스러움","메인전시관리는 순서관리가 기본이라\n[대분류]GNB영역을 생성해서 \n순서변경없이 처리하면 될까요?\n",null,"완료","최수빈","2021-06-10"]
[null,null,"BOS",9,"메인롤링배너 > '수정' 버튼 선택",null,"성공"]
[null,null,"BOS",10,"컨텐츠 추가' 버튼 선택",null,"성공"]
[null,null,"BOS",11,"전시일시, 컨텐츠유형, 썸네일 글자색상(이미지에 따라 설정 필요), 타이틀, 서브텍스트 입력, 링크(이벤트 경우, 등록한 이벤트 상세 경로 북붙), 이미지(PC용), 모바일용이미지(모바일용) 설정\n \n * 기획전으로 설정 시, 미리 기획전을 등록 후 진행 필요\n * 타이틀 및 서브타이틀의 줄바꿈은 <br> 태그로 진행",null,"성공"]
[null,null,"BOS",12,"(기획전 설정 시)\n 기획전 검색 버튼 선택",null,"성공"]
[null,null,"BOS",13,"검색 조건 또는 설정없이 '조회' 버튼 선택",null,"성공"]
[null,null,"BOS",14,"항목 체크박스 선택 후, '적용' 버튼 선택","정지혜","실패","프로그램","하","이벤트로 설정된 데이터도 노출 및 선택되는데 맞나요?","이벤트와 기획전 차이는 기획전인 경우 기획전 넘버를 입력할 수 있는 기능이 추가되는 겁니다.",null,"완료","조현민","06.11"]
[null,null,"BOS",15,"임시저장 버튼 선택",null,"성공"]
[null,null,"BOS",16,"확인 선택 후, 팝업의 닫기 버튼 선택",null,"성공"]
[null,null,"BOS",17,"메인롤링배너 > '적용' 버튼 선택","정지혜","실패","프로그램","하","1. 컨텐츠 유형을 기획전으로 선택하고 임시저장시 모바일용 이미지 컬럼이 갑자기 생김\n 2. 모바일 배너 이미지 엑박남",null,null,"완료","최수빈","2021-06-10"]
[null,null,"BOS",18,"신상품 '상품관리' 선택",null,"성공"]
[null,null,"BOS",19,"변경할 상품을 드래그하여 이동","정지혜","실패","프로그램","하","변경 시 데이터 처리중에러가 발생했다 alert",null,null,"완료","최수빈","2021-06-08"]
[null,null,"BOS",20,"저장 버튼 선택","윤지영\n정지혜","실패","프로그램","하","등록 중, 에러 얼럿 \n 기간 및 상품 추가 하고 저장 시, 에러 발생(데이터 처리중 에러가 발생했다 alert 나옴)",null,null,"완료","최수빈","2021-06-08"]
[null,null,"BOS",21,"상품순서변경 팝업 닫기 버튼 선택",null,"성공"]
[null,null,"BOS",22,"기획전콘텐츠 '수정' 버튼 선택",null,"성공"]
[null,null,"BOS",23,"컨텐츠 추가' 버튼 선택",null,"성공"]
[null,null,"BOS",24,"타이틀추가, 서브텍스트추가, 이미지추가, 링크추가 버튼 선택",null,"성공"]
[null,null,"BOS",25,"전시일자 설정, 타이틀, 서브텍스트 입력, 이미지 등록, 링크 입력",null,"성공"]
[null,null,"BOS",26,"임시저장 버튼 선택",null,"성공"]
[null,null,"BOS",27,"확인 선택 후, 팝업의 닫기 버튼 선택",null,"성공"]
[null,null,"BOS",28,"기획전콘텐츠 > '적용' 버튼 선택",null,"성공"]
[null,null,"BOS",29,"베스트타이틀 '상품관리' 선택","정유리\n정지혜","실패","프로그램","하","수정, 적용 버튼 없음 (위치설정)\n 타이틀만 수정 가능","컨텐츠유형[E]\n카테고리별 베스트 상품 노출되는 영역으로\n별도의 전시컨텐츠 설정없이\n메인에서 보여지는 \n전시 위치만 설정하도록 수정",null,"완료","최수빈","2021-06-08"]
[null,null,"BOS",30,"변경할 상품을 드래그하여 이동","정유리\n정지혜","보류",null,null,"확인불가",null,null,"완료","최수빈","07.28"]
[null,null,"BOS",31,"저장 버튼 선택","정유리\n정지혜","보류",null,null,"확인불가",null,null,"완료","최수빈","07.28"]
[null,null,"BOS",32,"상품순서변경 팝업 닫기 버튼 선택","정유리\n정지혜","보류",null,null,"확인불가",null,null,"완료","최수빈","07.28"]
[null,null,"BOS",33,"핫딜 '수정' 버튼 선택","정유리\n정지혜","실패","프로그램","하","수정, 적용 버튼 없음 (위치설정)","컨텐츠유형[E]\n현재진행중인 핫딜 노출되는 영역으로\n별도의 전시컨텐츠 설정없이\n메인에서 보여지는 \n전시 위치만 설정하도록 수정",null,"완료","최수빈","2021-06-08"]
[null,null,"BOS",34,"전시일지 수정 후, 임시저장 선택","정유리\n정지혜","보류",null,null,"확인불가",null,null,"완료","최수빈","07.28"]
[null,null,"BOS",35,"확인 선택 후, 팝업의 닫기 버튼 선택","정유리\n정지혜","보류",null,null,"확인불가",null,null,"완료","최수빈","07.28"]
[null,null,"BOS",36,"핫딜 '적용' 버튼 선택","정유리\n정지혜","보류",null,null,"확인불가",null,null,"완료","최수빈","07.28"]
[null,null,"BOS",37,"하프(1/2) 배너 '수정' 버튼 선택",null,"성공"]
[null,null,"BOS",38,"컨텐츠 추가 버튼 선택",null,"성공"]
[null,null,"BOS",39,"이미지추가, 링크추가 버튼 선택","정지혜","실패","화면","하","이미지 배율에 맞지않음",null,null,"완료","최수빈","07.28"]
[null,null,"BOS",40,"전시일지 설정, 유형 및 이미지 설정(유형에 따라 이미지 등록 수 상이함), 링크설정(없으면 패스)",null,"성공"]
[null,null,"BOS",41,"임시저장 버튼 선택",null,"성공"]
[null,null,"BOS",42,"확인 선택 후, 팝업의 닫기 버튼 선택",null,"성공"]
[null,null,"BOS",43,"하프(1/2) 배너 > '적용' 버튼 선택",null,"성공"]
[null,null,"BOS",44,"브랜드픽 '수정' 버튼 선택",null,"성공"]
[null,null,"BOS",45,"컨텐츠 추가 버튼 선택",null,"성공"]
[null,null,"BOS",46,"전시일시 설정",null,"성공"]
[null,null,"BOS",47,"브랜드조회 버튼 선택",null,"성공"]
[null,null,"BOS",48,"그룹코드 또는 그룹명으로 브랜드 조회 후 항목 선택하여 '확인' 버튼 선택",null,"성공"]
[null,null,"BOS",49,"기획전배너추가, 타이틀추가, 서브텍스트추가, 상품추가 버튼 선택",null,"성공"]
[null,null,"BOS",50,"기획전 또는 단순 광고 이미지 등록",null,"성공"]
[null,null,"BOS",51,"기획전으로 이동하는 기획전 이미지 등록 시, 기획전 상세 링크 입력",null,"성공"]
[null,null,"BOS",52,"타이틀 및 서브타이틀 입력",null,"성공"]
[null,null,"BOS",53,"상품조회 버튼 선택",null,"성공"]
[null,null,"BOS",54,"상품조회 팝업에서 상품조회하여 적용 버튼 선택",null,"성공"]
[null,null,"BOS",55,"임시저장 버튼 선택","윤지영\n정지혜","실패","프로그램","하","임시저장 실패",null,null,"완료","최수빈","2021-06-08"]
[null,null,"BOS",56,"확인 선택 후, 팝업의 닫기 버튼 선택",null,"성공"]
[null,null,"BOS",57,"브랜드픽 > '적용' 버튼 선택","정지혜","실패","프로그램","하","저장이 불가하여 적용불가능",null,null,"완료","최수빈","2021-06-08"]
[null,null,"BOS",58,"롤링배너 '수정' 버튼 선택",null,"성공"]
[null,null,"BOS",59,"컨텐츠추가 버튼 선택",null,"성공"]
[null,null,"BOS",60,"일시정보 설정","정지혜","실패","프로그램","하","기간데이터 벨리데이션 안함(시작일이 종료일보다 큰데 체크안함)",null,null,"완료","최수빈","2021-06-09"]
[null,null,"BOS",61,"타이틀추가, 이미지추가, 링크추가 버튼 선택",null,"성공"]
[null,null,"BOS",62,"타이틀 입력, 이미지 등록, 링크입력(있는 경우)",null,"성공"]
[null,null,"BOS",63,"임시저장 버튼 선택",null,"성공"]
[null,null,"BOS",64,"확인 선택 후, 팝업의 닫기 버튼 선택",null,"성공"]
[null,null,"BOS",65,"롤링배너 > '적용' 버튼 선택",null,"성공"]
[null,null,"BOS",66,"MD추천 '수정' 버튼 선택",null,"성공"]
[null,null,"BOS",67,"MD탭 추가 선택",null,"성공"]
[null,null,"BOS",68,"전시일시 및 탭문구 설정",null,"성공"]
[null,null,"BOS",69,"상품추가 버튼 선택",null,"성공"]
[null,null,"BOS",70,"상품조회 버튼 선택",null,"성공"]
[null,null,"BOS",71,"상품조회 팝업에서 상품조회하여 적용 버튼 선택",null,"성공"]
[null,null,"BOS",72,"임시저장 버튼 선택","윤지영\n정지혜","실패","프로그램","하","임시저장 실패",null,null,"완료","최수빈","2021-06-08"]
[null,null,"BOS",73,"확인 선택 후, 팝업의 닫기 버튼 선택",null,"성공"]
[null,null,"BOS",74,"MD추천 > '적용' 버튼 선택","정지혜","실패","프로그램","하","저장시 데이터 처리 오류 발생 alert",null,null,"완료","최수빈","2021-06-08"]
[null,null,"BOS",75,"TV타이틀 '수정' 버튼 선택",null,"성공"]
[null,null,"BOS",76,"컨텐츠 추가 버튼 선택","정지혜","실패","프로그램","하","mp4일때 확장자 체크 안함",null,null,"완료","최수빈","2021-06-09"]
[null,null,"BOS",77,"전시일시 설정","정지혜","실패","프로그램","하","기간데이터 벨리데이션 안함(시작일이 종료일보다 큰데 체크안함)",null,null,"완료","최수빈","2021-06-09"]
[null,null,"BOS",78,"동영상 YouTube 인 경우\n \n 미디어 컨텐츠키 입력\n \n * 유튜부 링크에서 마지막 = 뒷 부분만 필요",null,"성공"]
[null,null,"BOS",79,"임시저장 버튼 선택","정지혜","실패","프로그램","하",".jpg를 올려도 벨리데이션 없이 등록처리됨",null,null,"완료","최수빈","2021-06-09"]
[null,null,"BOS",80,"확인 선택 후, 팝업의 닫기 버튼 선택",null,"성공"]
[null,null,"BOS",81,"TV타이틀 > '적용' 버튼 선택",null,"성공"]
[null,null,"BOS",82,"이동하고 싶은 항목을 드래그하여 위치 이동",null,"성공"]
[null,null,"BOS",83,"상단 '레이아웃 저장' 버튼 선택",null,"성공"]
[null,null,"쇼핑몰",84,"몰 메인 접근하여 콘텐츠 정상 노출 확인",null,"성공"]
["TEST_04_002","브랜드홈 전시 화면 세팅","BOS",1,"상단 대메뉴에서 전시 선택",null,"성공"]
[null,null,"BOS",2,"메인관리 선택",null,"성공"]
[null,null,"BOS",3,"대분류에서 브랜드메인[1711] 선택",null,"성공"]
[null,null,"BOS",4,"브랜드조회 버튼 선택",null,"성공"]
[null,null,"BOS",5,"#(브랜드명) 조회",null,"성공"]
[null,null,"BOS",6,"#(브랜드명) 선택 및 확인","정지혜","실패","프로그램","하","1. default 세팅 하기로 했던 내용 전체 미적용\n 2. gnb는 구조상 필수인데 생성해야하게 되어있음, 순서 변경시, 데이터 영향안가는지?","1.생성완료\n2.순서변경시 데이터에는 영향없습니다.",null,"완료","최수빈","2021-06-08"]
[null,null,"BOS",7,"[신규 등록 인 경우_공통]\n \n 행 추가",null,"성공"]
[null,null,"BOS",8,"[신규 등록 인 경우_공통]\n \n 모듈 내 상단 항목에서 추가할 항목을 선택",null,"성공"]
[null,null,"BOS",9,"[신규 등록 인 경우_공통]\n 선택 항목 하단 좌측타입은 추가할 항목의 이름 마지막에 있는 타입과 동일한 것으로 설정",null,"성공"]
[null,null,"BOS",10,"[신규 등록 인 경우_공통]\n \n 우측 타이틀 입력 영역에 모듈 타이틀 입력",null,"성공"]
[null,null,"BOS",11,"[신규 등록 인 경우_공통]\n \n 위치를 이동 및 레이아웃 저장",null,"성공"]
[null,null,"BOS",12,"GNB '수정' 버튼 선택",null,"성공"]
[null,null,"BOS",13,"TAB컨텐츠 추가"]
[null,null,"BOS",14,"유형, 일시, 타이틀, 링크(이벤트 직접이동인 경우) 설정"]
[null,null,"BOS",15,"임시저장 버튼 선택"]
[null,null,"BOS",16,"확인 선택 후, 팝업의 닫기 버튼 선택"]
[null,null,"BOS",17,"GNB > '적용' 버튼 선택","정지혜","실패","데이터","하","gnb에 룩북추가하고저장했으나 프론트 gnb에 안나옴",null,null,"완료","최수빈","2021-06-08"]
[null,null,"BOS",18,"메인롤링배너 > '수정' 버튼 선택",null,"성공"]
[null,null,"BOS",19,"컨텐츠 추가' 버튼 선택",null,"성공"]
[null,null,"BOS",20,"전시일시, 클릭 시 이동 페이지, 타이틀, 서브텍스트 입력, 링크(이벤트 경우, 등록한 이벤트 상세 경로 북붙), 이미지(PC용), 모바일용이미지(모바일용) 설정\n \n * 기획전으로 설정 시, 미리 기획전을 등록 후 진행 필요\n * 타이틀 및 서브타이틀의 줄바꿈은 <br> 태그로 진행",null,"성공"]
[null,null,"BOS",21,"임시저장 버튼 선택",null,"성공"]
[null,null,"BOS",22,"확인 선택 후, 팝업의 닫기 버튼 선택",null,"성공"]
[null,null,"BOS",23,"메인롤링배너 > '적용' 버튼 선택",null,"성공"]
[null,null,"BOS",24,"브랜드소개 '수정' 버튼 선택",null,"성공"]
[null,null,"BOS",25,"컨텐츠 추가 버튼 선택",null,"성공"]
[null,null,"BOS",26,"전시일시 및 이동 페이지 설정",null,"성공"]
[null,null,"BOS",27,"타이틀추가, 브랜드소개추가, 링크추가 버튼 선택",null,"성공"]
[null,null,"BOS",28,"타이틀, 링크, 서브텍스트 내용 입력","정지혜","실패","데이터","하","브랜드 소개 내용 입력 내용이 너무 작아, 브랜드 소개 내용 처리 불가, 몇자까지 되어있는지 데이터 확인 바람","최소 글자수 제한 없음",null,"완료","최수빈","2021-06-09"]
[null,null,"BOS",29,"임시저장 버튼 선택",null,"성공"]
[null,null,"BOS",30,"확인 선택 후, 팝업의 닫기 버튼 선택",null,"성공"]
[null,null,"BOS",31,"브랜드소개 > '적용' 버튼 선택",null,"성공"]
[null,null,"BOS",32,"MD추천 '수정' 버튼 선택",null,"성공"]
[null,null,"BOS",33,"컨텐츠 추가 버튼 선택",null,"성공"]
[null,null,"BOS",34,"전시일시 설정",null,"성공"]
[null,null,"BOS",35,"임시저장 버튼 선택",null,"성공"]
[null,null,"BOS",36,"확인 선택 후, 팝업의 닫기 버튼 선택",null,"성공"]
[null,null,"BOS",37,"MD추천 > '적용' 버튼 선택",null,"성공"]
[null,null,"BOS",38,"MD추천 '상품관리' 선택",null,"성공"]
[null,null,"BOS",39,"상품추가 버튼 선택",null,"성공"]
[null,null,"BOS",40,"상품조회 하여 등록",null,"성공"]
[null,null,"BOS",41,"저장 버튼 선택",null,"성공"]
[null,null,"BOS",42,"상품순서변경 팝업 닫기 버튼 선택",null,"성공"]
[null,null,"BOS",43,"MD추천 '상품관리' 선택",null,"성공"]
[null,null,"BOS",44,"변경할 상품을 드래그하여 이동",null,"성공"]
[null,null,"BOS",45,"저장 버튼 선택",null,"성공"]
[null,null,"BOS",46,"상품순서변경 팝업 닫기 버튼 선택",null,"성공"]
[null,null,"BOS",47,"추천상품 '수정' 버튼 선택",null,"성공"]
[null,null,"BOS",48,"컨텐츠 추가 버튼 선택",null,"성공"]
[null,null,"BOS",49,"전시일시 설정","정지혜","실패","데이터","하","전시일자 N개를 날짜가 겹치게 등록하면 무슨기준으로 어떻게 나오나요? 미리 세팅해놓을수 있는구조도 아닌거같은데 이게 무슨 구조인가요?","[A]컨텐츠+상품 \n전시일자와 상품 같이 \n셋팅될 수 있도록 수정",null,"완료","최수빈","2021-06-08"]
[null,null,"BOS",50,"임시저장 버튼 선택",null,"성공"]
[null,null,"BOS",51,"확인 선택 후, 팝업의 닫기 버튼 선택",null,"성공"]
[null,null,"BOS",52,"추천상품 > '적용' 버튼 선택",null,"성공"]
[null,null,"BOS",53,"추천상품 '상품관리' 선택",null,"성공"]
[null,null,"BOS",54,"상품추가 버튼 선택",null,"성공"]
[null,null,"BOS",55,"상품조회 하여 등록","정지혜","실패","프로그램","하","* GNB 추천상품(SBM003) 등록 시 상품목록에추가 안됨\n * SBM019 > 데이터 상품 넣을 시, 50개 셀렉 했으나 상품 저장안되고 6개만 노출되었다가 팝업이 닫히고, 3분 뒤에 성공적으로 저장되었습니다. 라고 alert이 또나옴 이후 '오류로인해 처리되지 않았습니다. Alert이 나옴","1.gnb 추천상품(sbm003) GNB [상품] 마우스오버시\n우측에 설정한 상품중 3개 정상노출\n\n2.[A]컨텐츠+상품 전시일자와 상품 같이 \n셋팅될 수 있도록 수정",null,"완료","최수빈","2021-06-08"]
[null,null,"BOS",56,"저장 버튼 선택","정지혜","실패","데이터","하","상품 저장 안됨, 상품 50개 설정시, 오류나오거나 저장 이후 또 저장alert 나옴","[A]컨텐츠+상품 \n전시일자와 상품 같이 \n셋팅될 수 있도록 수정",null,"완료","최수빈","2021-06-08"]
[null,null,"BOS",57,"상품순서변경 팝업 닫기 버튼 선택",null,"성공"]
[null,null,"BOS",58,"추천상품 '상품관리' 선택",null,"성공"]
[null,null,"BOS",59,"변경할 상품을 드래그하여 이동","정지혜","실패","데이터","하","인풋하여 처리하는 순서는 순서데이터가 리셋됨(인풋한데이터가 안남아있음)","[A]컨텐츠+상품 \n전시일자와 상품 같이 \n셋팅될 수 있도록 수정",null,"완료","최수빈","2021-06-08"]
[null,null,"BOS",60,"저장 버튼 선택","정지혜","실패","데이터","하","인풋하여 처리하는 순서는 순서데이터가 리셋됨(인풋한데이터가 안남아있음)","[A]컨텐츠+상품 \n전시일자와 상품 같이 \n셋팅될 수 있도록 수정",null,"완료","최수빈","2021-06-08"]
[null,null,"BOS",61,"상품순서변경 팝업 닫기 버튼 선택",null,"성공"]
[null,null,"BOS",62,"베스트 '수정' 버튼 선택",null,"성공"]
[null,null,"BOS",63,"컨텐츠 추가 버튼 선택",null,"성공"]
[null,null,"BOS",64,"전시일시 설정","정지혜","실패","프로그램","하","전시일자 N개를 날짜가 겹치게 등록하면 무슨기준으로 어떻게 나오나요? 미리 세팅해놓을수 있는구조도 아닌거같은데 이게 무슨 구조인가요?","[A]컨텐츠+상품 \n전시일자와 상품 같이 \n셋팅될 수 있도록 수정",null,"완료","최수빈","2021-06-08"]
[null,null,"BOS",65,"임시저장 버튼 선택",null,"성공"]
[null,null,"BOS",66,"확인 선택 후, 팝업의 닫기 버튼 선택",null,"성공"]
[null,null,"BOS",67,"베스트 > '적용' 버튼 선택",null,"성공"]
[null,null,"BOS",68,"베스트 '상품관리' 선택",null,"성공"]
[null,null,"BOS",69,"상품추가 버튼 선택",null,"성공"]
[null,null,"BOS",70,"상품조회 하여 등록",null,"성공"]
[null,null,"BOS",71,"저장 버튼 선택",null,"성공"]
[null,null,"BOS",72,"상품순서변경 팝업 닫기 버튼 선택",null,"성공"]
[null,null,"BOS",73,"베스트 '상품관리' 선택",null,"성공"]
[null,null,"BOS",74,"변경할 상품을 드래그하여 이동","정지혜","실패","프로그램","하","전시 순번 숫자로 입력 시 ,숫자값 저장하면 리셋됨","[A]컨텐츠+상품 \n전시일자와 상품 같이 \n셋팅될 수 있도록 수정",null,"완료","최수빈","2021-06-08"]
[null,null,"BOS",75,"저장 버튼 선택",null,"성공"]
[null,null,"BOS",76,"상품순서변경 팝업 닫기 버튼 선택",null,"성공"]
[null,null,"BOS",77,"룩북 '수정' 버튼 선택",null,"성공"]
[null,null,"BOS",78,"컨텐츠 추가 버튼 선택",null,"성공"]
[null,null,"BOS",79,"전시일시 설정",null,"성공"]
[null,null,"BOS",80,"임시저장 버튼 선택",null,"성공"]
[null,null,"BOS",81,"확인 선택 후, 팝업의 닫기 버튼 선택",null,"성공"]
[null,null,"BOS",82,"룩북 > '적용' 버튼 선택",null,"성공"]
[null,null,"BOS",83,"기획전 '수정' 버튼 선택",null,"성공"]
[null,null,"BOS",84,"컨텐츠 추가 버튼 선택",null,"성공"]
[null,null,"BOS",85,"전시일시 설정",null,"성공"]
[null,null,"BOS",86,"임시저장 버튼 선택",null,"성공"]
[null,null,"BOS",87,"확인 선택 후, 팝업의 닫기 버튼 선택",null,"성공"]
[null,null,"BOS",88,"기획전 > '적용' 버튼 선택",null,"성공"]
[null,null,"BOS",89,"배너1 '수정' 버튼 선택",null,"성공"]
[null,null,"BOS",90,"컨텐츠 추가 버튼 선택",null,"성공"]
[null,null,"BOS",91,"전시일시 설정",null,"성공"]
[null,null,"BOS",92,"타이틀추가, 이미지추가, 링크추가 버튼 선택",null,"성공"]
[null,null,"BOS",93,"타이틀, 링크(있는 경우), 서브텍스트 내용 입력",null,"성공",null,null,"서브텍스트 항목없음"]
[null,null,"BOS",94,"임시저장 버튼 선택",null,"성공"]
[null,null,"BOS",95,"확인 선택 후, 팝업의 닫기 버튼 선택",null,"성공"]
[null,null,"BOS",96,"배너1 > '적용' 버튼 선택",null,"성공"]
[null,null,"BOS",97,"TV타이틀 '수정' 버튼 선택",null,"성공"]
[null,null,"BOS",98,"컨텐츠 추가 버튼 선택",null,"성공"]
[null,null,"BOS",99,"전시일시 설정",null,"성공"]
[null,null,"BOS",100,"동영상 YouTube 인 경우\n \n 미디어 컨텐츠키 입력\n \n * 유튜부 링크에서 마지막 = 뒷 부분만 필요",null,"성공"]
[null,null,"BOS",101,"임시저장 버튼 선택",null,"성공"]
[null,null,"BOS",102,"확인 선택 후, 팝업의 닫기 버튼 선택",null,"성공"]
[null,null,"BOS",103,"TV타이틀 > '적용' 버튼 선택",null,"성공"]
[null,null,"BOS",104,"상품롤링 '수정' 버튼 선택",null,"성공"]
[null,null,"BOS",105,"컨텐츠 추가 버튼 선택",null,"성공"]
[null,null,"BOS",106,"전시일시 설정",null,"성공"]
[null,null,"BOS",107,"임시저장 버튼 선택",null,"성공"]
[null,null,"BOS",108,"확인 선택 후, 팝업의 닫기 버튼 선택",null,"성공"]
[null,null,"BOS",109,"상품롤링 > '적용' 버튼 선택",null,"성공"]
[null,null,"BOS",110,"이동하고 싶은 항목을 드래그하여 위치 이동",null,"성공"]
[null,null,"BOS",111,"상단 '레이아웃 저장' 버튼 선택",null,"성공"]
[null,null,"쇼핑몰",112,"GNB> 브랜드> # 클릭","정지혜","실패","프로그램","하","속도 느림(3분이상소요)",null,null,"완료","최수빈","2021-06-08"]
[null,null,"쇼핑몰",113,"브랜드 GNB 확인","정지혜","실패","화면","하","1. 브랜드 메인 배너 > 리사이징 룰 이상함(높이로 맞추게 리사이징 되어있는것이 아니라 가로 기본으로 늘리게면서 자르게 되어있음)","▶ [pub] (6/8) 윤성미\n - 브랜드메인 슬라이드 틀 유지를 위한 가로사이즈 고정\n - 메인에서 배너 가이드를 벗어나는 이미지를 등록시, 세로 기준이상은 크롭으로 진행",null,"완료","윤성미","2021-06-08"]
[null,null,"쇼핑몰",114,"브랜드홈 콘텐츠 확인","정지혜","실패","데이터","하","2. 상단 헤더에서 컨텐츠 짤리는 현상이 나타남(brandGroupNo=22815)\n 1. 배너,1,2,3 CSS 깨짐 타이틀 적용안됨\n 2. 추천상품1 안나옴\n 3. 전체상품 리스트의 아이콘안뜸(*신상아이콘등)\n 4. 룩북 전시를 했는데, 룩북데이터가 노출되지 않앗음, (브랜드 설정해놔도 안나옴)\n --> 룩북의 설마 메인룩북전시 항목 버튼을 눌러야지 나오나요???\n 5. 모바일 룩북 타이틀 CSS 잘못됨",null,null,"완료","최수빈","07.28"]
["TEST_04_003","카테고리 전시 화면 세팅","BOS",1,"상단 대메뉴에서 전시 선택",null,"성공"]
[null,null,"BOS",2,"메인관리 선택",null,"성공"]
[null,null,"BOS",3,"대분류에서 카테고리메인[1712] 선택",null,"성공"]
[null,null,"BOS",4,"중뷴류 #(카테고리명) 선택",null,"성공"]
[null,null,"BOS",5,"[신규 등록 인 경우_공통]\n \n 행 추가",null,"성공"]
[null,null,"BOS",6,"[신규 등록 인 경우_공통]\n \n 모듈 내 상단 항목에서 추가할 항목을 선택",null,"성공"]
[null,null,"BOS",7,"[신규 등록 인 경우_공통]\n 선택 항목 하단 좌측타입은 추가할 항목의 이름 마지막에 있는 타입과 동일한 것으로 설정",null,"성공"]
[null,null,"BOS",8,"[신규 등록 인 경우_공통]\n \n 우측 타이틀 입력 영역에 모듈 타이틀 입력",null,"성공"]
[null,null,"BOS",9,"[신규 등록 인 경우_공통]\n \n 위치를 이동 및 레이아웃 저장",null,"성공"]
[null,null,"BOS",10,"GNB기획전 배너 '수정' 버튼 선택","윤지영","실패","프로그램","하","위치가 중복 되었습니다 / 미리보기 오류",null,null,"완료","최수빈","2021-06-14"]
[null,null,"BOS",11,"컨텐츠 추가 버튼 선택",null,"성공"]
[null,null,"BOS",12,"전시일시 설정","정지혜","실패","프로그램","하","기간데이터 시작/종료일 정상체크안됨",null,null,"완료","최수빈","2021-06-09"]
[null,null,"BOS",13,"타이틀추가, 이미지추가, 링크추가 버튼 선택",null,"성공"]
[null,null,"BOS",14,"타이틀, 링크(있는 경우), 서브텍스트 내용 입력",null,"성공"]
[null,null,"BOS",15,"임시저장 버튼 선택","정지혜","실패","프로그램","하","순번 입력 후 저장 시, 계속 로딩 걸리고 저장이 안됨\n 신규등록값 말고 기존 등록된 데이터의 순번 바뀔경우 저장안됨",null,null,"완료","최수빈","2021-06-09"]
[null,null,"BOS",16,"확인 선택 후, 팝업의 닫기 버튼 선택",null,"성공"]
[null,null,"BOS",17,"GNB기획전 배너 > '적용' 버튼 선택",null,"성공"]
[null,null,"BOS",18,"메인배너'수정' 버튼 선택","정유리","실패","프로그램","하","배너가가이드가물론있지만\n 기본이미지보다작게들어갈경우\n 길게들어갈경우타이틀영역이\n 이미지에맞춰올라갓다내려가서틀어짐\n 모바일마찬가지(SCM005처럼처리필요 // overflow:hidden)",null,null,"완료","최수빈","07.28"]
[null,null,"BOS",19,"컨텐츠 추가 버튼 선택",null,"성공"]
[null,null,"BOS",20,"전시일시 설정","정지혜","실패","프로그램","하","기간데이터 시작/종료일 정상체크안됨",null,null,"완료","최수빈","2021-06-09"]
[null,null,"BOS",21,"타이틀추가, 서브텍스트추가, 이미지추가, 링크추가 버튼 선택",null,"성공"]
[null,null,"BOS",22,"각 항목 설정",null,"성공"]
[null,null,"BOS",23,"임시저장 버튼 선택",null,"성공"]
[null,null,"BOS",24,"확인 선택 후, 팝업의 닫기 버튼 선택",null,"성공"]
[null,null,"BOS",25,"메인배너 > '적용' 버튼 선택",null,"성공"]
[null,null,"BOS",26,"카테고리 영역 '수정' 버튼 선택","윤지영\n정지혜","실패","프로그램","하","수정, 적용 버튼 없음 (위치설정)\n 타이틀만 수정 가능","컨텐츠유형[E]\n별도의 전시컨텐츠 설정없이\n메인에서 보여지는 \n전시 위치만 설정하는 유형",null,"완료","최수빈","2021-06-08"]
[null,null,"BOS",27,"컨텐츠 추가 버튼 선택","윤지영\n정지혜","보류",null,null,"확인불가",null,null,"완료","최수빈","07.28"]
[null,null,"BOS",28,"전시일시 설정","윤지영\n정지혜","보류",null,null,"일시내용안나옴",null,null,"완료","최수빈","07.28"]
[null,null,"BOS",29,"임시저장 버튼 선택","윤지영\n정지혜","보류",null,null,"확인불가",null,null,"완료","최수빈","07.28"]
[null,null,"BOS",30,"확인 선택 후, 팝업의 닫기 버튼 선택","윤지영\n정지혜","보류",null,null,"확인불가",null,null,"완료","최수빈","07.28"]
[null,null,"BOS",31,"카테고리영역 > '적용' 버튼 선택","윤지영\n정지혜","보류",null,null,"확인불가",null,null,"완료","최수빈","07.28"]
[null,null,"BOS",32,"신상품 '상품관리' 선택",null,"성공"]
[null,null,"BOS",33,"변경할 상품을 드래그하여 이동",null,"성공"]
[null,null,"BOS",34,"저장 버튼 선택",null,"성공"]
[null,null,"BOS",35,"상품순서변경 팝업 닫기 버튼 선택","정지혜","실패","프로그램","하","순서 변경 인풋 기능이 없어짐",null,null,"완료","최수빈","2021-06-14"]
[null,null,"BOS",36,"베스트 '상품관리' 선택",null,"성공"]
[null,null,"BOS",37,"변경할 상품을 드래그하여 이동",null,"성공"]
[null,null,"BOS",38,"저장 버튼 선택",null,"성공"]
[null,null,"BOS",39,"상품순서변경 팝업 닫기 버튼 선택",null,"성공"]
[null,null,"BOS",40,"이동하고 싶은 항목을 드래그하여 위치 이동",null,"성공"]
[null,null,"BOS",41,"상단 '레이아웃 저장' 버튼 선택",null,"성공"]
[null,null,"쇼핑몰",42,"GNB> #(카테고리명 클릭",null,"성공"]
[null,null,"쇼핑몰",43,"카테고리 메인 콘텐츠 확인","정지혜","실패","프로그램","하","1. 모바일 신상품 영역 여백 카테고리와 완전 붙어있음\n 2. 모바일 카테고리 영역 타이틀 안나옴\n 3. PC 베스트 타이틀 CSS 틀림(카테고리바로가기 처럼 폰트 조정되어야함)\n 4. 모바일 베스트 데이터가 10개 이상 있으나 데이터 10개까지만 나옴\n 6. 모바일 베스트 딱지 안나옴",null,null,"완료","최수빈","2021-06-10"]
["TEST_04_004","아울렛 전시 화면 세팅","BOS",1,"상단 대메뉴에서 전시 선택",null,"성공"]
[null,null,"BOS",2,"메인관리 선택",null,"성공"]
[null,null,"BOS",3,"대분류에서 아울렛메인[1713] 선택",null,"성공"]
[null,null,"BOS",4,"[신규 등록 인 경우_공통]\n \n 행 추가",null,"성공"]
[null,null,"BOS",5,"[신규 등록 인 경우_공통]\n \n 모듈 내 상단 항목에서 추가할 항목을 선택",null,"성공"]
[null,null,"BOS",6,"[신규 등록 인 경우_공통]\n 선택 항목 하단 좌측타입은 추가할 항목의 이름 마지막에 있는 타입과 동일한 것으로 설정","윤지영","실패","프로그램","하","위치코드가 중복되었습니다.","동일한 컨텐츠 중복 불가합니다",null,"완료","최수빈","07.28"]
[null,null,"BOS",7,"[신규 등록 인 경우_공통]\n \n 우측 타이틀 입력 영역에 모듈 타이틀 입력",null,"성공"]
[null,null,"BOS",8,"[신규 등록 인 경우_공통]\n \n 위치를 이동 및 레이아웃 저장",null,"성공"]
[null,null,"BOS",9,"GNB기획전 배너 '수정' 버튼 선택",null,"성공"]
[null,null,"BOS",10,"컨텐츠 추가 버튼 선택",null,"성공"]
[null,null,"BOS",11,"전시일시 설정","정지혜","실패","프로그램","하","기간 체크 안됨\n 시작일이 종료일보다 뒤로 설정되어도 저장됨",null,null,"완료","최수빈","2021-06-09"]
[null,null,"BOS",12,"타이틀추가, 이미지추가, 링크추가 버튼 선택",null,"성공",null,null,"타이틀/이미지/링크를 무조건 선택 해야 처리됨 \n (굳이 고정되어있는데 이러는 이유가 뭔지?>"]
[null,null,"BOS",13,"타이틀, 링크(있는 경우), 서브텍스트 내용 입력","정지혜","실패","프로그램","하",".1. 서브 텍스트 없음","GNB에서 노출되는 기획전 정보는 타이틀까지만 노출됩니다.",null,"완료","한수인","2021-06-09"]
[null,null,"BOS",14,"임시저장 버튼 선택","정지혜","실패","프로그램","하","2. 타이틀 항목 중복 추가 시, 오류문구가 발생하며 서브로나오나요jQuery11240546430348833868_1623130452525? 이런 문구가 자동저장됨을 확인 함","이상없음을 확인",null,"완료","최수빈","2021-06-14"]
[null,null,"BOS",15,"확인 선택 후, 팝업의 닫기 버튼 선택",null,"성공"]
[null,null,"BOS",16,"GNB기획전 배너 > '적용' 버튼 선택","정유리\n정지혜","실패","데이터","하","bos등록후프론트에전시배너가안보임",null,null,"완료","최수빈","2021-06-09"]
[null,null,"BOS",17,"메인롤링배너 > '수정' 버튼 선택",null,"성공"]
[null,null,"BOS",18,"컨텐츠 추가' 버튼 선택",null,"성공"]
[null,null,"BOS",19,"전시일시, 컨텐츠유형, 썸네일 글자색상(이미지에 따라 설정 필요), 타이틀, 서브텍스트 입력, 링크(이벤트 경우, 등록한 이벤트 상세 경로 북붙), 이미지(PC용), 모바일용이미지(모바일용) 설정\n \n * 기획전으로 설정 시, 미리 기획전을 등록 후 진행 필요\n * 타이틀 및 서브타이틀의 줄바꿈은 <br> 태그로 진행",null,"성공"]
[null,null,"BOS",20,"(기획전 설정 시)\n 기획전 검색 버튼 선택","정지혜","실패","프로그램","하","1.컨텐츠 유형 > 기획전으로 설정 하고 기획전 값 null인데도 저장된 후에 기획전번호 입력 alert 이 노출됨",null,null,"완료","최수빈","2021-06-09"]
[null,null,"BOS",21,"검색 조건 또는 설정없이 '조회' 버튼 선택",null,"성공"]
[null,null,"BOS",22,"항목 체크박스 선택 후, '적용' 버튼 선택","정지혜","실패","프로그램","하","컨텐츠 유형을 기획전으로 선택 하고 이벤트 데이터(25번) 을 선택 해도 처리됨",null,null,"완료","최수빈","07.28"]
[null,null,"BOS",23,"임시저장 버튼 선택",null,"성공"]
[null,null,"BOS",24,"확인 선택 후, 팝업의 닫기 버튼 선택",null,"성공"]
[null,null,"BOS",25,"메인롤링배너 > '적용' 버튼 선택",null,"성공"]
[null,null,"BOS",26,"카테고리 영역 '수정' 버튼 선택",null,"성공"]
[null,null,"BOS",27,"컨텐츠 추가 버튼 선택",null,"성공"]
[null,null,"BOS",28,"전시일시 설정","정지혜","실패","프로그램","하","기간 체크 안됨\n 시작일이 종료일보다 뒤로 설정되어도 저장됨",null,null,"완료","최수빈","2021-06-09"]
[null,null,"BOS",29,"임시저장 버튼 선택",null,"성공"]
[null,null,"BOS",30,"확인 선택 후, 팝업의 닫기 버튼 선택",null,"성공"]
[null,null,"BOS",31,"카테고리영역 > '적용' 버튼 선택",null,"성공"]
[null,null,"BOS",32,"MD추천 '상품관리' 선택","정지혜","실패","프로그램","하","코너 전체를 지웠다가 다시 노출하였을 때에도 일전 저장한 데이터가 다 있는게 맞는지?",null,null,"조치중","최수빈","07.28"]
[null,null,"BOS",33,"상품추가 버튼 선택",null,"성공"]
[null,null,"BOS",34,"상품조회 하여 등록","정지혜","실패","프로그램","하","상품 50개 등록하는데 30초 이상 소요됨\n 상품 조회 팝업에서 연도/시즌 필터링으로 검색했을때 검색안됨(전체로해도상동)",null,null,"완료","최수빈","2021-06-10"]
[null,null,"BOS",35,"저장 버튼 선택",null,"성공"]
[null,null,"BOS",36,"상품순서변경 팝업 닫기 버튼 선택","정지혜","실패","프로그램","하","상품이 다 추가 되지 않은 상태에서 팝업을 닫으면, 로딩바가 계속 화면에 노출됨","상품이 추가되는 중에는\n로딩바 노출\n\n",null,"완료","최수빈","07.28"]
[null,null,"BOS",37,"MD추천 '상품관리' 선택",null,"성공"]
[null,null,"BOS",38,"변경할 상품을 드래그하여 이동","정지혜","실패","프로그램","하","상품 전시 순서 입력 하고 저장하면, 입력한 상품 순서데이터 전부 리셋됨",null,null,"완료","최수빈","2021-06-11"]
[null,null,"BOS",39,"저장 버튼 선택",null,"성공"]
[null,null,"BOS",40,"상품순서변경 팝업 닫기 버튼 선택",null,"성공"]
[null,null,"BOS",41,"베스트 '상품관리' 선택",null,"성공"]
[null,null,"BOS",42,"변경할 상품을 드래그하여 이동","정지혜","실패","프로그램","하","1. 베스트의 상품 추가 하면 일부 상품들이 undifined 로 노출됨",null,null,"완료","최수빈","2021-06-08"]
[null,null,"BOS",43,"저장 버튼 선택",null,"성공"]
[null,null,"BOS",44,"상품순서변경 팝업 닫기 버튼 선택","정지혜","실패","프로그램","하","전시순번입력 항목이 사라져있음",null,null,"완료","최수빈","2021-06-11"]
[null,null,"BOS",45,"이동하고 싶은 항목을 드래그하여 위치 이동","정지혜","실패","프로그램","하","전시순번입력 항목이 사라져있음",null,null,"완료","최수빈","2021-06-11"]
[null,null,"BOS",46,"상단 '레이아웃 저장' 버튼 선택",null,"성공"]
[null,null,"쇼핑몰",47,"GNB> 아울렛 선택",null,"성공"]
[null,null,"쇼핑몰",48,"카테고리 메인 콘텐츠 확인","정지혜","실패","화면","하","1. 빅배너 이미지 리사이징 확인(세로 틀어짐)\n 2. 전체 베스트 아이콘이 붙어서 나옴 아이콘 기준확인\n \n 1. 베스트 딱지가 다 붙어서나옴(원래 나와야할 무료배송,산상 등은 딱지 가 안나옴)\n 2. 아울렛에서 상품 위시를 추가 했는데, 위시리스트 목록이 pc 퀵바에서는 나오지 않음\n 3. 배너 높이 리사이징 확인(높이가 맞게 리사이징 되지않아 모바일은 페이지가 이상하게 벌어짐\n 4. 빅배너 이미지의 텍스트를 블랙으로 처리 했으나, 모바일에서 전부 화이트로만 나옴\n 5. 모바일 아울렛 베스트에서 아이콘 및 컬러칩 다 안나옴","▶ [pub] (6/8) 윤성미\n - 가이드를 벗어나는 이미지 등록 시, 기준 가로 사이즈로 리사이징, 세로 기준이상은 크롭으로 진행\n - 1번에 대한 확인 스타일 반영 요청\n---\n",null,"완료","최수빈"]
["TEST_06_001","비회원 바로 구매","쇼핑몰",1,"(비로그인 상태)\n 테스트 구매할 상품상세로 진입하여 옵션 설정 후 바로구매 버튼 클릭\n \n * 검색 기능 미개발로 상품상세 진입 방법\n http://ts5000.ipdisk.co.kr/goods/detail/form?goodsCd=상품코드",null,"성공"]
[null,null,"쇼핑몰",2,"비회원 구매' 버튼 클릭",null,"성공"]
[null,null,"쇼핑몰",3,"본인인증' 버튼 클릭",null,"성공"]
[null,null,"쇼핑몰",4,"휴대폰 본인인증 완료",null,"성공"]
[null,null,"쇼핑몰",5,"구매자 정보 설정\n 이메일, 배송주소, 상세주소 설정",null,"성공"]
[null,null,"쇼핑몰",6,"비회원 개인정보 수집/이용 동의 클릭",null,"성공"]
[null,null,"쇼핑몰",7,"주문하기' 버튼 클릭",null,"성공"]
[null,null,"쇼핑몰",8,"주문고객 정보 확인",null,"성공"]
[null,null,"쇼핑몰",9,"배송지 정보 확인",null,"성공"]
[null,null,"쇼핑몰",10,"배송요청 사항 '변경하기' 버튼 선택",null,"성공"]
[null,null,"쇼핑몰",11,"배송요청 설정 변경 후, 등록 버튼 선택",null,"성공"]
[null,null,"쇼핑몰",12,"해외배송상품인 경우, 개인통관고유부호 입력"]
[null,null,"쇼핑몰",13,"개인통관고유부호 저장/관리 동의 체크",null,"성공"]
[null,null,"쇼핑몰",14,"주문제작상품인 경우, 주문제작상품 동의 체크 확인",null,"성공"]
[null,null,"쇼핑몰",15,"결제수단에서 결제수단 선택",null,"성공"]
[null,null,"쇼핑몰",16,"우측 주문내역 확인",null,"성공"]
[null,null,"쇼핑몰",17,"동의 후 결제하기 버튼 내 금액 확인",null,"성공"]
[null,null,"쇼핑몰",18,"동의 후 결제하기 버튼 클릭",null,"성공"]
[null,null,"쇼핑몰",19,"결제 진행",null,"성공"]
[null,null,"쇼핑몰",20,"주문완료 메일 및 알림톡 확인"]
[null,null,"쇼핑몰",21,"주문완료 페이지 정보 확인",null,"성공"]
[null,null,"BOS",22,"상단 '주문/배송' 메뉴 선택",null,"성공"]
[null,null,"BOS",23,"좌측 주문관리>주문목록 메뉴 선택",null,"성공"]
[null,null,"BOS",24,"몰구분(자사몰) 설정, 주문자명 입력, 조회일자(최근 한주) 설정 후, '조회' 버튼 선택","윤지영","실패","프로그램","하","주문자명 입력 후 조회 안됨 (주문자명 제외하고 조회해야 리스트 뜸)","비회원구매후 BOS 에서 주문자명으로 조회 확인 했습니다.",null,"완료"]
[null,null,"BOS",25,"주문번호 선택",null,"성공"]
[null,null,"BOS",26,"주문 정보 검증",null,"성공"]
["TEST_06_002","비회원 쇼핑백 구매","쇼핑몰",1,"(비로그인 상태)\n 테스트 구매할 상품상세로 진입하여 옵션 설정 후 '쇼핑백' 버튼 선택\n \n * 검색 기능 미개발로 상품상세 진입 방법\n http://ts5000.ipdisk.co.kr/goods/detail/form?goodsCd=상품코드",null,"성공"]
[null,null,"쇼핑몰",2,"쇼핑백가기' 버튼 선택",null,"성공"]
[null,null,"쇼핑몰",3,"정보 확인",null,"성공"]
[null,null,"쇼핑몰",4,"구매하기' 버튼 선택",null,"성공"]
[null,null,"쇼핑몰",5,"비회원 구매' 버튼 클릭",null,"성공"]
[null,null,"쇼핑몰",6,"본인인증' 버튼 클릭",null,"성공"]
[null,null,"쇼핑몰",7,"휴대폰 본인인증 완료",null,"성공"]
[null,null,"쇼핑몰",8,"구매자 정보 설정\n 이메일, 배송주소, 상세주소 설정",null,"성공"]
[null,null,"쇼핑몰",9,"비회원 개인정보 수집/이용 동의 클릭",null,"성공"]
[null,null,"쇼핑몰",10,"주문하기' 버튼 클릭",null,"성공"]
[null,null,"쇼핑몰",11,"주문고객 정보 확인",null,"성공"]
[null,null,"쇼핑몰",12,"배송지 정보 확인",null,"성공"]
[null,null,"쇼핑몰",13,"배송요청 사항 '변경하기' 버튼 선택",null,"성공"]
[null,null,"쇼핑몰",14,"배송요청 설정 변경 후, 등록 버튼 선택",null,"성공"]
[null,null,"쇼핑몰",15,"해외배송상품인 경우, 개인통관고유부호 입력",null,"성공"]
[null,null,"쇼핑몰",16,"개인통관고유부호 저장/관리 동의 체크",null,"성공"]
[null,null,"쇼핑몰",17,"주문제작상품인 경우, 주문제작상품 동의 체크 확인",null,"성공"]
[null,null,"쇼핑몰",18,"결제수단에서 결제수단 선택",null,"성공"]
[null,null,"쇼핑몰",19,"우측 주문내역 확인",null,"성공"]
[null,null,"쇼핑몰",20,"동의 후 결제하기 버튼 내 금액 확인",null,"성공"]
[null,null,"쇼핑몰",21,"동의 후 결제하기 버튼 클릭",null,"성공"]
[null,null,"쇼핑몰",22,"결제 진행",null,"성공"]
[null,null,"쇼핑몰",23,"주문완료 메일 및 알림톡 확인",null,"성공"]
[null,null,"쇼핑몰",24,"주문완료 페이지 정보 확인",null,"성공"]
[null,null,"BOS",25,"상단 '주문/배송' 메뉴 선택",null,"성공"]
[null,null,"BOS",26,"좌측 주문관리>주문목록 메뉴 선택",null,"성공"]
[null,null,"BOS",27,"몰구분(자사몰) 설정, 주문자명 설정, 조회일자(최근 한주) 설정 후, '조회' 버튼 선택","윤지영","실패","프로그램","하","주문자명 입력 후 조회 안됨 (주문자명 제외하고 조회해야 리스트 뜸)","비회원구매후 BOS 에서 주문자명으로 조회 확인 했습니다.",null,"완료"]
[null,null,"BOS",28,"주문번호 선택",null,"개선",null,null,"주문번호 누른후 팝업호출이 오래걸림","비회원 주문후 확인결과 오래걸리지 않는것 같습니다.\n다시한번 확인 부탁드립니다.",null,"완료"]
[null,null,"BOS",29,"주문 정보 검증","윤지영","실패","프로그램","하","주문번호 안나옴","주문번호가 어떻게 안나오는지 답변 부탁드립니다.",null,"완료"]
["TEST_06_003","일반 상품 바로 구매","BOS",1,"구매할 상품에\n 쿠폰, 사은품 세팅",null,"성공"]
[null,null,"BOS",2,"구매 회원에게 포인트 지급 세팅",null,"성공"]
[null,null,"쇼핑몰",3,"상품권 등록 \n \n * 0517_상품권 등록 시트 참고",null,"성공"]
[null,null,"쇼핑몰",4,"(로그인 상태)\n 테스트 구매할 상품상세로 진입하여 옵션 설정 후 바로구매 버튼 클릭\n \n * 검색 기능 미개발로 상품상세 진입 방법\n http://ts5000.ipdisk.co.kr/goods/detail/form?goodsCd=상품코드",null,"성공"]
[null,null,"쇼핑몰",5,"주문고객 정보 확인",null,"성공"]
[null,null,"쇼핑몰",6,"배송지 정보 확인",null,"성공"]
[null,null,"쇼핑몰",7,"배송지 변경' 버튼 선택",null,"성공"]
[null,null,"쇼핑몰",8,"배송지 등록 설정 \n \n - 배송지 정보 : 받는분, 휴대폰 번호, 배송주소\n - 배송 요청 사항 설정",null,"성공"]
[null,null,"쇼핑몰",9,"배송지 등록' 버튼 선택",null,"성공"]
[null,null,"쇼핑몰",10,"해외배송상품인 경우, 개인통관고유부호 입력",null,"보류",{"$nulls":5},"완료",null,null,"4차 테스터","7월 23일"]
[null,null,"쇼핑몰",11,"개인통관고유부호 저장/관리 동의 체크",null,"보류",{"$nulls":5},"완료",null,null,"4차 테스터","7월 23일"]
[null,null,"쇼핑몰",12,"주문제작상품인 경우, 주문제작상품 동의 체크 확인",null,"보류",{"$nulls":5},"완료",null,null,"4차 테스터","7월 23일"]
[null,null,"쇼핑몰",13,"사은품 제공되는 상품인 경우, 사은품 선택 영역 노출 확인",null,"성공"]
[null,null,"쇼핑몰",14,"사은품 리스트 확인",null,"성공"]
[null,null,"쇼핑몰",16,"사은품 지급 동의 확인","정유리","실패","프로그램","하","기본활성화노출아님/선택해야함","설계자분과 협의 부탁드립니다.",null,"완료",null,null,"4차 테스터","7월 23일"]
[null,null,"쇼핑몰",17,"할인혜택 사용 영역 확인",null,"성공"]
[null,null,"쇼핑몰",18,"할인코드 입력 후 적용버튼 클릭",null,"성공"]
[null,null,"쇼핑몰",19,"쿠폰변경 버튼 클릭",null,"성공"]
[null,null,"쇼핑몰",20,"쿠폰 리스트 확인",null,"성공"]
[null,null,"쇼핑몰",21,"쿠폰 리스트에서 다른 쿠폰 선택하여 쿠폰 적용 버튼 클릭",null,"성공"]
[null,null,"쇼핑몰",22,"선포인트 사용 선택",null,"성공"]
[null,null,"쇼핑몰",23,"스타일 포인트 입력 후 적용 버튼 클릭",null,"성공"]
[null,null,"쇼핑몰",24,"상품권 사용 금액 입력 후 적용 버튼 클릭",null,"성공"]
[null,null,"쇼핑몰",25,"결제수단에서 결제수단 선택",null,"성공"]
[null,null,"쇼핑몰",26,"우측 주문내역 확인",null,"성공"]
[null,null,"쇼핑몰",27,"동의 후 결제하기 버튼 내 금액 확인",null,"성공"]
[null,null,"쇼핑몰",28,"동의 후 결제하기 버튼 클릭",null,"성공"]
[null,null,"쇼핑몰",29,"결제 진행",null,"성공"]
[null,null,"쇼핑몰",30,"주문완료 메일 및 알림톡 확인",null,"보류",{"$nulls":5},"완료",null,null,"4차 테스터","7월 23일"]
[null,null,"쇼핑몰",31,"주문완료 페이지 정보 확인",null,"성공"]
[null,null,"BOS",32,"상단 '주문/배송' 메뉴 선택",null,"성공"]
[null,null,"BOS",33,"좌측 주문관리>주문목록 메뉴 선택",null,"성공"]
[null,null,"BOS",34,"몰구분(자사몰) 설정, 주문자명 입력, 조회일자(최근 한주) 설정 후, '조회' 버튼 선택",null,"성공"]
[null,null,"BOS",35,"주문번호 선택",null,"성공"]
[null,null,"BOS",36,"주문 정보 검증",null,"성공"]
["TEST_06_004","일반 상품 쇼핑백 구매\n 상품 1건","BOS",1,"구매할 상품에\n 쿠폰, 사은품 세팅"]
[null,null,"BOS",2,"구매 회원에게 포인트 지급 세팅"]
[null,null,"쇼핑몰",3,"상품권 등록 \n \n * 0517_상품권 등록 시트 참고",null,"성공"]
[null,null,"쇼핑몰",4,"(로그인 상태)\n 테스트 구매할 상품상세로 진입하여 옵션 설정 후 쇼핑백 버튼 클릭\n \n * 검색 기능 미개발로 상품상세 진입 방법\n http://ts5000.ipdisk.co.kr/goods/detail/form?goodsCd=상품코드"]
[null,null,"쇼핑몰",5,"정보 확인",null,"성공"]
[null,null,"쇼핑몰",6,"상품의 '옵션/수량변경' 버튼 선택",null,"성공"]
[null,null,"쇼핑몰",7,"구매하기' 버튼 선택",null,"성공"]
[null,null,"쇼핑몰",8,"주문고객 정보 확인",null,"성공"]
[null,null,"쇼핑몰",9,"배송지 정보 확인",null,"성공"]
[null,null,"쇼핑몰",10,"배송지 변경' 버튼 선택",null,"성공"]
[null,null,"쇼핑몰",11,"배송지 등록 설정 \n \n - 배송지 정보 : 받는분, 휴대폰 번호, 배송주소\n - 배송 요청 사항 설정",null,"성공"]
[null,null,"쇼핑몰",12,"배송지 등록' 버튼 선택",null,"성공"]
[null,null,"쇼핑몰",13,"해외배송상품인 경우, 개인통관고유부호 입력",null,"보류",{"$nulls":5},"완료",null,null,"4차 테스터","7월 23일"]
[null,null,"쇼핑몰",14,"개인통관고유부호 저장/관리 동의 체크",null,"보류",{"$nulls":5},"완료",null,null,"4차 테스터","7월 23일"]
[null,null,"쇼핑몰",15,"주문제작상품인 경우, 주문제작상품 동의 체크 확인",null,"보류",{"$nulls":5},"완료",null,null,"4차 테스터","7월 23일"]
[null,null,"쇼핑몰",16,"사은품 제공되는 상품인 경우, 사은품 선택 영역 노출 확인",null,"보류",{"$nulls":5},"완료",null,null,"4차 테스터","7월 23일"]
[null,null,"쇼핑몰",17,"사은품 리스트 확인",null,"보류",{"$nulls":5},"완료",null,null,"4차 테스터","7월 23일"]
[null,null,"쇼핑몰",18,"선택 사은품 선택",null,"보류",{"$nulls":5},"완료",null,null,"4차 테스터","7월 23일"]
[null,null,"쇼핑몰",19,"사은품 지급 동의 확인",null,"보류",{"$nulls":5},"완료",null,null,"4차 테스터","7월 23일"]
[null,null,"쇼핑몰",20,"할인혜택 사용 영역 확인",null,"보류",{"$nulls":5},"완료",null,null,"4차 테스터","7월 23일"]
[null,null,"쇼핑몰",21,"할인코드 입력 후 적용버튼 클릭",null,"보류",{"$nulls":5},"완료",null,null,"4차 테스터","7월 23일"]
[null,null,"쇼핑몰",22,"쿠폰변경 버튼 클릭",null,"성공"]
[null,null,"쇼핑몰",23,"쿠폰 리스트 확인",null,"성공"]
[null,null,"쇼핑몰",24,"쿠폰 리스트에서 다른 쿠폰 선택하여 쿠폰 적용 버튼 클릭",null,"성공"]
[null,null,"쇼핑몰",25,"선포인트 사용 선택",null,"성공"]
[null,null,"쇼핑몰",26,"스타일 포인트 입력 후 적용 버튼 클릭",null,"성공"]
[null,null,"쇼핑몰",27,"상품권 사용 금액 입력 후 적용 버튼 클릭",null,"성공"]
[null,null,"쇼핑몰",28,"결제수단에서 결제수단 선택",null,"성공"]
[null,null,"쇼핑몰",29,"우측 주문내역 확인",null,"성공"]
[null,null,"쇼핑몰",30,"동의 후 결제하기 버튼 내 금액 확인",null,"성공"]
[null,null,"쇼핑몰",31,"동의 후 결제하기 버튼 클릭",null,"성공"]
[null,null,"쇼핑몰",32,"결제 진행",null,"성공"]
[null,null,"쇼핑몰",33,"주문완료 메일 및 알림톡 확인"]
[null,null,"쇼핑몰",34,"주문완료 페이지 정보 확인",null,"성공"]
[null,null,"BOS",35,"상단 '주문/배송' 메뉴 선택",null,"성공"]
[null,null,"BOS",36,"좌측 주문관리>주문목록 메뉴 선택",null,"성공"]
[null,null,"BOS",37,"몰구분(자사몰) 설정, 주문자명 입력, 조회일자(최근 한주) 설정 후, '조회' 버튼 선택",null,"성공"]
[null,null,"BOS",38,"주문번호 선택",null,"성공"]
[null,null,"BOS",39,"주문 정보 검증",null,"성공"]
["TEST_06_005","일반 상품 쇼핑백 구매\n 상품 다수건(입점2+자사2 건 이상)","BOS",1,"구매할 상품에\n 쿠폰, 사은품 세팅"]
[null,null,"BOS",2,"구매 회원에게 포인트 지급 세팅"]
[null,null,"쇼핑몰",3,"상품권 등록 \n \n * 0517_상품권 등록 시트 참고",null,"성공"]
[null,null,"쇼핑몰",4,"(로그인 상태)\n 테스트 구매할 상품상세로 진입하여 옵션 설정 후 쇼핑백 버튼 클릭\n \n * 자사상품 2개 이상, 입점사 상품 2개 이상으로 쇼핑백 담기\n \n * 검색 기능 미개발로 상품상세 진입 방법\n http://ts5000.ipdisk.co.kr/goods/detail/form?goodsCd=상품코드",null,"성공"]
[null,null,"쇼핑몰",5,"정보 확인",null,"성공"]
[null,null,"쇼핑몰",6,"상품의 '옵션/수량변경' 버튼 선택",null,"성공"]
[null,null,"쇼핑몰",7,"구매하기' 버튼 선택",null,"성공"]
[null,null,"쇼핑몰",8,"주문고객 정보 확인",null,"성공"]
[null,null,"쇼핑몰",9,"배송지 정보 확인",null,"성공"]
[null,null,"쇼핑몰",10,"배송지 변경' 버튼 선택",null,"성공"]
[null,null,"쇼핑몰",11,"배송지 등록 설정 \n \n - 배송지 정보 : 받는분, 휴대폰 번호, 배송주소\n - 배송 요청 사항 설정",null,"성공"]
[null,null,"쇼핑몰",12,"배송지 등록' 버튼 선택",null,"성공"]
[null,null,"쇼핑몰",13,"해외배송상품인 경우, 개인통관고유부호 입력"]
[null,null,"쇼핑몰",14,"개인통관고유부호 저장/관리 동의 체크"]
[null,null,"쇼핑몰",15,"주문제작상품인 경우, 주문제작상품 동의 체크 확인"]
[null,null,"쇼핑몰",16,"사은품 제공되는 상품인 경우, 사은품 선택 영역 노출 확인"]
[null,null,"쇼핑몰",17,"사은품 리스트 확인"]
[null,null,"쇼핑몰",18,"선택 사은품 선택"]
[null,null,"쇼핑몰",19,"사은품 지급 동의 확인"]
[null,null,"쇼핑몰",20,"할인혜택 사용 영역 확인",null,"성공"]
[null,null,"쇼핑몰",21,"할인코드 입력 후 적용버튼 클릭"]
[null,null,"쇼핑몰",22,"쿠폰변경 버튼 클릭",null,"성공"]
[null,null,"쇼핑몰",23,"쿠폰 리스트 확인",null,"성공"]
[null,null,"쇼핑몰",24,"쿠폰 리스트에서 다른 쿠폰 선택하여 쿠폰 적용 버튼 클릭",null,"성공"]
[null,null,"쇼핑몰",25,"선포인트 사용 선택",null,"성공"]
[null,null,"쇼핑몰",26,"스타일 포인트 입력 후 적용 버튼 클릭",null,"성공"]
[null,null,"쇼핑몰",27,"상품권 사용 금액 입력 후 적용 버튼 클릭",null,"성공"]
[null,null,"쇼핑몰",28,"결제수단에서 결제수단 선택",null,"성공"]
[null,null,"쇼핑몰",29,"우측 주문내역 확인",null,"성공"]
[null,null,"쇼핑몰",30,"동의 후 결제하기 버튼 내 금액 확인",null,"성공"]
[null,null,"쇼핑몰",31,"동의 후 결제하기 버튼 클릭",null,"성공"]
[null,null,"쇼핑몰",32,"결제 진행",null,"성공"]
[null,null,"쇼핑몰",33,"주문완료 메일 및 알림톡 확인",null,"성공"]
[null,null,"쇼핑몰",34,"주문완료 페이지 정보 확인",null,"성공"]
[null,null,"BOS",35,"상단 '주문/배송' 메뉴 선택",null,"성공"]
[null,null,"BOS",36,"좌측 주문관리>주문목록 메뉴 선택",null,"성공"]
[null,null,"BOS",37,"몰구분(자사몰) 설정, 주문자명 입력, 조회일자(최근 한주) 설정 후, '조회' 버튼 선택",null,"성공"]
[null,null,"BOS",38,"주문번호 선택",null,"성공"]
[null,null,"BOS",39,"주문 정보 검증",null,"성공"]
["TEST_03_018","쿠폰 지급","BOS",1,"상단 회원/마케팅 메뉴 선택",null,"성공"]
[null,null,"BOS",2,"활동회원목록 선택",null,"성공"]
[null,null,"BOS",3,"검색조건 설정하여 검색",null,"성공"]
[null,null,"BOS",4,"검색구분()회원명, 이메일, 아이디)에 따라 나온 결과의 회원 선택","윤지영\n정유리","실패","데이터","하","회원목록에 안나옴(조회결과없음)\n \n 아이디 / 이름 단독 조건으론 검색결과 노출안됨\n 아이디+기간조회시만 노출됨",null,null,"완료",null,null,"4차 테스터","7월 23일"]
[null,null,"BOS",5,"쿠폰내역 탭 선택",null,"성공"]
[null,null,"BOS",6,"하단 '쿠폰발급' 선택",null,"성공"]
[null,null,"BOS",7,"쿠폰유형, 쿠폰 ID, 쿠폰명 중 조건설정하여 검색",null,"성공"]
[null,null,"BOS",8,"발급할 쿠폰 선택",null,"성공"]
[null,null,"BOS",9,"유효기간시작일, 종료일, 발급사유, 만료알림발송여부설정, 상세사유 입력 후에 '발급' 버튼 선택",null,"성공"]
[null,null,"쇼핑몰",10,"마이페이지 선택",null,"성공"]
[null,null,"쇼핑몰",11,"좌측 쿠폰 메뉴 선택",null,"성공"]
[null,null,"쇼핑몰",12,"발급한 쿠폰 확인","정유리","실패","데이터","하","BOS에서 1장 발급 후\n 마이페이지 쿠폰에서 확인해보니\n 발급한쿠폰1장으로상단노출되나\n 하단에서는세부내역이보이지않고\n 보유한쿠폰이없습니다가 노출됨\n \n 동시에 우측퀵메뉴에서는\n 발급된쿠폰1장보임\n 1장을다운로드하니 \n 마이페이지에서 보이지않던 \n 보유쿠폰이나타났으나 \n 퀵메뉴에서는 보유쿠폰수량이 추가로 \n 1개 더 카운팅됨 \n \n 우측퀵메뉴와마이페이지\n 보유쿠폰수량상이함","오류 화면 이미지 캡처, 또는 쿠폰명 확인부탁드립니다.\nks940213@naver.com",null,"완료","김소원"]
["TEST_07_017","위시리스트 관리","쇼핑몰",1,"상품 리스트에서 위시 버튼 선택",null,"성공"]
[null,null,"쇼핑몰",2,"GNB > 마이페이지 메뉴 선택",null,"성공"]
[null,null,"쇼핑몰",3,"마이페이지 > 위시리스트 메뉴 선택",null,"성공"]
[null,null,"쇼핑몰",4,"등록한 위시리스트 확인",null,"성공"]
[null,null,"쇼핑몰",5,"활성화된 위시 버튼 선택",null,"성공"]
[null,null,"쇼핑몰",6,"상품 리스트로 이동하여 상품 50개 위시 버튼 선택",null,"성공"]
[null,null,"쇼핑몰",7,"GNB > 마이페이지 메뉴 선택",null,"성공"]
[null,null,"쇼핑몰",8,"마이페이지 > 위시리스트 메뉴 선택",null,"성공"]
[null,null,"쇼핑몰",9,"등록한 위시리스트 확인","정유리","실패","데이터","하","마이페이지 위시리스트에는 50개 정상출력\n 퀵메뉴에위시리스트에는카운팅안됨","이상없음\n다시 확인 부탁드립니다.\n",null,"완료","김소원"]
[null,null,"쇼핑몰",10,"상품 리스트로 이동하여 1개 상품 추가로 위시 버튼 선택",null,"성공"]
[null,null,"쇼핑몰",11,"GNB > 마이페이지 메뉴 선택",null,"성공"]
[null,null,"쇼핑몰",12,"마이페이지 > 위시리스트 메뉴 선택",null,"성공"]
[null,null,"쇼핑몰",13,"등록한 위시리스트 확인","정유리","실패","데이터","하","최초등록상품삭제되고마지막에추가한상품이\n 노출되는건정상으로노출되나\n 50개이상추가로위시등록했을때\n 50개까지보일떄가있고51개가보일떄가있음\n 추가로계속등록하며확인한결과51개이상은안보임","이상없음\n다시 확인 부탁드립니다.\n",null,"완료","김소원"]
["TEST_07_018","상품권 등록 및 사용 확인","쇼핑몰",1,"GNB > 마이페이지 메뉴 선택",null,"성공"]
[null,null,"쇼핑몰",2,"마이페이지 > 상품권 메뉴 선택",null,"성공"]
[null,null,"쇼핑몰",3,"상품권 등록 영역에서 첫번째 상품권 번호 입력(#상품권 번호 세팅필요)",null,"성공"]
[null,null,"쇼핑몰",4,"등록 버튼 선택",null,"성공"]
[null,null,"쇼핑몰",5,"Alert 확인",null,"성공"]
[null,null,"쇼핑몰",6,"상품권 등록 영역에서 두번째 상품권 번호 입력(#상품권 번호 세팅필요)",null,"성공"]
[null,null,"쇼핑몰",7,"등록 버튼 선택",null,"성공"]
[null,null,"쇼핑몰",8,"Alert 확인",null,"성공"]
[null,null,"쇼핑몰",9,"상품권 페이지에서 보유상품권 탭 선택",null,"성공"]
[null,null,"쇼핑몰",10,"등록된 2개 상품권 리스트 확인",null,"성공"]
[null,null,"쇼핑몰",11,"등록된 2개 상품권 정보 확인(상품권명, 상품권 등록 시 금액(충전금액), 현재 잔액, 상품권 일련번호, 상품권 유효기간)",null,"성공"]
[null,null,"쇼핑몰",12,"상품(#) 주문 시 상품권 2천원 사용하여 주문/결제 진행",null,"성공"]
[null,null,"쇼핑몰",13,"GNB > 마이페이지 메뉴 선택",null,"성공"]
[null,null,"쇼핑몰",14,"마이페이지 > 상품권 메뉴 선택",null,"성공"]
[null,null,"쇼핑몰",15,"사용내역 페이지에서 사용내역 확인(사용처, 사용금액, 사용일시)",null,"성공"]
[null,null,"쇼핑몰",16,"상품권 페이지에서 보유상품권 탭 선택",null,"성공"]
[null,null,"쇼핑몰",17,"등록된 2개 상품권 리스트 중 먼저 등록한 상품권에서 2천원이 차감되었는지 확인",null,"성공"]
["TEST_07_019","혜택 사용 후 정보 확인","쇼핑몰",1,"상픔(#) 주문 시, \n 보유한 포인트, 쿠폰, 상품권을 모두 사용하여 주문완료",null,"성공"]
[null,null,"쇼핑몰",2,"마이페이지 메뉴 선택",null,"성공"]
[null,null,"쇼핑몰",3,"각\n 쿠폰, 상품권, 포인트 메뉴 진입하여 사용내역 확인",null,"성공"]
[null,null,"쇼핑몰",4,"각\n 쿠폰, 상품권, 포인트 메뉴 진입하여 사용내역 확인",null,"성공"]

{"sheet":"1차 통합테스트","index":5,"n_rows":363,"n_cols":17,"rows_kept":363,"cut":false,"hidden":false,"merged":[[0,13,0,14],[0,15,0,16],[0,12,1,12],[0,10,1,10],[344,1,362,1],[131,1,137,1],[109,1,122,1],[95,1,98,1],[76,1,80,1],[49,1,57,1],[0,11,1,11],[13,1,18,1],[0,1,1,1],[344,0,362,0],[325,1,343,1],[325,0,343,0],[0,9,1,9],[0,6,1,6],[0,5,1,5],[0,4,1,4],[0,3,1,3],[0,2,1,2],[235,1,257,1],[235,0,257,0],[221,1,234,1],[221,0,234,0],[308,1,324,1],[308,0,324,0],[283,1,307,1],[283,0,307,0],[258,1,282,1],[258,0,282,0],[180,1,188,1],[180,0,188,0],[205,1,220,1],[205,0,220,0],[189,1,204,1],[189,0,204,0],[131,0,137,0],[123,1,130,1],[123,0,130,0],[159,1,179,1],[159,0,179,0],[138,1,158,1],[138,0,158,0],[109,0,122,0],[99,0,102,0],[99,1,102,1],[103,1,108,1],[103,0,108,0],[95,0,98,0],[87,1,94,1],[87,0,94,0],[81,1,86,1],[81,0,86,0],[76,0,80,0],[70,1,75,1],[70,0,75,0],[58,1,69,1],[58,0,69,0],[49,0,57,0],[37,1,48,1],[37,0,48,0],[19,1,36,1],[19,0,36,0],[0,0,1,0],[13,0,18,0],[8,1,12,1],[8,0,12,0],[2,0,7,0],[2,1,7,1]]}
["TEST ID","케이스","시스템","세부순서","시나리오","테스터","테스트 결과","결함유형","결함 상태","결함 상세","처리내용","개선내용","확인 상태","처리 결과",null,"처리 확인"]
[{"$nulls":13},"처리자","처리일자","확인자","확인일자"]
["TEST_01_001","로그인/로그아웃","쇼핑몰",1,"GNB 내 로그인 버튼 선택",null,"성공"]
[null,null,"쇼핑몰",2,"잘못된 비밀번호 3회 입력 후 로그인",null,"성공"]
[null,null,"쇼핑몰",3,"잘못된 비밀번호 5회 입력 후 로그인",null,"성공"]
[null,null,"쇼핑몰",4,"잘못된 비밀번호 10회 입력 후 로그인",null,"성공"]
[null,null,"쇼핑몰",5,"3분후, 정상 아이디/비밀번호로 로그인",null,"성공"]
[null,null,"쇼핑몰",6,"GNB 내 로그아웃 버튼 선택",null,"성공"]
["TEST_01_003","네이버 로그인","쇼핑몰",1,"GNB 내 로그인 버튼 선택",null,"보류",{"$nulls":5},"완료",null,null,"4차 테스터","7월 21일"]
[null,null,"쇼핑몰",2,"소셜 로그인 항목 중 네이버 아이콘 선택",null,"보류",{"$nulls":5},"완료",null,null,"4차 테스터","7월 21일"]
[null,null,"쇼핑몰",3,"동의 확인 정보 확인",null,"보류",{"$nulls":5},"완료",null,null,"4차 테스터","7월 21일"]
[null,null,"쇼핑몰",4,"정보 동의 확인 버튼 선택",null,"보류",{"$nulls":5},"완료",null,null,"4차 테스터","7월 21일"]
[null,null,"쇼핑몰",5,"로그인 상태 확인",null,"보류",{"$nulls":5},"완료",null,null,"4차 테스터","7월 21일"]
["TEST_01_004","예스24 로그인","쇼핑몰",1,"GNB 내 로그인 버튼 선택",null,"보류",{"$nulls":5},"완료",null,null,"4차 테스터","7월 23일"]
[null,null,"쇼핑몰",2,"소셜 로그인 항목 중 예스24 아이콘 선택",null,"보류",{"$nulls":5},"완료",null,null,"4차 테스터","7월 23일"]
[null,null,"쇼핑몰",3,"동의 확인 정보 확인",null,"보류",{"$nulls":5},"완료",null,null,"4차 테스터","7월 23일"]
[null,null,"쇼핑몰",4,"정보 동의 확인",null,"보류",{"$nulls":5},"완료",null,null,"4차 테스터","7월 23일"]
[null,null,"쇼핑몰",5,"예스24 로그인 정보 입력 후 로그인",null,"보류",{"$nulls":5},"완료",null,null,"4차 테스터","7월 23일"]
[null,null,"쇼핑몰",6,"로그인 상태 확인",null,"보류",{"$nulls":5},"완료",null,null,"4차 테스터","7월 23일"]
["TEST_01_005","회원정보 수정","쇼핑몰",1,"GNB 내 로그인 버튼 선택",null,"성공"]
[null,null,"쇼핑몰",2,"ID, PW 입력 후, 로그인 선택",null,"성공"]
[null,null,"쇼핑몰",3,"마이페이지 선택",null,"성공"]
[null,null,"쇼핑몰",4,"내 정보 관리 선택",null,"성공"]
[null,null,"쇼핑몰",5,"비밀번호 입력",null,"성공"]
[null,null,"쇼핑몰",6,"비밀번호변경하기 버튼 선택",null,"성공"]
[null,null,"쇼핑몰",7,"신규 비밀번호 입력",null,"성공"]
[null,null,"쇼핑몰",8,"비밀번호 정보 수정",null,"성공"]
[null,null,"쇼핑몰",9,"환불계좌 은행 목록 선택",null,"성공"]
[null,null,"쇼핑몰",10,"개인 은행 계좌 선택",null,"성공"]
[null,null,"쇼핑몰",11,"계좌번호 입력",null,"성공"]
[null,null,"쇼핑몰",12,"계좌인증 선택",null,"성공"]
[null,null,"쇼핑몰",13,"확인 버튼 선택",null,"성공"]
[null,null,"쇼핑몰",14,"확인 버튼 선택",null,"성공"]
[null,null,"쇼핑몰",15,"마이페이지 선택",null,"성공"]
[null,null,"쇼핑몰",16,"내 정보 관리 선택",null,"성공"]
[null,null,"쇼핑몰",17,"변경설정한 비밀번호 입력",null,"성공"]
[null,null,"쇼핑몰",18,"계좌번호 확인","정석현","실패","데이터","하","설정한 은행과 계좌번호 미노출\n (설정 이전과 동일한 화면 노출)","애저서버 셋팅 확인 필요\n개발서버에서는 계좌번호 확인이 되고 있음","as-is 회원 데이터 *표시되는 부분 대응 필요","보류"]
["TEST_01_007","회원 탈퇴 가능","쇼핑몰",1,"로그인 완료","석혜민","실패",null,null,"MMF1IZCA01상품결제시11일자테스트에선성공하였으나금일은실패했습니다\n현상은결제수단쪽이비활성화되어선택되지않았습니다\n11일과12일결제의차이점은11일자테스트시는쿠폰및사은품이없었어요\n금일테스트로타상품(ANW11QDM98)결제해보았을때는결제성공했습니다",null,null,"완료",null,null,"4차 테스터","7월 23일"]
[null,null,"쇼핑몰",2,"상품(MMF1IZCA01) 구매 완료","전지혜","실패","프로그램","하","결제하기 버튼 눌렀을때 보유하신 상품쿠폰이 존재하지 않습니다 라는 알럿 호출 , 결제 불가","현재정상동작확인 했습니다.",null,"완료","전석훈","05.13"]
[null,null,"쇼핑몰",3,"마이페이지 선택","석혜민","실패","프로그램","하","MMF1IZCA01상품결제가되지않아취소테스트불가",null,null,"완료"]
[null,null,"쇼핑몰",4,"구매한 상품(MMF1IZCA01) 주문 취소 버튼 선택",null,"보류",{"$nulls":5},"완료",null,null,"4차 테스터","7월 23일"]
[null,null,"쇼핑몰",5,"확인 버튼 선택",null,"성공"]
[null,null,"쇼핑몰",6,"회원 탈퇴 선택",null,"성공"]
[null,null,"쇼핑몰",7,"진행중 주문 정보 확인",null,"성공"]
[null,null,"쇼핑몰",8,"비밀번호 입력",null,"성공"]
[null,null,"쇼핑몰",9,"회원탈퇴 버튼 선택",null,"성공"]
[null,null,"쇼핑몰",10,"확인 버튼 선택",null,"성공"]
[null,null,"쇼핑몰",11,"GNB 내 로그인 버튼 선택",null,"성공"]
[null,null,"쇼핑몰",12,"ID, PW 입력 후, 로그인 선택",null,"성공"]
["TEST_02_003","포인트 지급/확인","BOS",1,"회원/마케팅 메뉴 선택",null,"성공"]
[null,null,"BOS",2,"활동회원목록 선택",null,"성공"]
[null,null,"BOS",3,"회원 아이디 입력 및 조회일자 설정 후 조회",null,"성공"]
[null,null,"BOS",4,"이름 선택",null,"성공"]
[null,null,"BOS",5,"포인트 내역 탭 선택",null,"성공"]
[null,null,"BOS",6,"하단 포인트 부여 버튼 선택",null,"성공"]
[null,null,"BOS",7,"변경사유(기타), 중감구분(증가), 만료일자, 포인트, 사유 설정 후 '포인트부여' 버튼 선택",null,"성공"]
[null,null,"쇼핑몰",8,"로그인 후, 마이페이지 > 스타일포인트 메뉴 선택",null,"성공"]
[null,null,"쇼핑몰",9,"전체 내역 및 적립내역에서 부여받은 포인트 확인",null,"성공"]
["TEST_03_001","자사 상품 등록","SCM",1,"상품 메뉴 선택",null,"성공"]
[null,null,"SCM",2,"엑셀상품 등록 버튼 선택",null,"성공"]
[null,null,"SCM",3,"작성한 다향 상품 등록 엑셀 파일 선택 및 확인",null,"성공"]
[null,null,"SCM",4,"등록 버튼 선택","전지혜","실패","프로그램","하","WMS 미존재 품번코드 오류로 등록 불가","WMS 미존재 상품은 등록 불가가 정상임",null,"완료","김은실","07.28"]
[null,null,"BOS",5,"상단 대메뉴에서 상품 선택",null,"성공"]
[null,null,"BOS",6,"상품관리 선택",null,"성공"]
[null,null,"BOS",7,"상품(#)명 입력 및 최근한달 기준으로 조회",null,"성공"]
[null,null,"BOS",8,"상품명 선택",null,"성공"]
[null,null,"BOS",9,"상품 상태 승인으로 선택",null,"성공"]
[null,null,"BOS",10,"저장 버튼 선택",null,"성공"]
[null,null,"쇼핑몰",11,"GNB에서 ( ) > ( ()> 로 카테고리 선택",null,"보류",{"$nulls":5},"완료",null,null,"4차 테스터","7월 23일"]
[null,null,"쇼핑몰",12,"상품(#) 확인",null,"보류",{"$nulls":5},"완료",null,null,"4차 테스터","7월 23일"]
["TEST_03_002","상품 조회","BOS",1,"상단 대메뉴에서 상품 선택",null,"성공"]
[null,null,"BOS",2,"상품관리 > 상품목록 선택",null,"성공"]
[null,null,"BOS",3,"브랜드 조회 버튼 선택","정지혜","실패","프로그램","하","브랜드 조회안됨 : 브랜드명 / TBJ","조회 항목에 ' TBJ' 일경우 조회 안되는거 처리함",null,"완료","김은실",5.13]
[null,null,"BOS",4,"브랜드명(#) 입력 후 조회","정지혜","실패","프로그램","하","브랜드 조회안됨 : 브랜드명 / TBJ","조회 항목에 ' TBJ' 일경우 조회 안되는거 처리함",null,"완료","김은실",5.13]
[null,null,"BOS",5,"결과 브랜드 선택 후, 확인 버튼 선택","정지혜","실패","프로그램","하","브랜드 조회안됨 : 브랜드명 / TBJ","조회 항목에 ' TBJ' 일경우 조회 안되는거 처리함",null,"완료","김은실",5.13]
[null,null,"BOS",6,"상품상태(#), 발생일(최근3개월) 선택 후 조회","정지혜","실패","프로그램","하","조회 실패 ","조회 항목에 ' TBJ' 일경우 조회 안되는거 처리함",null,"완료","김은실",5.13]
["TEST_03_005","상품 엑셀 다운","BOS",1,"상단 대메뉴에서 상품 선택",null,"성공"]
[null,null,"BOS",2,"상품관리 > 상품목록 선택",null,"성공"]
[null,null,"BOS",3,"검색할 상품의 업체 또는 브랜드, 상품코드로 상품 조회",null,"성공"]
[null,null,"BOS",4,"엑셀다운로드 선택","박중재\n전지혜","실패","데이터","하","NBA 상품조회후 다운로드 했으나 전상품 다운로드 됨 \n \n 1> 엑셀다운로드 : 조회한 상품에 관계없이 모든 상품이 엑셀로 다운로드됨\n 2> 엑셀다운로드(이미지포함) : 에러남","수정완료\n이미지포함 다운로드는 확인중",null,"완료","김은실","07.28"]
[null,null,"BOS",5,"다운받은 엑셀 내용 확인","박중재\n석혜민\n전지혜","실패","데이터","하","상품 조회내용과 다운로드된 파일 내용이 일치하지 않음\n (조회되는 모든내용이 다운됨)\n \n 1> 엑셀다운로드 : 조회한 상품에 관계없이 모든 상품이 엑셀로 다운로드됨\n 2> 엑셀다운로드(이미지포함) : 에러남","수정완료\n이미지포함 다운로드는 확인중",null,"완료","김은실","07.28"]
["TEST_03_006","상품정보 일괄수정","BOS",1,"상단 대메뉴에서 상품 선택",null,"성공"]
[null,null,"BOS",2,"상품관리 > 상품목록 선택",null,"성공"]
[null,null,"BOS",3,"검색할 상품의 업체 또는 브랜드, 상품코드로 상품 조회",null,"성공"]
[null,null,"BOS",4,"변경할 상품 선택 후, 하단 '상태일괄적용' 버튼 선택",null,"성공"]
[null,null,"BOS",5,"변경할 항목 설정값 입력 후 '적용' 버튼 선택",null,"성공"]
[null,null,"쇼핑몰",6,"상품(#) 확인",null,"보류",null,null,"검색기능 미개발로 확인불가",null,null,"완료",null,null,"4차 테스터","7월 23일"]
["TEST_03_007","상품 정보 수정","BOS",1,"상단 대메뉴에서 상품 선택",null,"성공"]
[null,null,"BOS",2,"상품관리 > 상품목록 선택",null,"성공"]
[null,null,"BOS",3,"상품(L193KC201P)명 입력 및 최근한달 기준으로 조회","석혜민","실패","데이터","하","최근한달이 아닌 지난달 기준으로 조회시 노출\n \n 상품 노출되지 않음","운영서버가 아니고 테스트 서버라 상품정보가 없음",null,"완료","김은실",5.13]
[null,null,"BOS",4,"상품(L193KC201P) 선택",null,"성공"]
[null,null,"BOS",5,"판매가격 456,000원 입력",null,"성공"]
[null,null,"BOS",6,"저장 버튼 선택",null,"성공"]
[null,null,"쇼핑몰",7,"GNB에서 ( ) > ( ()> 로 카테고리 선택",null,"성공"]
[null,null,"쇼핑몰",8,"상품(#) 확인",null,"성공"]
["TEST_03_008","품목 조회","BOS",1,"상단 대메뉴에서 상품 선택",null,"성공"]
[null,null,"BOS",2,"상품관리 > 상품품목관리 선택",null,"성공"]
[null,null,"BOS",3,"조회할 상품 조건설정하여 조회",null,"성공"]
[null,null,"BOS",4,"변경할 상품 선택 후, 변경할 품목코드 입력란에 입력 및 선택 상품 품목코드 변경 버튼 선택","박중재","실패","데이터","하","1> 선택상품 품목코드 변경 눌러도 진행안됨","정상작동 확인",null,"완료","김은실","07.28"]
["TEST_03_009","고시 정보 조회","BOS",1,"상단 대메뉴에서 상품 선택",null,"성공"]
[null,null,"BOS",2,"상품관리 > 상품고시정보조회 선택",null,"성공"]
[null,null,"BOS",3,"고시분류 및 상품코드 입력 후 조회",null,"성공"]
[null,null,"BOS",4,"등록된 고시정보 확인",null,"성공"]
["TEST_03_010","상세공지 등록","BOS",1,"상단 대메뉴에서 상품 선택",null,"성공"]
[null,null,"BOS",2,"상품관리 > 상품상세공지 관리 선택",null,"성공"]
[null,null,"BOS",3,"하단 공지내용 작성 및 상품조회 버튼 선택",null,"성공"]
[null,null,"BOS",4,"설정할 상품 조회",null,"성공"]
[null,null,"BOS",5,"조회 상품 선택 적용 후, 닫기 버튼 선택",null,"성공"]
[null,null,"BOS",6,"결과 목록에서 설정한 공지내용 반영할 항목 선택 후 저장 버튼 선택",null,"성공"]
["TEST_03_012","예약 판매 등록","BOS",1,"상단메뉴에서 상품 선택",null,"성공"]
[null,null,"BOS",2,"재고관리_사이즈별재고현황 선택",null,"성공"]
[null,null,"BOS",3,"상품(#) 코드 조회",null,"성공"]
[null,null,"BOS",4,"상품코드 선택",null,"성공"]
[null,null,"BOS",5,"옵션/재고정보 탭 선택",null,"성공"]
[null,null,"BOS",6,"안전재고 (#) 설정",null,"성공"]
[null,null,"BOS",7,"저장 버튼 선택",null,"성공"]
[null,null,"BOS",8,"상품관리_상품가격예약관리 선택",null,"성공"]
[null,null,"BOS",9,"예약판매등록 버튼 선택",null,"성공"]
[null,null,"BOS",10,"상품조회 버튼 선택",null,"성공"]
[null,null,"BOS",11,"상품(#) 코드 조회",null,"성공"]
[null,null,"BOS",12,"해당 상품(#) 선택",null,"성공"]
[null,null,"BOS",13,"상품 선택 후, 출고예정일 설정",null,"성공"]
[null,null,"BOS",14,"저장버튼 선택",null,"성공"]
["TEST_05_001","FAQ 등록/확인","BOS",1,"상단 대메뉴에서 게시판 선택",null,"성공"]
[null,null,"BOS",2,"FAQ 메뉴 선택",null,"성공"]
[null,null,"BOS",3,"등록버튼 선택",null,"성공"]
[null,null,"BOS",4,"순서, 여부, 질문, 답변 내용 설정",null,"성공"]
[null,null,"BOS",5,"순서(1~10) 중 선택\n  > 해당 항목은 자주 묻는 질문 노출되는 항목 설정",null,"성공"]
[null,null,"BOS",6,"저장 선택",null,"성공"]
[null,null,"쇼핑몰",7,"페이지 하단 고객센터 선택",null,"성공"]
[null,null,"쇼핑몰",8,"유형별 항목 선택","정지혜","실패","프로그램","하","스크립트 등록시, 다른 FAQ 목록 전부 제거됨,스크립트 치환이 정상적으로 되지않고 동작되어 타 리스트 안나옴",null,null,"완료","김소원",6.1]
["TEST_05_002","공지사항 등록/확인","BOS",1,"상단 대메뉴에서 게시판 선택",null,"성공"]
[null,null,"BOS",2,"공지사항 > 사이트공지 메뉴 선택",null,"성공"]
[null,null,"BOS",3,"하단 등록 영역에\n 기간, 사이트, 제목, 내용 입력",null,"성공"]
[null,null,"BOS",4,"긴급으로 등록할 항목은\n 긴급 설정",null,"성공"]
[null,null,"BOS",5,"저장 선택","정지혜","실패","프로그램","하","스크립트 등록 시 오류로 인해 처리가 되지 않았습니다. Alert 이 노출됨\n Bos 목록에서 스크립트 그대로 실행됨",null,null,"완료","김소원",6.21]
[null,null,"쇼핑몰",6,"페이지 하단 고객센터 선택",null,"성공"]
[null,null,"쇼핑몰",7,"공지 메뉴 선택","정지혜","실패","프로그램","하","스크립트 등록시 페이지 500에러발생됨",null,null,"완료","김소원",6.21]
["TEST_02_001","1:1 문의 등록/답변","쇼핑몰",1,"로그인 페이지에서 정상 로그인 하기",null,"성공"]
[null,null,"쇼핑몰",2,"고객센터 선택",null,"성공"]
[null,null,"쇼핑몰",3,"1:1문의 메뉴 선택",null,"성공"]
[null,null,"쇼핑몰",4,"1:1문의하기 버튼 선택",null,"성공"]
[null,null,"쇼핑몰",5,"문의 유형 상품으로 선택","윤지영\n전지혜\n정석현\n정지혜","실패","데이터","하","문의 유형 sorting에 상품이 없음","상품 항목 추가함",null,"완료","조현민","5.12","조현민","5.12"]
[null,null,"쇼핑몰",6,"문의 제목(#) 입력",null,"성공"]
[null,null,"쇼핑몰",7,"문의 내용(#) 500자 이상 입력",null,"성공"]
[null,null,"쇼핑몰",8,"문의내용 20자 내외로 다시입력","전지혜\n정지혜","실패","프로그램","하","1자만 입력해도등록됨, 글자수제한확인\n <script type=\"text/javascriptext\">\n alert('test');\n </script> 스크립트 등록되고, 관련 해서 치환처리 안됨",null,null,"완료","김소원",6.1]
[null,null,"쇼핑몰",9,"답변등록 수신여부 설정",null,"성공"]
[null,null,"쇼핑몰",10,"등록 버튼 선택","전지혜","실패","프로그램","하","1> 첨부 이미지 파일명에 한글파일명은 불가합니다 안내 있음 > 한글파일 등록해도 등록이됨\n 2> 프론트에서 첨부 이미지가 모두 같은 이미지가 보여지고 있음 (문의번호 160번, 162번)","1. 안내 삭제\n2. 수정완료",null,"완료","김소원",6.21]
[null,null,"쇼핑몰",11,"스타일24 BI 선택",null,"성공"]
[null,null,"BOS",12,"상단 대메뉴에서 회원마케팅 선택",null,"성공"]
[null,null,"BOS",13,"상담관리의 1:1문의관리 메뉴 선택",null,"성공"]
[null,null,"BOS",14,"검색할 회원 아이디랑 최근한달 설정 후 검색 버튼 선택",null,"성공"]
[null,null,"BOS",15,"등록했던 문의의 일련번호 선택",null,"성공"]
[null,null,"BOS",16,"답변 내용 작성",null,"성공"]
[null,null,"BOS",17,"저장 버튼 선택",null,"성공"]
[null,null,"알림톡",18,"알림톡 수신",null,"보류",null,null,"알림톡 현재 테스트 불가",null,null,"완료",null,null,"조현민","7.12"]
[null,null,"쇼핑몰",19,"고객센터 선택",null,"성공"]
[null,null,"쇼핑몰",20,"1:1문의 메뉴 선택",null,"성공"]
[null,null,"쇼핑몰",21,"답변 등록된 문의 선택",null,"성공"]
["TEST_02_002","상품 문의 등록/답변","쇼핑몰",1,"로그인 페이지에서 정상 로그인 하기",null,"성공"]
[null,null,"쇼핑몰",2,"상품(MMF1IZCA01) 선택",null,"보류",{"$nulls":5},"완료"]
[null,null,"쇼핑몰",3,"문의 선택","전지혜","실패","데이터","하","(IE)\n 상세정보 더보기 클릭 시 반응없음 / 문의 선택 시 하기 캡쳐이미지처럼 보이고 문의 작성 불가",null,null,"완료"]
[null,null,"쇼핑몰",4,"문의 등록 선택",null,"성공"]
[null,null,"쇼핑몰",5,"문의 내용(#) 500자 이상 입력",null,"성공"]
[null,null,"쇼핑몰",6,"문의내용 20자 내외로 다시입력","정지혜","실패","프로그램","하","1자만 입력해도등록됨, 글자수제한확인\n <script type=\"text/javascriptext\">\n alert('test');\n </script> 스크립트 그대로 실행됨",null,null,"완료","김소원",6.1]
[null,null,"쇼핑몰",7,"이미지 삽입 버튼 선택",null,"성공",null,null,null,"시나리오상 잘못된 항목으로 결함여부 상관없는 항목"]
[null,null,"쇼핑몰",8,"이미지(#) 선택 등록",null,"성공",null,null,null,"시나리오상 잘못된 항목으로 결함여부 상관없는 항목"]
[null,null,"쇼핑몰",9,"답변등록 수신여부 설정",null,"성공"]
[null,null,"쇼핑몰",10,"등록버튼 선택","정지혜","실패","프로그램","하","상품상세 > 문의 > 문의숫자 카운트가 올라가지 않음 (0 으로 표시됨)\n http://ts5000.ipdisk.co.kr/goods/detail/form?goodsCd=L193KC201P&colorCd=&ithrCd=&contentsLoc=SMM004\n \n 1. 스크립트 등록되면서 고객센터 > 상품문의 영역의 답변 타이틀 부분 깨짐","상품상세의 상품평및 문의건수는  일배치수  처리후 적용됨",null,"완료","김은실",5.13]
[null,null,"쇼핑몰",11,"스타일24 BI 선택",null,"성공"]
[null,null,"BOS",12,"상단 대메뉴에서 회원마케팅 선택",null,"성공"]
[null,null,"BOS",13,"상담관리의 상품문의 메뉴 선택",null,"성공"]
[null,null,"BOS",14,"상품(MMF1IZCA01) 코드 입력 및 최근 1주일 조건으로 검색",null,"성공"]
[null,null,"BOS",15,"등록했던 문의의 일련번호 선택",null,"성공"]
[null,null,"BOS",16,"답변 내용 작성",null,"성공"]
[null,null,"BOS",17,"저장 버튼 선택","정지혜","실패","프로그램","하","스크립트 치환여부 확인 바람",null,null,"완료","김은실",5.17]
[null,null,"알림톡",18,"알림톡 수신",null,"보류",null,null,"알림톡 현재 테스트 불가",null,null,"완료"]
[null,null,"쇼핑몰",19,"고객센터 선택",null,"성공"]
[null,null,"쇼핑몰",20,"상품문의 메뉴 선택",null,"성공"]
[null,null,"쇼핑몰",21,"답변 등록된 문의 선택","정지혜","실패","프로그램","하","스크립트 등록시\n 2. 문의 한 내용 다 안나오고 답변 완료된 목록만 나옴(스크립트 등록되면서 오류발생하는것으로 확인)\n 3. 고객센터 내 상품문의 목록, 내용이 길어질 경우에 상품 제목목록 깨짐",null,null,"완료","김소원",6.1]
["TEST_02_005","휴면 해제","BOS",1,"회원(#) 휴면상태 설정\n - 개발자에게 요청",null,"성공"]
[null,null,"BOS",2,"상단 대메뉴에서 회원마케팅 선택",null,"성공"]
[null,null,"BOS",3,"회원관리의 휴면회원 메뉴 선택",null,"성공"]
[null,null,"BOS",4,"회원 ID(#)입력하고 최근 한달 조건으로 검색",null,"성공"]
[null,null,"BOS",5,"회원 선택",null,"성공"]
[null,null,"BOS",6,"휴면상태 해제 설정",null,"성공"]
[null,null,"BOS",7,"저장 버튼 선택",null,"성공"]
[null,null,"쇼핑몰",8,"GNB 내 로그인 버튼 선택",null,"성공"]
[null,null,"쇼핑몰",9,"해제된 계정(#)으로 정상 로그인",null,"성공"]
["TEST_03_003","세트상품 설정","BOS",1,"상단 대메뉴에서 상품 선택",null,"성공"]
[null,null,"BOS",2,"상품관리 > 상품목록 선택",null,"성공"]
[null,null,"BOS",3,"세트상품구성 선택",null,"성공"]
[null,null,"BOS",4,"세트상품명, 성별, 제조년월일, 년도시즌, 원산지 설정",null,"성공"]
[null,null,"BOS",5,"구성상품추가 버튼 선택",null,"성공"]
[null,null,"BOS",6,"구성할 상품의 업체 또는 브랜드, 상품코드로 상품 조회",null,"성공"]
[null,null,"BOS",7,"결과 목록에서 상품 선택 및 적용 버튼 선택 후 팝업 닫기 버튼 선택",null,"성공"]
[null,null,"BOS",8,"목록에서 메인으로 노출될 상품 기준여부 항목 선택하여 'Yes'로 설정 후 저장버튼 선택",null,"성공"]
[null,null,"BOS",9,"상품타입(세트상품), 발생일(오늘) 설정 후 조회","정지혜","실패","프로그램","하","등록오류 발생\n No message found under code '구성상품 중 기준 상품의 브랜드를 확인해 주세요.' for locale 'ko_KR'.","구성상품은 같은 업체 상품만  가능",null,"완료","김은실",5.13]
[null,null,"BOS",10,"등록했던 세트 상품명 선택",null,"성공"]
[null,null,"BOS",11,"각 항목 설정",null,"성공"]
[null,null,"BOS",12,"옵션/재고정보 탭 이동하여 이미지 등록 버튼 선택",null,"성공"]
[null,null,"BOS",13,"설정할 대표 이미지 등록 후, 업로드 버튼 선택",null,"성공"]
[null,null,"BOS",14,"상품상세정보 탭 이동하여 내용 등록","전지혜","실패","프로그램","하","저장버튼 누르면 데이터 처리중 에러가 발생하였습니다. 시스템 관리자에게 문의하세요. 오류 알럿 뜸",null,null,"완료","김은실","07.28"]
[null,null,"BOS",15,"저장 버튼 선택","전지혜","실패","프로그램","하","저장버튼 클릭시 데이터처리중 에러가 발생했습니다 알럿 나옴",null,null,"완료","김은실","07.28"]
[null,null,"쇼핑몰",16,"상품(#) 확인",null,"실패","프로그램","하","세트상품 등록불가로 테스트불가",null,null,"완료","김은실","07.28"]
["TEST_03_004","딜상품 설정","BOS",1,"상단 대메뉴에서 상품 선택",null,"성공"]
[null,null,"BOS",2,"상품관리 > 상품목록 선택",null,"성공"]
[null,null,"BOS",3,"딜상품구성 선택",null,"성공"]
[null,null,"BOS",4,"딜상품명, 성별, 제조년월일, 년도시즌, 원산지 설정",null,"성공"]
[null,null,"BOS",5,"구성상품추가 버튼 선택",null,"성공"]
[null,null,"BOS",6,"구성할 상품의 업체 또는 브랜드, 상품코드로 상품 조회",null,"성공"]
[null,null,"BOS",7,"결과 목록에서 상품 선택 및 적용 버튼 선택 후 팝업 닫기 버튼 선택",null,"성공"]
[null,null,"BOS",8,"목록에서 메인으로 노출될 상품 기준여부 항목 선택하여 'Yes' 및 대표여부(가격) 'Yes' 설정 후 저장버튼 선택",null,"성공"]
[null,null,"BOS",9,"상품타입(딜상품), 발생일(오늘) 설정 후 조회",null,"성공"]
[null,null,"BOS",10,"등록했던 딜상품명 선택",null,"성공"]
[null,null,"BOS",11,"각 항목 설정",null,"성공"]
[null,null,"BOS",12,"옵션/재고정보 탭 이동하여 이미지 등록 버튼 선택",null,"성공"]
[null,null,"BOS",13,"설정할 대표 이미지 등록 후, 업로드 버튼 선택","석혜민","실패","프로그램","하","하기와같은 오류메시지 발생함\n  [데이터 처리중 에러가 발생하였습니다. \n  시스템 관리자에게 문의하세요]",null,null,"완료","김은실","07.28"]
[null,null,"BOS",14,"상품상세정보 탭 이동하여 내용 등록","전지혜","실패","프로그램","하","딜상품 등록불가로 테스트불가",null,null,"완료","김은실","07.28"]
[null,null,"BOS",15,"저장 버튼 선택","전지혜","실패","프로그램","하","딜상품 등록불가로 테스트불가",null,null,"완료","김은실","07.28"]
[null,null,"쇼핑몰",16,"상품(#) 확인",null,"성공"]
["TEST_03_013","즉시할인 쿠폰 생성/발급","BOS",1,"상단 메뉴에서 회원/마케팅 선택",null,"성공"]
[null,null,"BOS",2,"마케팅_쿠폰관리 선택",null,"성공"]
[null,null,"BOS",3,"등록' 버튼 선택",null,"성공"]
[null,null,"BOS",4,"쿠폰 유형 즉시할인쿠폰 선택",null,"성공"]
[null,null,"BOS",5,"쿠폰명 입력, 만료알림여부 설정, 할인방식 설정, 할인값 또는 할인율 입력, '동일적용' 버튼 선택, 유효기간일시 설정","정지혜","실패","프로그램","하","1.할인율 설정시 원으로 표시됨\n 2.정율일시 최대할인금액 0원으로 지정됨\n 3. 즉시할인 정율이 최대할인금액이 지정되면 오류날수 있음\n 쿠폰번호 : 5375043",null,null,"완료","최수빈","07.28"]
[null,null,"BOS",6,"적용대상' 탭 선택",null,"성공"]
[null,null,"BOS",7,"하단 '상품추가' 버튼 선택",null,"성공"]
[null,null,"BOS",8,"다수의 상품 조회 및 선택 적용",null,"성공"]
[null,null,"BOS",9,"기본정보' 탭 선택",null,"성공"]
[null,null,"BOS",10,"팝업 하단 '등록' 버튼 선택",null,"성공"]
[null,null,"BOS",11,"등록한 쿠폰명 선택",null,"성공"]
[null,null,"BOS",12,"쿠폰 수정 팝업 하단 '진행' 버튼 선택",null,"성공"]
[null,null,"쇼핑몰",13,"사이트 내에서 쿠펀 적용했던 상품 상세 페이지 진입\n \n http://ts5000.ipdisk.co.kr/goods/detail/form?goodsCd=쿠폰발급했던상품코드\n \n 으로 상세 바로 진입 가능","정지혜","실패","프로그램","하","4. 카테고리/공급처 등이 중복되었을 때 and 조건이 적용되지 않음\n 검증상품 : 10775909\n 쿠폰번호 : 5375044","적용쿠폰은 카테고리, 공급처 OR 조건으로 적용됩니다.",null,"완료","전석훈","05.13"]
[null,null,"쇼핑몰",14,"가격 확인","석혜민","실패","데이터","하","즉시할인된 가격으로 노출되지 않음","수정완료",null,"완료","전석훈","05.13"]
["TEST_03_015","장바구니(일반) 쿠폰 생성/발급","BOS",1,"상단 메뉴에서 회원/마케팅 선택",null,"성공"]
[null,null,"BOS",2,"마케팅_쿠폰관리 선택",null,"성공"]
[null,null,"BOS",3,"등록' 버튼 선택",null,"성공"]
[null,null,"BOS",4,"쿠폰 유형 주문서쿠폰 선택",null,"성공"]
[null,null,"BOS",5,"쿠폰명 입력, 만료알림여부 설정, 할인쿠폰유형(일반쿠폰) 설정, 할인방식 설정, 할인값 또는 할인율 입력, '동일적용' 버튼 선택, 다운로드 시작~종료일 설정, 유효기간/일수 구분 설정, 유효기간 일자 설정, 첫구매여부(N), 신규회원여부(N), 총발행제한수량 설정, 1인당발행제한수량 설정, 1회발행수량 설정, 결제수단 설정(이니시스)","정지혜","실패","프로그램","하","* 적용범위 전체 / 개별 항목 동작안함","전체, 개별은 어떻게 동작 안하는지 설명 부탁드립니다.",null,"완료","최수빈","07.28"]
[null,null,"BOS",6,"적용대상' 탭 선택",null,"성공"]
[null,null,"BOS",7,"하단 '상품추가' 버튼 선택",null,"성공"]
[null,null,"BOS",8,"다수의 상품 조회 및 선택 적용",null,"성공"]
[null,null,"BOS",9,"입점업체분담율' 탭 선택",null,"성공"]
[null,null,"BOS",10,"업체추가' 버튼 선택","정지혜","실패","프로그램","하","분담율 입력 시 \n \"할인율은 100이하로 설정해주세요\" 라고 alert 노출됨",null,null,"완료","최수빈","07.28"]
[null,null,"BOS",11,"업체코드 또는 업체명으로 검색",null,"성공"]
[null,null,"BOS",12,"목록 선택 및 '확인' 버튼 선택","정지혜","실패","프로그램","하","분담율 입력 시 \n \"할인율은 100이하로 설정해주세요\" 라고 alert 노출됨",null,null,"완료","최수빈","07.28"]
[null,null,"BOS",13,"팝업 하단 '등록' 버튼 선택",null,"성공"]
[null,null,"BOS",14,"등록한 쿠폰명 선택",null,"성공"]
[null,null,"BOS",15,"쿠폰 수정 팝업 하단 '진행' 버튼 선택",null,"성공"]
[null,null,"쇼핑몰",16,"사이트 내에서 쿠펀 적용했던 상품 상세 페이지 진입\n \n http://ts5000.ipdisk.co.kr/goods/detail/form?goodsCd=쿠폰발급했던상품코드\n \n 으로 상세 바로 진입 가능",null,"성공"]
[null,null,"쇼핑몰",17,"옵션 설정 후, 바로구매 선택",null,"성공"]
[null,null,"쇼핑몰",18,"회원 선택",null,"성공"]
[null,null,"쇼핑몰",19,"ID, PW 입력후 로그인",null,"성공"]
[null,null,"쇼핑몰",20,"할인혜택 항목 선택","석혜민","실패","데이터","하","등록 가능 쿠폰목록에 장바구니 쿠폰 확인불가","결함내용문의합니다. 어떤내 용인지 자세한 설명부탁드립니다.",null,"완료","전석훈","05.13","4차 테스터","7월 23일"]
[null,null,"쇼핑몰",21,"쿠폰 선택 버튼 선택","석혜민","실패","데이터","하","등록 가능 쿠폰목록에 장바구니 쿠폰 확인불가","결함내용문의합니다. 어떤내 용인지 자세한 설명부탁드립니다.",null,"완료","전석훈","05.13","4차 테스터","7월 23일"]
[null,null,"쇼핑몰",22,"등록했던 주문서 쿠폰(#) 목록 확인","석혜민","실패","데이터","하","등록 가능 쿠폰목록에 장바구니 쿠폰 확인불가","결함내용문의합니다. 어떤내 용인지 자세한 설명부탁드립니다.",null,"완료","전석훈","05.13","4차 테스터","7월 23일"]
[null,null,"쇼핑몰",23,"다른 쿠폰 선택하여 '적용' 버튼 선택","석혜민","실패","데이터","하","등록 가능 쿠폰목록에 장바구니 쿠폰 확인불가","결함내용문의합니다. 어떤내 용인지 자세한 설명부탁드립니다.",null,"완료","전석훈","05.13","4차 테스터","7월 23일"]
["TEST_03_016","장바구니(시리얼) 쿠폰 생성/발급","BOS",1,"상단 메뉴에서 회원/마케팅 선택",null,"성공"]
[null,null,"BOS",2,"마케팅_쿠폰관리 선택",null,"성공"]
[null,null,"BOS",3,"등록' 버튼 선택",null,"성공"]
[null,null,"BOS",4,"쿠폰 유형 주문서쿠폰 선택",null,"성공"]
[null,null,"BOS",5,"쿠폰명 입력, 만료알림여부 설정, 할인쿠폰유형(시리얼쿠폰) 설정, 할인방식 설정, 할인값 또는 할인율 입력, '동일적용' 버튼 선택, 다운로드 시작~종료일 설정, 유효기간/일수 구분 설정, 유효기간 일자 설정, 첫구매여부(N), 신규회원여부(N), 총발행제한수량 설정, 1인당발행제한수량 설정, 1회발행수량 설정, 결제수단 설정(이니시스)",null,"성공"]
[null,null,"BOS",6,"시리얼쿠폰키워드 입력(#), 시리얼쿠폰발급수량 설정",null,"성공"]
[null,null,"BOS",7,"적용대상' 탭 선택",null,"성공"]
[null,null,"BOS",8,"하단 '상품추가' 버튼 선택",null,"성공"]
[null,null,"BOS",9,"다수의 상품 조회 및 선택 적용",null,"성공"]
[null,null,"BOS",10,"입점업체분담율' 탭 선택",null,"성공"]
[null,null,"BOS",11,"업체추가' 버튼 선택",null,"성공"]
[null,null,"BOS",12,"업체코드 또는 업체명으로 검색",null,"성공"]
[null,null,"BOS",13,"목록 선택 및 '확인' 버튼 선택",null,"성공"]
[null,null,"BOS",14,"팝업 하단 '등록' 버튼 선택",null,"성공"]
[null,null,"BOS",15,"등록한 쿠폰명 선택",null,"성공"]
[null,null,"BOS",16,"시리얼및난수 탭 선택",null,"성공"]
[null,null,"BOS",17,"생성한 시리얼 복사 및 쿠폰 수정 팝업 하단 '진행' 버튼 선택",null,"성공"]
[null,null,"BOS",18,"로그인 프로세스 진행",null,"성공"]
[null,null,"쇼핑몰",19,"사이트 내에서 쿠펀 적용했던 상품 상세 페이지 진입\n \n http://ts5000.ipdisk.co.kr/goods/detail/form?goodsCd=쿠폰발급했던상품코드\n \n 으로 상세 바로 진입 가능",null,"성공"]
[null,null,"쇼핑몰",20,"옵션 설정 후, 바로구매 선택",null,"성공"]
[null,null,"쇼핑몰",21,"회원 선택",null,"성공"]
[null,null,"쇼핑몰",22,"ID, PW 입력후 로그인",null,"성공"]
[null,null,"쇼핑몰",23,"할인혜택 항목 선택하여 할인코드 입력",null,"성공"]
[null,null,"쇼핑몰",24,"적용'버튼 선택","석혜민","실패","데이터","하","적용되었다고 얼럿만 노출되고 적용되지 않음","현재 정상동작 확인 했습니다.",null,"완료","전석훈","05.13"]
[null,null,"쇼핑몰",25,"쿠폰변경' 버튼 선택하여 등록했던 주문서 쿠폰(#) 목록 확인","석혜민","실패","데이터","하","적용되었다고 얼럿만 노출되고 적용되지 않음","현재 정상동작 확인 했습니다.",null,"완료","전석훈","05.13"]
["TEST_03_017","장바구니(랜덤) 쿠폰 생성/발급","BOS",1,"상단 메뉴에서 회원/마케팅 선택",null,"성공"]
[null,null,"BOS",2,"마케팅_쿠폰관리 선택",null,"성공"]
[null,null,"BOS",3,"등록' 버튼 선택",null,"성공"]
[null,null,"BOS",4,"쿠폰 유형 주문서쿠폰 선택",null,"성공"]
[null,null,"BOS",5,"쿠폰명 입력, 만료알림여부 설정, 할인쿠폰유형(랜덤쿠폰) 설정, 할인방식 설정, 할인값 또는 할인율 입력, '동일적용' 버튼 선택, 다운로드 시작~종료일 설정, 유효기간/일수 구분 설정, 유효기간 일자 설정, 첫구매여부(N), 신규회원여부(N), 총발행제한수량 설정, 1인당발행제한수량 설정, 1회발행수량 설정, 결제수단 설정(이니시스)",null,"성공"]
[null,null,"BOS",6,"난수생성수량 설정",null,"성공"]
[null,null,"BOS",7,"적용대상' 탭 선택",null,"성공"]
[null,null,"BOS",8,"하단 '상품추가' 버튼 선택",null,"성공"]
[null,null,"BOS",9,"다수의 상품 조회 및 선택 적용",null,"성공"]
[null,null,"BOS",10,"입점업체분담율' 탭 선택",null,"성공"]
[null,null,"BOS",11,"업체추가' 버튼 선택",null,"성공"]
[null,null,"BOS",12,"업체코드 또는 업체명으로 검색",null,"성공"]
[null,null,"BOS",13,"목록 선택 및 '확인' 버튼 선택",null,"성공"]
[null,null,"BOS",14,"팝업 하단 '등록' 버튼 선택",null,"성공"]
[null,null,"BOS",15,"등록한 쿠폰명 선택",null,"성공"]
[null,null,"BOS",16,"시리얼및난수 탭 선택",null,"성공"]
[null,null,"BOS",17,"생성한 시리얼 복사 및 쿠폰 수정 팝업 하단 '진행' 버튼 선택",null,"성공"]
[null,null,"BOS",18,"로그인 프로세스 진행",null,"성공"]
[null,null,"쇼핑몰",19,"사이트 내에서 쿠펀 적용했던 상품 상세 페이지 진입\n \n http://ts5000.ipdisk.co.kr/goods/detail/form?goodsCd=쿠폰발급했던상품코드\n \n 으로 상세 바로 진입 가능",null,"성공"]
[null,null,"쇼핑몰",20,"옵션 설정 후, 바로구매 선택",null,"성공"]
[null,null,"쇼핑몰",21,"회원 선택",null,"성공"]
[null,null,"쇼핑몰",22,"ID, PW 입력후 로그인",null,"성공"]
[null,null,"쇼핑몰",23,"할인혜택 항목 선택하여 할인코드 입력",null,"성공"]
[null,null,"쇼핑몰",24,"적용'버튼 선택","석혜민","실패","데이터","하","적용되었다고 얼럿만 노출되고 적용되지 않음","현재 정상동작 확인 했습니다.",null,"완료","전석훈","05.13"]
[null,null,"쇼핑몰",25,"쿠폰변경' 버튼 선택하여 등록했던 주문서 쿠폰(#) 목록 확인","석혜민","실패","데이터","하","적용되었다고 얼럿만 노출되고 적용되지 않음","현재 정상동작 확인 했습니다.",null,"완료","전석훈","05.13"]
["TEST_03_018","다다익선 프로모션 생성","BOS",1,"상단 메뉴에서 회원/마케팅 선택",null,"성공"]
[null,null,"BOS",2,"마케팅_다다익선관리 선택",null,"성공"]
[null,null,"BOS",3,"다다익선 등록 버튼 선택",null,"성공"]
[null,null,"BOS",4,"기본정보 설정프로모션명 입력, 시작일, 종료일, 할인구간(수량 또는 금액), 할인구분(금액 또는 율) 설정",null,"성공"]
[null,null,"BOS",5,"할인구간 행추가",null,"성공"]
[null,null,"BOS",6,"할인구간 설정",null,"성공"]
[null,null,"BOS",7,"적용대상 상품등록에서 상품추가 선택",null,"성공"]
[null,null,"BOS",8,"특정 상품(#) 조회",null,"성공"]
[null,null,"BOS",9,"상품 선택 및 적용 버튼 선택",null,"성공"]
[null,null,"BOS",10,"적용대상 상품등록에서 상품추가 선택",null,"성공"]
[null,null,"BOS",11,"다수 상품 조회",null,"성공"]
[null,null,"BOS",12,"상품 선택 및 적용 버튼 선택",null,"성공"]
[null,null,"BOS",13,"하단 저장 버튼",null,"성공"]
[null,null,"BOS",14,"다다익선 등록된 항목에서 등록했던 항목의 프로모션 ID 선택",null,"성공"]
[null,null,"BOS",15,"하단 '진행' 버튼 선택",null,"성공"]
[null,null,"쇼핑몰",16,"사이트 내에서 다다익선 적용했던 상품 상세 페이지 진입\n \n http://ts5000.ipdisk.co.kr/goods/detail/form?goodsCd=다다익선대상상품코드\n \n 으로 상세 바로 진입 가능",null,"성공"]
[null,null,"쇼핑몰",17,"하단 다다익선 항목에 상품 확인",null,"성공"]
["TEST_03_019","사은품 프로모션(모두 지급) 생성","BOS",1,"상단 메뉴에서 회원/마케팅 선택",null,"성공"]
[null,null,"BOS",2,"마케팅_사은품 프로모션 선택",null,"성공"]
[null,null,"BOS",3,"프로모션 등록 버튼 선택",null,"성공"]
[null,null,"BOS",4,"프로모션명, 기간, 구분(자사몰) 등 기본정보 설정",null,"성공"]
[null,null,"BOS",5,"적용대상 상품등록에서 상품추가 선택",null,"성공"]
[null,null,"BOS",6,"다수의 특정 상품(#) 조회",null,"성공"]
[null,null,"BOS",7,"상품 선택 및 적용 버튼 선택",null,"성공"]
[null,null,"BOS",8,"지급방법 모두지급으로 선택",null,"성공"]
[null,null,"BOS",9,"구매금액 입력",null,"성공"]
[null,null,"BOS",10,"사은품 선택' 버튼 선택",null,"성공"]
[null,null,"BOS",11,"조회 버튼 선택",null,"성공"]
[null,null,"BOS",12,"사은품(#) 선택 및 확인 버튼 선택",null,"성공"]
[null,null,"BOS",13,"하단 '저장' 버튼 선택",null,"성공"]
[null,null,"BOS",14,"등록했던 프로모션명 선택",null,"성공"]
[null,null,"BOS",15,"하단 '진행' 버튼 선택",null,"성공"]
[null,null,"쇼핑몰",16,"사이트 내에서 다다익선 적용했던 상품 상세 페이지 진입\n \n http://ts5000.ipdisk.co.kr/goods/detail/form?goodsCd=사은품대상상품코드\n \n 으로 상세 바로 진입 가능",null,"성공"]
[null,null,"쇼핑몰",17,"쇼핑혜택 확인","석혜민","실패","데이터","하","쇼핑혜택에 등록 사은품 정보 노출되지 않음","현재 정상동작 확인 했습니다.",null,"완료","전석훈","05.13"]
[null,null,"쇼핑몰",18,"(로그인 상태)\n 옵션 설정 후, 바로구매 선택",null,"성공"]
[null,null,"쇼핑몰",19,"사은품 항목 선택",null,"성공"]
["TEST_03_020","사은품 프로모션(선택 사은품) 생성","BOS",1,"상단 메뉴에서 회원/마케팅 선택",null,"성공"]
[null,null,"BOS",2,"마케팅_사은품 프로모션 선택",null,"성공"]
[null,null,"BOS",3,"프로모션 등록 버튼 선택",null,"성공"]
[null,null,"BOS",4,"프로모션명, 기간, 구분(자사몰) 등 기본정보 설정",null,"성공"]
[null,null,"BOS",5,"적용대상 상품등록에서 상품추가 선택",null,"성공"]
[null,null,"BOS",6,"다수의 특정 상품(#) 조회",null,"성공"]
[null,null,"BOS",7,"상품 선택 및 적용 버튼 선택",null,"성공"]
[null,null,"BOS",8,"지급방법 선택사은품으로 선택",null,"성공"]
[null,null,"BOS",9,"구매금액 입력",null,"성공"]
[null,null,"BOS",10,"사은품 선택' 버튼 선택",null,"성공"]
[null,null,"BOS",11,"조회 버튼 선택",null,"성공"]
[null,null,"BOS",12,"사은품(#) 선택 및 확인 버튼 선택",null,"성공"]
[null,null,"BOS",13,"하단 '저장' 버튼 선택",null,"성공"]
[null,null,"BOS",14,"등록했던 프로모션명 선택",null,"성공"]
[null,null,"BOS",15,"하단 '진행' 버튼 선택",null,"성공"]
[null,null,"쇼핑몰",16,"사이트 내에서 다다익선 적용했던 상품 상세 페이지 진입\n \n http://ts5000.ipdisk.co.kr/goods/detail/form?goodsCd=사은품대상상품코드\n \n 으로 상세 바로 진입 가능",null,"성공"]
[null,null,"쇼핑몰",17,"쇼핑혜택 확인","석혜민","실패","데이터","하","쇼핑혜택에 등록 사은품 정보 노출되지 않음","현재 정상동작 확인 했습니다.",null,"완료","전석훈","05.13"]
[null,null,"쇼핑몰",18,"(로그인 상태)\n 옵션 설정 후, 바로구매 선택",null,"성공"]
[null,null,"쇼핑몰",19,"사은품 항목 선택",null,"성공"]